Transaction Reference,Supplier Name,Line Value,Department,Category,Transaction Date,Year/Period,SME,Costs split between Mid Suffolk and Babergh District Councils Y/N,% of transaction apportioned to Babergh District Council,,
423233,AARON SERVICES LTD,411.69,Voids Maintenance,Repairs,04-Apr-23,2324/01,SME,N,
423233,AARON SERVICES LTD,399.64,Planned Maint - Heating,Property Servicing,04-Apr-23,2324/01,SME,N,
423234,AARON SERVICES LTD,728.47,Voids Maintenance,Repairs,04-Apr-23,2324/01,SME,N,
423234,AARON SERVICES LTD,"1,967.46",Planned Maint - Heating,Property Servicing,04-Apr-23,2324/01,SME,N,
367704,AE WHITE SURFACING,"15,191.00",Council House Adaptions,Improvements,06-Apr-23,2324/01,SME,N,
367616,AGROCO TRAILERS,289.5,Open Spaces,Plant & Vehicle - Other costs,23-Jan-23,2324/01,SME,N,
367617,AGROCO TRAILERS,321,Open Spaces,Plant & Vehicle - Other costs,23-Jan-23,2324/01,SME,N,
367619,AGROCO TRAILERS,274,Open Spaces,Plant & Vehicle - Other costs,25-Jan-23,2324/01,SME,N,
367622,AGROCO TRAILERS,332.5,Open Spaces,Plant & Vehicle - Other costs,26-Jan-23,2324/01,SME,N,
367785,ANGLIAN WATER,259.88,Tenancy Services,Water Rates - Metered,03-Apr-23,2324/01,LGE,N,
367508,AQUAJET CLEANING EQUIPMENT LTD,384.66,Creeting Rd Depot,"Equipment, Tools & Materials",30-Mar-23,2324/01,SME,Y,50%,,
367663,BINDER LTD,148,Sewage Treatment Works,Contracted Services,30-Mar-23,2324/01,SME,N,
367663,BINDER LTD,235.8,Sewage Treatment Works,Repairs,30-Mar-23,2324/01,SME,N,
367934,BINDER LTD,288.25,Sewage Treatment Works,Contracted Services,24-Feb-23,2324/01,SME,N,
367951,BINDER LTD,315.02,Sewage Treatment Works,Contracted Services,18-Apr-23,2324/01,SME,N,
367957,BINDER LTD,261,Sewage Treatment Works,Contracted Services,18-Apr-23,2324/01,SME,N,
367605,BOWER FULLER,"9,686.36",Sheltered Accommodation,Fire Prevention,31-Mar-23,2324/01,SME,N,
367609,BOWER FULLER,522,Sheltered Accommodation,Fire Prevention,31-Mar-23,2324/01,SME,N,
367611,BOWER FULLER,412.28,Sheltered Accommodation,Fire Prevention,31-Mar-23,2324/01,SME,N,
367612,BOWER FULLER,633.51,Wingfield Barns,Repairs,31-Mar-23,2324/01,SME,N,
367613,BOWER FULLER,840,Sheltered Accommodation,Fire Prevention,31-Mar-23,2324/01,SME,N,
367614,BOWER FULLER,339.54,Sheltered Accommodation,Repairs,31-Mar-23,2324/01,SME,N,
367615,BOWER FULLER,"11,370.00",Sheltered Units-Gen.Imp,Major Contracts,31-Mar-23,2324/01,SME,N,
367707,BOWER FULLER,"5,921.56",Sheltered Accommodation,Fire Prevention,06-Apr-23,2324/01,SME,N,
367709,BOWER FULLER,288,Sheltered Accommodation,Fire Prevention,06-Apr-23,2324/01,SME,N,
367672,BUTTON & TURNER LTD,"1,019.09",Street & Major Road Cleansing,Plant & Vehicle - Other costs,15-Mar-23,2324/01,SME,N,
367658,AQUASAMPLERS,375,Water Sampling,Sampling & Analysis,28-Feb-23,2324/01,SME,N,
367748,CEDARS HOTEL LTD,"9,900.00",RoughSleepersInterventionYr3,Misc Supplies & Services Costs,05-Apr-23,2324/01,SME,Y,50%,,
368110,CENTRAL TYRE LTD,324,Street & Major Road Cleansing,Plant & Vehicle - Other costs,25-Apr-23,2324/01,SME,N,
367367,CHAPPLE SIGNS LTD,295.2,C Parks General,"Equipment, Tools & Materials",27-Mar-23,2324/01,SME,N,
367780,CHAPPLE SIGNS LTD,577.86,Open Spaces,Plant & Vehicle - Other costs,11-Apr-23,2324/01,SME,N,
367902,CHEQUERS HOTEL LTD,"1,240.00",Homelessness Private Sector,B&B Costs,30-Jan-23,2324/01,SME,N,
367876,CLARKE FENCING LTD,512,Open Spaces,"Equipment, Tools & Materials",14-Dec-22,2324/01,SME,N,
368033,CLARKE FENCING LTD,360,Open Spaces,"Equipment, Tools & Materials",20-Apr-23,2324/01,SME,N,
368138,CLARKE FENCING LTD,610.07,Open Spaces,"Equipment, Tools & Materials",26-Apr-23,2324/01,SME,N,
367652,D W ADAMS LTD,"6,330.00",Council House Adaptions,Improvements,04-Apr-23,2324/01,SME,N,
367901,D W ADAMS LTD,"4,989.00",Council House Adaptions,Improvements,17-Apr-23,2324/01,SME,N,
367894,DMA HEALTH AND SAFETY LTD,483,Wingfield Barns,Prof & Consultancy Fees,14-Apr-23,2324/01,SME,N,
368099,EAST ANGLIA CLEANING SERVICES LTD,483.73,Open Spaces,General Cleaning,25-Apr-23,2324/01,SME,N,
368107,EAST ANGLIA CLEANING SERVICES LTD,"1,604.54",Jnt Waste Contract,General Cleaning,25-Apr-23,2324/01,SME,Y,50%,,
367557,EAST SUFFOLK INTERNAL DRAINAGE BOARD,"45,701.00",Land Drainage,Misc Supplies & Services Costs,01-Apr-23,2324/01,SME,N,
368098,CIVICA ELECTION SERVICES,"25,555.97",Electoral Registration,Returning Officer Fees,03-Apr-23,2324/01,LGE,N,
367477,ENGLISH SECURITY,294.1,Sheltered Accommodation,Fire Prevention,30-Mar-23,2324/01,SME,N,
367482,ENGLISH SECURITY,290.16,Temporary Accommodation,Fire Prevention,30-Mar-23,2324/01,SME,N,
367800,ENGLISH SECURITY,"1,695.52",Sheltered Accommodation,Fire Prevention,11-Apr-23,2324/01,SME,N,
367920,ENGLISH SECURITY,264.86,Sheltered Accommodation,Fire Prevention,17-Apr-23,2324/01,SME,N,
367593,ENVIRONMENT AGENCY,251,BRRP Needham Lake Visitor Ctr,Prof & Consultancy Fees,01-Apr-23,2324/01,LGE,N,
367958,ENVIRONMENT AGENCY,"1,109.00",Recycling Centre,Misc Supplies & Services Costs,03-Apr-23,2324/01,LGE,N,
368001,ENVIRONMENT AGENCY,"1,230.25",Creeting Rd Depot,Misc Supplies & Services Costs,03-Apr-23,2324/01,LGE,Y,50.00%,,
367996,ENVIROVENT LTD,531.3,Insulation Imps,Repairs,20-Apr-23,2324/01,SME,N,
367590,FELLBRIDGE BUILDING SERVICES,330.37,Building Services,Repairs,03-Apr-23,2324/01,SME,N,
367705,FELLBRIDGE BUILDING SERVICES,"10,628.18",Voids Maintenance,Repairs,06-Apr-23,2324/01,SME,N,
367761,FELLBRIDGE BUILDING SERVICES,"8,014.24",Voids Maintenance,Repairs,06-Apr-23,2324/01,SME,N,
367762,FELLBRIDGE BUILDING SERVICES,"12,674.48",Voids Maintenance,Repairs,06-Apr-23,2324/01,SME,N,
367850,FELLBRIDGE BUILDING SERVICES,639.08,Building Services,Repairs,13-Apr-23,2324/01,SME,N,
367848,FORE-MOST GARAGE DOORS LTD,"1,595.00",Building Services,Repairs,11-Apr-23,2324/01,SME,N,
367886,GHB ROOFING,"37,462.30",Roofing,Repairs,31-Jan-23,2324/01,SME,N,
367891,GHB ROOFING,"21,417.75",Roofing,Repairs,28-Feb-23,2324/01,SME,N,
367895,HUDSON MEDIA PARTNERSHIP LTD,"2,452.50",Bldg Regs Chargeable Serv,Advertising&mkting (non-staff),15-Apr-23,2324/01,SME,Y,50%,,
367990,HUDSON MEDIA PARTNERSHIP LTD,875,Bldg Regs Chargeable Serv,Advertising&mkting (non-staff),19-Apr-23,2324/01,SME,Y,50%,,
368067,HUDSON MEDIA PARTNERSHIP LTD,"1,000.00",MSM Housing Solutions,Misc Supplies & Services Costs,22-Apr-23,2324/01,SME,N,
367911,INSTITUTE OF LICENSING (EVENTS) LTD,852.55,Organisational Devt,Training,07-Mar-23,2324/01,SME,Y,47%,,
367790,M & H CIVIL ENGINEERING LTD,578.95,Building Services,Repairs,11-Apr-23,2324/01,SME,N,
367983,M & H CIVIL ENGINEERING LTD,779.1,Building Services,Repairs,19-Apr-23,2324/01,SME,N,
367984,M & H CIVIL ENGINEERING LTD,847.75,Building Services,Repairs,19-Apr-23,2324/01,SME,N,
367986,M & H CIVIL ENGINEERING LTD,907.18,Building Services,Repairs,19-Apr-23,2324/01,SME,N,
367588,MATERIAL CHANGE COMPOSTING LTD,610.48,Open Spaces,"Equipment, Tools & Materials",22-Mar-23,2324/01,LGE,N,
367668,MATERIAL CHANGE COMPOSTING LTD,533.28,Open Spaces,Waste Disposal,31-Mar-23,2324/01,LGE,N,
367668,MATERIAL CHANGE COMPOSTING LTD,18.24,Open Spaces,"Equipment, Tools & Materials",31-Mar-23,2324/01,LGE,N,
368015,MB TREES (EAST ANGLIA) LTD,720,Public Tree Programme,Tree felling/maintenance,20-Apr-23,2324/01,SME,N,
368017,MB TREES (EAST ANGLIA) LTD,280,Public Tree Programme,Tree felling/maintenance,20-Apr-23,2324/01,SME,N,
367812,MID SUFFOLK FENCING LTD,857,Building Services,Repairs,04-Apr-23,2324/01,SME,N,
367813,MID SUFFOLK FENCING LTD,"5,496.41",Building Services,Repairs,04-Apr-23,2324/01,SME,N,
359150,MIXBROW LTD,"2,419.37",Major Imps,Major Contracts,25-Mar-22,2324/01,SME,N,
367878,MIXBROW LTD,"4,390.00",Council House Adaptions,Improvements,11-Apr-23,2324/01,SME,N,
423205,NEEDHAM MARKET TOWN COUNCIL,"2,773.40",Current Liabilities,Parish Payments Available,12-Apr-23,2324/01,SME,N,
367594,NORFOLK COUNTY COUNCIL,"9,469.44",Strategic Housing,Subscriptions,29-Mar-23,2324/01,LGE,N,
367659,PRO-FLAT SPECIALIST SERVICES LTD,"1,120.00",Building Services,Repairs,31-Mar-23,2324/01,SME,N,
367358,REID PLUMBING & HEATING CONTRACTORS LTD,"21,190.48",Central Heating,Major Contracts,27-Mar-23,2324/01,SME,N,
367414,REID PLUMBING & HEATING CONTRACTORS LTD,"29,500.70",Central Heating,Major Contracts,29-Mar-23,2324/01,SME,N,
367681,REID PLUMBING & HEATING CONTRACTORS LTD,"20,606.22",Central Heating,Major Contracts,05-Apr-23,2324/01,SME,N,
367900,REID PLUMBING & HEATING CONTRACTORS LTD,"37,291.06",Central Heating,Major Contracts,17-Apr-23,2324/01,SME,N,
367961,REID PLUMBING & HEATING CONTRACTORS LTD,"21,827.44",Central Heating,Major Contracts,19-Apr-23,2324/01,SME,N,
367723,NBS ENTERPRISES LTD,"7,846.00",Building Services,Software Licnse (Line of Bus) ,30-Jan-23,2324/01,SME,Y,50%,,
367564,SACKERS LTD,"3,062.71",Building Services,Waste Disposal,31-Mar-23,2324/01,SME,Y,50%,,
367720,SEAGER HOME SOLUTIONS,"59,293.99",Kitchens/Bathrooms,Major Contracts,11-Apr-23,2324/01,SME,N,
367869,SEAGER HOME SOLUTIONS,"6,803.00",Building Services,Repairs,14-Apr-23,2324/01,SME,N,
367722,SHAW & SONS LTD,"1,665.75",General Elections,Stationery,21-Mar-23,2324/01,SME,N,
367782,SSI SCHAEFER LTD,"20,697.60",Bins,Bins,11-Apr-23,2324/01,SME,N,
367896,TANKCHANGE LTD,375,Central Heating,Improvements,10-Apr-23,2324/01,SME,N,
367897,TANKCHANGE LTD,375,Central Heating,Improvements,10-Apr-23,2324/01,SME,N,
367597,TDT ENTERPRISES LTD,321,Temporary Accommodation,"Equipment, Tools & Materials",31-Mar-23,2324/01,SME,N,
367917,THERMATECH,450,Tenancy Services,Prof & Consultancy Fees,17-Apr-23,2324/01,SME,N,
367776,TREVOR BENTON CONSTRUCTION LTD,"6,279.00",Mand Disabled Facilities Grant,Grants,11-Apr-23,2324/01,SME,N,
367860,WAVENEY LOWER YARE & LOTHINGLAND ID B,"17,938.83",Land Drainage,Misc Supplies & Services Costs,14-Apr-23,2324/01,SME,N,
367801,WINDIMAN LTD,"1,220.00",Window & Door Rplcmts,Repairs,06-Apr-23,2324/01,SME,N,
367802,WINDIMAN LTD,780,Window & Door Rplcmts,Repairs,06-Apr-23,2324/01,SME,N,
367803,WINDIMAN LTD,780,Building Services,Repairs,11-Apr-23,2324/01,SME,N,
367942,WINDIMAN LTD,640,Building Services,Repairs,18-Apr-23,2324/01,SME,N,
367943,WINDIMAN LTD,980,Building Services,Repairs,18-Apr-23,2324/01,SME,N,
367944,WINDIMAN LTD,780,Building Services,Repairs,18-Apr-23,2324/01,SME,N,
367955,WINDIMAN LTD,700,Building Services,Repairs,18-Apr-23,2324/01,SME,N,
367978,WINDIMAN LTD,780,Major Imps,Improvements,18-Apr-23,2324/01,SME,N,
367539,WORKWEAR (EAST ANGLIA) LTD,283.96,Building Services,Protective clothing,23-Mar-23,2324/01,SME,Y,50%,,
367541,WORKWEAR (EAST ANGLIA) LTD,370.54,Open Spaces,Protective clothing,23-Mar-23,2324/01,SME,N,
367542,WORKWEAR (EAST ANGLIA) LTD,474.65,Street & Major Road Cleansing,Protective clothing,23-Mar-23,2324/01,SME,N,
367543,WORKWEAR (EAST ANGLIA) LTD,369.66,Open Spaces,Protective clothing,23-Mar-23,2324/01,SME,N,
367544,WORKWEAR (EAST ANGLIA) LTD,433.46,Open Spaces,Protective clothing,23-Mar-23,2324/01,SME,N,
367838,WORKWEAR (EAST ANGLIA) LTD,395.88,Building Services,Protective clothing,03-Apr-23,2324/01,SME,Y,50%,,
367839,WORKWEAR (EAST ANGLIA) LTD,394.85,Building Services,Protective clothing,03-Apr-23,2324/01,SME,Y,50%,,
367840,WORKWEAR (EAST ANGLIA) LTD,310.47,Building Services,Protective clothing,03-Apr-23,2324/01,SME,Y,50%,,
367779,LOCAL GOVERNMENT ASSOCIATION,505.9,Management Team,Conference Expenses,12-Apr-23,2324/01,LGE,Y,50%,,
367779,LOCAL GOVERNMENT ASSOCIATION,"1,011.80",Cost of Democracy,Member's Courses & Conferences,12-Apr-23,2324/01,LGE,N,
367566,ESSEX COUNTY COUNCIL,"2,790.00",Devt Management - Appeals,Ecology Consultancy,30-Mar-23,2324/01,LGE,N,
367577,SERCO LTD,"12,220.00",Rplcmt Ref Freighters-Jnt Schm,Plant & Vehicle - Purchase,31-Mar-23,2324/01,LGE,N,
367833,SERCO LTD,"4,587.00",Domestic Waste,Refuse Contract,12-Apr-23,2324/01,LGE,Y,50%,,
367835,SERCO LTD,"10,000.00",Jnt Waste Contract,Plant & Vehicle Fuel,12-Apr-23,2324/01,LGE,Y,50%,,
367836,SERCO LTD,"318,798.70",Domestic Waste,Refuse Contract,12-Apr-23,2324/01,LGE,Y,47.50%,,
367836,SERCO LTD,"24,172.70",Trade Waste,Refuse Contract,12-Apr-23,2324/01,LGE,Y,60%,,
367836,SERCO LTD,"84,642.60",Garden Waste,Refuse Contract,12-Apr-23,2324/01,LGE,Y,47.50%,,
367966,SERCO LTD,"9,575.63",Open Spaces,Plant & Vehicle Fuel,12-Apr-23,2324/01,LGE,Y,50%,,
368112,SERCO LTD,"48,513.17",Jnt Waste Contract,Refuse Contract,25-Apr-23,2324/01,LGE,Y,48%,,
368113,SERCO LTD,"100,000.00",Domestic Waste,Refuse Contract,25-Apr-23,2324/01,LGE,Y,50%,,
367721,TRAVIS PERKINS TRADING CO LTD,"80,013.28",Building Services,"Equipment, Tools & Materials",28-Feb-23,2324/01,LGE,Y,60%,,
423226,EDF ENERGY,910.41,C Parks General,Electricity,14-Apr-23,2324/01,LGE,N,
423226,EDF ENERGY,223.62,Climate Change and Sustainabil,Electricity,14-Apr-23,2324/01,LGE,N,
423226,EDF ENERGY,"2,094.55",Creeting Rd Depot,Electricity,14-Apr-23,2324/01,LGE,Y,50%,,
423226,EDF ENERGY,725.54,Headquarters General,Electricity,14-Apr-23,2324/01,LGE,N,
423226,EDF ENERGY,"37,819.22",Leisure Contract,Electricity,14-Apr-23,2324/01,LGE,N,
423226,EDF ENERGY,195.08,Needham Market Middle School,Electricity,14-Apr-23,2324/01,LGE,N,
423226,EDF ENERGY,103.23,Open Spaces,Electricity,14-Apr-23,2324/01,LGE,N,
423226,EDF ENERGY,"1,362.59",Other HRA Temp Accommodation,Electricity,14-Apr-23,2324/01,LGE,N,
423226,EDF ENERGY,576.32,Public Conveniences,Electricity,14-Apr-23,2324/01,LGE,N,
423226,EDF ENERGY,558.97,Pure Gym & Adjacent Building,Electricity,14-Apr-23,2324/01,LGE,N,
423226,EDF ENERGY,-37.48,Recycling Centre,Electricity,14-Apr-23,2324/01,LGE,N,
423226,EDF ENERGY,-280.98,Sewage Treatment Works,Electricity,14-Apr-23,2324/01,LGE,N,
423226,EDF ENERGY,"15,478.58",Sheltered Accommodation,Electricity,14-Apr-23,2324/01,LGE,N,
423226,EDF ENERGY,434.4,Tacon Close Eye TDP,Electricity,14-Apr-23,2324/01,LGE,N,
423226,EDF ENERGY,"1,235.36",Temporary Accommodation,Electricity,14-Apr-23,2324/01,LGE,N,
423226,EDF ENERGY,"3,875.66",Tenancy Services,Electricity,14-Apr-23,2324/01,LGE,N,
423226,EDF ENERGY,"4,133.11",Wingfield Barns,Electricity,14-Apr-23,2324/01,LGE,N,
423227,GPC BARCLAYS,"9,898.79",Current Assets,Barclaycard Control,14-Apr-23,2324/01,LGE,Y,14%,,
423173,ALLSTAR BUSINESS SOLUTIONS LTD,178.58,Housing Options,Plant & Vehicle Fuel,31-Mar-23,2324/01,SME,Y,50%,,
423173,ALLSTAR BUSINESS SOLUTIONS LTD,"12,235.90",Building Services,Plant & Vehicle Fuel,31-Mar-23,2324/01,SME,Y,50%,,
367847,STANNAH STAIRLIFTS LTD,"5,257.00",Mand Disabled Facilities Grant,Grants,13-Apr-23,2324/01,LGE,N,
423178,ASHBOCKING PARISH COUNCIL,"1,772.77",Current Liabilities,Parish Payments Available,12-Apr-23,2324/01,SME,N,
423179,BACTON PARISH COUNCIL,"21,342.88",Current Liabilities,Parish Payments Available,12-Apr-23,2324/01,SME,N,
423180,BADWELL ASH PARISH COUNCIL,"14,696.25",Current Liabilities,Parish Payments Available,12-Apr-23,2324/01,SME,N,
423181,BARHAM PARISH COUNCIL,"8,959.93",Current Liabilities,Parish Payments Available,12-Apr-23,2324/01,SME,N,
367965,BARKING PRE SCHOOL,"5,000.00",VCSE Resilience,"Equipment, Tools & Materials",05-Apr-23,2324/01,SME,N,
423182,BEYTON PARISH COUNCIL,"7,161.11",Current Liabilities,Parish Payments Available,12-Apr-23,2324/01,SME,N,
423183,BOTESDALE PARISH COUNCIL,"53,543.51",Current Liabilities,Parish Payments Available,12-Apr-23,2324/01,SME,N,
423184,BRAMFORD PARISH COUNCIL,"60,142.71",Current Liabilities,Parish Payments Available,12-Apr-23,2324/01,SME,N,
423185,BRUNDISH PARISH COUNCIL,"8,345.80",Current Liabilities,Parish Payments Available,12-Apr-23,2324/01,SME,N,
367863,CEDARS PARK COMMUNITY CENTRE,"5,000.00",Grants & Contrbns,Grants,13-Apr-23,2324/01,SME,N,
423186,CLAYDON & WHITTON PARISH COUNCIL,"65,490.52",Current Liabilities,Parish Payments Available,12-Apr-23,2324/01,SME,N,
423187,COMBS PARISH COUNCIL,"20,240.97",Current Liabilities,Parish Payments Available,12-Apr-23,2324/01,SME,N,
367600,COTTON VILLAGE HALL,324,Wellbeing CCG Funding,Contributions & Donations,31-Mar-23,2324/01,SME,N,
423188,CREETING ST MARY PARISH COUNCIL,"14,572.82",Current Liabilities,Parish Payments Available,12-Apr-23,2324/01,SME,N,
423189,DEBENHAM PARISH COUNCIL,"38,101.40",Current Liabilities,Parish Payments Available,12-Apr-23,2324/01,SME,N,
423190,EARL STONHAM PARISH COUNCIL,"1,791.64",Current Liabilities,Parish Payments Available,12-Apr-23,2324/01,SME,N,
367682,EAST ANGLIAN TRADITIONAL MUSIC TRUST,"4,810.00",Grants & Contrbns,"Equipment, Tools & Materials",05-Apr-23,2324/01,SME,N,
423191,ELMSWELL PARISH COUNCIL,"63,746.42",Current Liabilities,Parish Payments Available,12-Apr-23,2324/01,SME,N,
423192,EYE TOWN COUNCIL,"2,230.93",Current Liabilities,Parish Payments Available,12-Apr-23,2324/01,SME,N,
423193,FRESSINGFIELD PARISH COUNCIL,"20,813.48",Current Liabilities,Parish Payments Available,12-Apr-23,2324/01,SME,N,
423194,GISLINGHAM PARISH COUNCIL,"7,834.74",Current Liabilities,Parish Payments Available,12-Apr-23,2324/01,SME,N,
423195,GREAT BLAKENHAM PARISH COUNCIL,"3,150.00",Current Liabilities,Parish Payments Available,12-Apr-23,2324/01,SME,N,
423196,GREAT BRICETT PARISH COUNCIL,"2,577.23",Current Liabilities,Parish Payments Available,12-Apr-23,2324/01,SME,N,
423197,HAUGHLEY PARISH COUNCIL,"5,846.76",Current Liabilities,Parish Payments Available,12-Apr-23,2324/01,SME,N,
423198,HENLEY PARISH COUNCIL,"8,823.36",Current Liabilities,Parish Payments Available,12-Apr-23,2324/01,SME,N,
423199,HORHAM & ATHELINGTON PARISH CL,"4,217.69",Current Liabilities,Parish Payments Available,12-Apr-23,2324/01,SME,N,
423200,HOXNE PARISH COUNCIL,"5,309.19",Current Liabilities,Parish Payments Available,12-Apr-23,2324/01,SME,N,
423201,LAXFIELD PARISH COUNCIL,"52,083.08",Current Liabilities,Parish Payments Available,12-Apr-23,2324/01,SME,N,
423202,LITTLE BLAKENHAM PARISH COUNCIL,559.6,Current Liabilities,Parish Payments Available,12-Apr-23,2324/01,SME,N,
423203,MENDHAM PARISH COUNCIL,"3,929.99",Current Liabilities,Parish Payments Available,12-Apr-23,2324/01,SME,N,
423204,MENDLESHAM PARISH COUNCIL,"37,026.63",Current Liabilities,Parish Payments Available,12-Apr-23,2324/01,SME,N,
423206,NORTON PARISH COUNCIL,"18,363.03",Current Liabilities,Parish Payments Available,12-Apr-23,2324/01,SME,N,
368062,OFFTON & WILLISHAM VILLAGE HALL,375,Devt Management - Apps,Room Hire,24-Apr-23,2324/01,SME,Y,50%,,
423208,RATTLESDEN PARISH COUNCIL,"10,245.94",Current Liabilities,Parish Payments Available,12-Apr-23,2324/01,SME,N,
423209,REDGRAVE PARISH COUNCIL,"8,282.76",Current Liabilities,Parish Payments Available,12-Apr-23,2324/01,SME,N,
423210,STONHAM ASPAL PARISH COUNCIL,"19,515.82",Current Liabilities,Parish Payments Available,12-Apr-23,2324/01,SME,N,
423211,STONHAM PARVA PARISH COUNCIL,"3,993.94",Current Liabilities,Parish Payments Available,12-Apr-23,2324/01,SME,N,
423213,STOWUPLAND PARISH COUNCIL,"80,419.68",Current Liabilities,Parish Payments Available,12-Apr-23,2324/01,SME,N,
423214,STRADBROKE PARISH COUNCIL,"65,741.87",Current Liabilities,Parish Payments Available,12-Apr-23,2324/01,SME,N,
367604,STREET FORGE WORKSHOPS,"3,000.00",VCSE Resilience,"Equipment, Tools & Materials",03-Apr-23,2324/01,SME,N,
368030,SYLEHAM PARISH COUNCIL,"1,364.80",Community Fund Projects-Grants,Grants,21-Apr-23,2324/01,SME,N,
423215,THRANDESTON PARISH COUNCIL,"1,064.55",Current Liabilities,Parish Payments Available,12-Apr-23,2324/01,SME,N,
423216,THURSTON PARISH COUNCIL,"64,880.50",Current Liabilities,Parish Payments Available,12-Apr-23,2324/01,SME,N,
423217,TOSTOCK PARISH COUNCIL,"6,359.19",Current Liabilities,Parish Payments Available,12-Apr-23,2324/01,SME,N,
423218,WALSHAM LE WILLOWS PARISH COUNCIL,"2,953.41",Current Liabilities,Parish Payments Available,12-Apr-23,2324/01,SME,N,
367880,WALSHAM LE WILLOWS SPORTS CLUB,"5,000.00",VCSE Resilience,"Equipment, Tools & Materials",14-Apr-23,2324/01,SME,N,
367857,WATTISFIELD COMMUNITY CENTRE,"5,000.00",Grants & Contrbns,Grants,13-Apr-23,2324/01,SME,N,
423219,WATTISFIELD PARISH COUNCIL,"9,401.55",Current Liabilities,Parish Payments Available,12-Apr-23,2324/01,SME,N,
367903,WETHERDEN PARISH COUNCIL,"18,375.63",CIL Funded REFCUS,Grants,17-Apr-23,2324/01,SME,N,
423220,WEYBREAD PARISH COUNCIL,"2,306.02",Current Liabilities,Parish Payments Available,12-Apr-23,2324/01,SME,N,
423221,WICKHAM SKEITH PARISH COUNCIL,"3,618.32",Current Liabilities,Parish Payments Available,12-Apr-23,2324/01,SME,N,
423222,WORLINGWORTH PARISH COUNCIL,"20,583.96",Current Liabilities,Parish Payments Available,12-Apr-23,2324/01,SME,N,
423223,WORTHAM AND BURGATE PARISH COUNCIL,"6,631.12",Current Liabilities,Parish Payments Available,12-Apr-23,2324/01,SME,N,
367677,SUFFOLK COUNTY COUNCIL,"4,557.00",Stowmarket CAP,Operating Lease Payments,01-Apr-23,2324/01,LGE,Y,50%,,
367677,SUFFOLK COUNTY COUNCIL,"3,307.00",Stowmarket CAP,Contracted Services,01-Apr-23,2324/01,LGE,Y,50%,,
367678,SUFFOLK COUNTY COUNCIL,"20,500.00",Endeavour House - HQ,Operating Lease Payments,01-Apr-23,2324/01,LGE,Y,50%,,
367678,SUFFOLK COUNTY COUNCIL,"26,875.00",Endeavour House - HQ,Contracted Services,01-Apr-23,2324/01,LGE,Y,50%,,
367702,SUFFOLK COUNTY COUNCIL,"1,140.00",Land Chgs,Contracted Services,05-Apr-23,2324/01,LGE,N,
367815,SUFFOLK COUNTY COUNCIL,"27,207.00",Civil Protection & Emerg Plg,Contributions & Donations,11-Apr-23,2324/01,LGE,N,
367960,SUFFOLK COUNTY COUNCIL,"12,500.00",Jnt Waste Contract,Subscriptions,18-Apr-23,2324/01,LGE,Y,50%,,
423212,STOWMARKET TOWN COUNCIL,"16,213.86",Current Liabilities,Parish Payments Available,12-Apr-23,2324/01,SME,N,
368151,TELEFONICA UK LIMITED - O2,"1,679.45",ICT,Telephone Costs,27-Apr-23,2324/01,LGE,Y,50%,,
367991,EAST OF ENGLAND CO-OPERATIVE SOCIETY LTD,"1,413.00",Publice Health Funerals,Contracted Services,28-Mar-23,2324/01,LGE,N,
367717,LEX AUTOLEASE,348.97,Building Services,Lease Cars - Payment,27-Mar-23,2324/01,SME,Y,50%,,
367718,LEX AUTOLEASE,276.83,Building Services,Lease Cars - Payment,27-Mar-23,2324/01,SME,Y,50%,,
367719,LEX AUTOLEASE,310.1,Building Services,Lease Cars - Payment,27-Mar-23,2324/01,SME,Y,50%,,
368034,LEX AUTOLEASE,320.52,Building Services,Lease Cars - Payment,10-Apr-23,2324/01,SME,Y,50%,,
368035,LEX AUTOLEASE,311.29,Building Services,Lease Cars - Payment,10-Apr-23,2324/01,SME,Y,50%,,
368036,LEX AUTOLEASE,327.22,Building Services,Lease Cars - Payment,10-Apr-23,2324/01,SME,Y,50%,,
368052,PREMIER BODYWORKS,720.24,Open Spaces,Plant & Vehicle - Other costs,19-Apr-23,2324/01,SME,N,
367645,WHITESPACE WORK SOFTWARE LTD,"54,750.00",Jnt Waste Contract,Subscriptions,01-Apr-23,2324/01,SME,Y,50%,,
367925,WHYBROW PROPERTY SOLUTIONS LTD,877.64,Council House Adaptions,Improvements,17-Apr-23,2324/01,SME,N,
367679,L A C CLEANING CONTRACTORS LIMITED,475.5,Voids Maintenance,Repairs,05-Apr-23,2324/01,SME,N,
367805,L A C CLEANING CONTRACTORS LIMITED,"1,420.50",Voids Maintenance,Repairs,12-Apr-23,2324/01,SME,N,
367806,L A C CLEANING CONTRACTORS LIMITED,"1,195.50",Voids Maintenance,Repairs,12-Apr-23,2324/01,SME,N,
367826,L A C CLEANING CONTRACTORS LIMITED,475.5,Voids Maintenance,Repairs,13-Apr-23,2324/01,SME,N,
368075,L A C CLEANING CONTRACTORS LIMITED,384.45,Temporary Accommodation,General Cleaning,24-Apr-23,2324/01,SME,N,
368125,L A C CLEANING CONTRACTORS LIMITED,795.5,Tenancy Services,Contracted Services,25-Apr-23,2324/01,SME,N,
367970,ARMSTRONG YORK ASBESTOS ENVIRONMENTAL,"14,572.82",Asbestos Survey & Reinspection,Prof & Consultancy Fees,31-Mar-23,2324/01,SME,N,
367873,DMP TRAINING (UK),"1,275.00",Street & Major Road Cleansing,Training,12-Apr-23,2324/01,SME,N,
367874,DMP TRAINING (UK),395,Street & Major Road Cleansing,Training,12-Apr-23,2324/01,SME,N,
367905,OLD NEWTON VILLAGE HALL,"13,853.99",CIL Funded REFCUS,Grants,17-Apr-23,2324/01,SME,N,
367987,ORSIS UK LTD,"4,930.50",PV Panels,Contracted Services,18-Apr-23,2324/01,SME,N,
368063,LARAC LTD,445,Jnt Waste Contract,Subscriptions,21-Apr-23,2324/01,SME,Y,50%,,
367749,DALROD (UK) LTD,294,Creeting Rd Depot,Grounds & Site Maintenance,05-Apr-23,2324/01,SME,Y,50%,,
367791,OPUS PEOPLE SOLUTIONS LTD,339.37,Homeless Prevention Fund,Agency Staff,06-Apr-23,2324/01,SME,N,
367791,OPUS PEOPLE SOLUTIONS LTD,179.8,Health & Safety,Agency Staff,06-Apr-23,2324/01,SME,N,
367959,OPUS PEOPLE SOLUTIONS LTD,68.28,Devt Management - Appeals,Agency Staff,13-Apr-23,2324/01,SME,N,
367959,OPUS PEOPLE SOLUTIONS LTD,197.78,Health & Safety,Agency Staff,13-Apr-23,2324/01,SME,N,
368070,OPUS PEOPLE SOLUTIONS LTD,990,Climate Change and Sustainabil,Agency Staff,20-Apr-23,2324/01,SME,N,
368070,OPUS PEOPLE SOLUTIONS LTD,295.92,Health & Safety,Agency Staff,20-Apr-23,2324/01,SME,N,
368070,OPUS PEOPLE SOLUTIONS LTD,197.78,Homeless Prevention Fund,Agency Staff,20-Apr-23,2324/01,SME,N,
368070,OPUS PEOPLE SOLUTIONS LTD,68.28,Devt Management - Appeals,Agency Staff,20-Apr-23,2324/01,SME,N,
367908,RENOVO EMPLOYMENT GROUP LTD,"2,070.00",Organisational Devt,Professional Subs (Staff),17-Apr-23,2324/01,SME,Y,50%,,
367871,VERTAS GROUP LTD,"1,395.00",Assets & Development,Repairs,31-Mar-23,2324/01,SME,N,
367992,VERTAS GROUP LTD,"1,040.00",Environmental Protection,Misc Supplies & Services Costs,19-Apr-23,2324/01,SME,Y,50%,,
367595,4PRINCIPLES CONSTRUCTION LTD,"6,701.04",Mand Disabled Facilities Grant,Grants,03-Apr-23,2324/01,SME,N,
367648,4PRINCIPLES CONSTRUCTION LTD,"4,777.19",Mand Disabled Facilities Grant,Grants,04-Apr-23,2324/01,SME,N,
367512,GALLAGHER CAR & VAN RENTALS LTD,"1,316.00",Domestic Waste,Refuse Contract,31-Mar-23,2324/01,LGE,N,
367797,GALLAGHER CAR & VAN RENTALS LTD,588,Domestic Waste,Refuse Contract,11-Apr-23,2324/01,LGE,N,
367772,FORESOLUTIONS LTD,276.08,Open Spaces,Plant & Vehicle - Other costs,08-Apr-23,2324/01,SME,N,
367856,ST JOHNS CHURCH ELMSWELL PCC,"1,000.00",Grants & Contrbns,"Equipment, Tools & Materials",13-Apr-23,2324/01,SME,N,
368031,1ST FRESSINGFIELD SCOUT GROUP,"3,156.21",Community Fund Projects-Grants,Grants,21-Apr-23,2324/01,SME,N,
367649,WALSHAM LE WILLOWS BOWLS CLUB,"2,480.00",VCSE Resilience,"Equipment, Tools & Materials",04-Apr-23,2324/01,SME,N,
367747,1ST MID SUFFOLK BBGA (HALL HIRE),"5,000.00",VCSE Resilience,"Equipment, Tools & Materials",05-Apr-23,2324/01,SME,N,
367558,NAFN DATA AND INTELLIGENCE SERVICES,"1,700.00",Management Team,Subscriptions,24-Mar-23,2324/01,SME,N,
367692,BACTON VILLAGE HALL,"5,000.00",VCSE Resilience,"Equipment, Tools & Materials",06-Apr-23,2324/01,SME,N,
367932,LOFTY HEIGHTS LTD,"1,050.00",Tenancy Services,Grounds & Site Maintenance,20-Feb-23,2324/01,SME,N,
367933,LOFTY HEIGHTS LTD,"1,520.00",Tenancy Services,Removal Expenses,21-Mar-23,2324/01,SME,N,
367756,RICHARD UTTING ASSOCIATES LLP,"2,124.74",Stowmarket Middle School,Prof & Consultancy Fees,31-Mar-23,2324/01,SME,N,
367716,THE STOWMARKET GLASS COMPANY LTD,"1,365.00",Building Services,Repairs,02-Mar-23,2324/01,SME,N,
367726,THE STOWMARKET GLASS COMPANY LTD,383.6,Voids Maintenance,Repairs,03-Mar-23,2324/01,SME,N,
367732,THE STOWMARKET GLASS COMPANY LTD,520,Building Services,Repairs,02-Mar-23,2324/01,SME,N,
367734,THE STOWMARKET GLASS COMPANY LTD,715,Building Services,Repairs,14-Mar-23,2324/01,SME,N,
367736,THE STOWMARKET GLASS COMPANY LTD,390,Building Services,Repairs,21-Mar-23,2324/01,SME,N,
367589,ASPECT CONTRACTS LTD,"6,267.00",Asbestos,Improvements,31-Mar-23,2324/01,LGE,N,
367638,THE OYSTER PARTNERSHIP LTD,"3,650.00",HRA Strategic Property,Agency Staff,04-Apr-23,2324/01,SME,Y,50%,,
367639,THE OYSTER PARTNERSHIP LTD,910,Building Services,Agency Staff,04-Apr-23,2324/01,SME,Y,50%,,
367640,THE OYSTER PARTNERSHIP LTD,"2,062.70",Building Servs Tech Staff,Agency Staff,04-Apr-23,2324/01,SME,Y,50%,,
367641,THE OYSTER PARTNERSHIP LTD,"2,656.25",Building Servs Tech Staff,Agency Staff,04-Apr-23,2324/01,SME,Y,50%,,
367642,THE OYSTER PARTNERSHIP LTD,"2,455.85",Building Servs Tech Staff,Agency Staff,04-Apr-23,2324/01,SME,Y,50%,,
367643,THE OYSTER PARTNERSHIP LTD,923.25,Building Services,Agency Staff,04-Apr-23,2324/01,SME,Y,50%,,
367821,THE OYSTER PARTNERSHIP LTD,"2,920.00",HRA Strategic Property,Agency Staff,12-Apr-23,2324/01,SME,Y,50%,,
367822,THE OYSTER PARTNERSHIP LTD,784,Building Services,Agency Staff,12-Apr-23,2324/01,SME,Y,50%,,
367823,THE OYSTER PARTNERSHIP LTD,"2,125.00",Building Servs Tech Staff,Agency Staff,12-Apr-23,2324/01,SME,Y,50%,,
367824,THE OYSTER PARTNERSHIP LTD,"1,996.35",Building Servs Tech Staff,Agency Staff,12-Apr-23,2324/01,SME,Y,50%,,
367825,THE OYSTER PARTNERSHIP LTD,738.6,Building Services,Agency Staff,12-Apr-23,2324/01,SME,Y,50%,,
367969,THE OYSTER PARTNERSHIP LTD,"1,940.00",Building Servs Tech Staff,Agency Staff,19-Apr-23,2324/01,SME,Y,50%,,
367971,THE OYSTER PARTNERSHIP LTD,738.6,Building Services,Agency Staff,19-Apr-23,2324/01,SME,Y,50%,,
367972,THE OYSTER PARTNERSHIP LTD,"1,611.20",Building Servs Tech Staff,Agency Staff,19-Apr-23,2324/01,SME,Y,50%,,
367973,THE OYSTER PARTNERSHIP LTD,"2,125.00",Building Servs Tech Staff,Agency Staff,19-Apr-23,2324/01,SME,Y,50%,,
367974,THE OYSTER PARTNERSHIP LTD,"2,920.00",HRA Strategic Property,Agency Staff,19-Apr-23,2324/01,SME,Y,50%,,
367975,THE OYSTER PARTNERSHIP LTD,981.45,Building Servs Tech Staff,Agency Staff,19-Apr-23,2324/01,SME,Y,50%,,
367976,THE OYSTER PARTNERSHIP LTD,588,Building Services,Agency Staff,19-Apr-23,2324/01,SME,Y,50%,,
367675,KNOWLES ASSOCIATES TFM LTD,380.38,Building Services,Lease Cars - Payment,06-Mar-23,2324/01,SME,Y,50%,,
367752,VIVID RESOURCING,"1,854.40",Building Servs Tech Staff,Agency Staff,05-Apr-23,2324/01,SME,Y,50%,,
367820,VIVID RESOURCING,"1,500.80",Building Servs Tech Staff,Agency Staff,12-Apr-23,2324/01,SME,Y,50%,,
367968,VIVID RESOURCING,"1,438.70",Building Servs Tech Staff,Agency Staff,19-Apr-23,2324/01,SME,Y,50%,,
367918,NORTHUMBRIAN WATER LTD,"1,344.06",Sheltered Accommodation,Legionella Testing,17-Apr-23,2324/01,LGE,N,
367918,NORTHUMBRIAN WATER LTD,39.3,Tenancy Services,Legionella Testing,17-Apr-23,2324/01,LGE,N,
367919,NORTHUMBRIAN WATER LTD,"1,344.06",Sheltered Accommodation,Legionella Testing,17-Apr-23,2324/01,LGE,N,
367919,NORTHUMBRIAN WATER LTD,39.3,Tenancy Services,Legionella Testing,17-Apr-23,2324/01,LGE,N,
367904,GIPPING OCCUPATIONAL HEALTH LTD,545,Organisational Devt,Contracted Services,12-Apr-23,2324/01,SME,Y,50%,,
367939,GIPPING OCCUPATIONAL HEALTH LTD,396,Organisational Devt,Contracted Services,18-Apr-23,2324/01,SME,Y,50%,,
367446,STOWMARKET A S D SATURDAY CLUBS,"2,350.00",Cost of Democracy,Chairman's Expenses,30-Mar-23,2324/01,SME,N,
367646,RESIDENTIALLY CHARTERED SURVEYORS,"2,040.00",Sheltered Accommodation,Prof & Consultancy Fees,30-Mar-23,2324/01,SME,N,
368056,GREENFUTURE SOLUTIONS LTD,"4,315.00",Mand Disabled Facilities Grant,Grants,21-Apr-23,2324/01,SME,N,
367866,ESSEX & SUFFOLK PEST SOLUTIONS,362,Tenancy Services,Contracted Services,11-Apr-23,2324/01,SME,N,
367923,ABBEYCROFT LEISURE,792.61,Holiday Activity Fund,"Equipment, Tools & Materials",13-Mar-23,2324/01,LGE,N,
367518,HAMSON BARRON SMITH LTD,395,BRRP-MarketTownVision&Invest,Prof & Consultancy Fees,31-Mar-23,2324/01,LGE,N,
367137,A C LEIGH (NORWICH) LTD,400.6,Building Services,"Equipment, Tools & Materials",16-Mar-23,2324/01,SME,N,
367142,A C LEIGH (NORWICH) LTD,478.39,Building Services,"Equipment, Tools & Materials",17-Mar-23,2324/01,SME,N,
367151,A C LEIGH (NORWICH) LTD,421.68,Building Services,"Equipment, Tools & Materials",15-Mar-23,2324/01,SME,N,
367809,A C LEIGH (NORWICH) LTD,417.34,Building Services,"Equipment, Tools & Materials",05-Apr-23,2324/01,SME,N,
367565,3 POINT PROPERTY MANAGEMENT LTD,895,Guaranteed Rent Scheme,Rent Payable,04-Apr-23,2324/01,SME,N,
367570,3 POINT PROPERTY MANAGEMENT LTD,595,Guaranteed Rent Scheme,Rent Payable,04-Apr-23,2324/01,SME,N,
367695,3 POINT PROPERTY MANAGEMENT LTD,675,Guaranteed Rent Scheme,Rent Payable,11-Apr-23,2324/01,SME,N,
367753,COOKS BLIND AND SHUTTERS LTD,498.5,Creeting Rd Depot,Repairs,31-Mar-23,2324/01,SME,Y,50%,,
367844,COOKS BLIND AND SHUTTERS LTD,382,Creeting Rd Depot,Repairs,31-Mar-23,2324/01,SME,Y,50%,,
368058,OAKPARK SECURITY SYSTEMS LTD,"1,395.00",Temporary Accommodation,Misc Premises Costs,31-Mar-23,2324/01,LGE,N,
367793,FLAGSHIP HOUSING GROUP LTD-RENT ACCOUNT,"2,728.52",Homeless Prevention Fund,Misc Supplies & Services Costs,12-Apr-23,2324/01,LGE,N,
368018,FLAGSHIP HOUSING GROUP LTD-RENT ACCOUNT,400,Household Support Grant,Misc Supplies & Services Costs,20-Apr-23,2324/01,LGE,N,
368105,FLAGSHIP HOUSING GROUP LTD-RENT ACCOUNT,692.33,Homeless Prevention Fund,Misc Supplies & Services Costs,25-Apr-23,2324/01,LGE,N,
367882,HUGHES TRADE,277.73,Temporary Accommodation,Furniture,14-Apr-23,2324/01,LGE,N,
367884,HUGHES TRADE,312.33,Household Support Grant,Furniture,14-Apr-23,2324/01,LGE,N,
367507,APTL ENTERPRISES LTD,"4,326.67",PV Panels,Contracted Services,31-Mar-23,2324/01,SME,N,
367691,APTL ENTERPRISES LTD,"11,240.00",PV Panels,Contracted Services,31-Mar-23,2324/01,SME,N,
367629,WASHCO LTD,467,Sheltered Accommodation,"Equipment, Tools & Materials",04-Jan-23,2324/01,SME,N,
367706,ANGLIA COMMERCIAL FLOORING LTD,"1,106.32",Building Services,Repairs,06-Apr-23,2324/01,SME,N,
367710,ANGLIA COMMERCIAL FLOORING LTD,"1,122.46",Voids Maintenance,Repairs,28-Mar-23,2324/01,SME,N,
367711,ANGLIA COMMERCIAL FLOORING LTD,529.7,Voids Maintenance,Repairs,28-Mar-23,2324/01,SME,N,
367778,ANGLIA COMMERCIAL FLOORING LTD,511.35,Building Services,Repairs,11-Apr-23,2324/01,SME,N,
367787,ANGLIA COMMERCIAL FLOORING LTD,697.46,Voids Maintenance,Repairs,06-Apr-23,2324/01,SME,N,
367788,ANGLIA COMMERCIAL FLOORING LTD,360.76,Voids Maintenance,Repairs,28-Mar-23,2324/01,SME,N,
367999,ANGLIA COMMERCIAL FLOORING LTD,258.46,Building Services,Repairs,20-Apr-23,2324/01,SME,N,
368000,ANGLIA COMMERCIAL FLOORING LTD,348.73,Building Services,Repairs,20-Apr-23,2324/01,SME,N,
368008,ANGLIA COMMERCIAL FLOORING LTD,291.53,Building Services,Repairs,17-Jan-23,2324/01,SME,N,
368009,ANGLIA COMMERCIAL FLOORING LTD,945.96,Voids Maintenance,Repairs,06-Apr-23,2324/01,SME,N,
368010,ANGLIA COMMERCIAL FLOORING LTD,517.08,Voids Maintenance,Repairs,11-Apr-23,2324/01,SME,N,
368012,ANGLIA COMMERCIAL FLOORING LTD,491.65,Voids Maintenance,Repairs,06-Apr-23,2324/01,SME,N,
423225,ANGLIAN WATER BUS (NAT) LTD T/A WAVE,66.27,C Parks General,Water Rates - Metered,14-Apr-23,2324/01,LGE,N,
423225,ANGLIAN WATER BUS (NAT) LTD T/A WAVE,"1,566.88",Creeting Rd Depot,Water Rates - Metered,14-Apr-23,2324/01,LGE,Y,50%,,
423225,ANGLIAN WATER BUS (NAT) LTD T/A WAVE,128.5,Headquarters General,Water Rates - Metered,14-Apr-23,2324/01,LGE,N,
423225,ANGLIAN WATER BUS (NAT) LTD T/A WAVE,29.8,HRA Strategic Property,Water Rates - Metered,14-Apr-23,2324/01,LGE,N,
423225,ANGLIAN WATER BUS (NAT) LTD T/A WAVE,479.69,Open Spaces,Water Rates - Metered,14-Apr-23,2324/01,LGE,N,
423225,ANGLIAN WATER BUS (NAT) LTD T/A WAVE,244.87,Public Conveniences,Water Rates - Metered,14-Apr-23,2324/01,LGE,N,
423225,ANGLIAN WATER BUS (NAT) LTD T/A WAVE,4.65,Recycling Centre,Water Rates - Metered,14-Apr-23,2324/01,LGE,N,
423225,ANGLIAN WATER BUS (NAT) LTD T/A WAVE,4.65,Sewage Treatment Works,Water Rates - Metered,14-Apr-23,2324/01,LGE,N,
423225,ANGLIAN WATER BUS (NAT) LTD T/A WAVE,-981.09,Sheltered Accommodation,Water Rates - Metered,14-Apr-23,2324/01,LGE,N,
423225,ANGLIAN WATER BUS (NAT) LTD T/A WAVE,17.99,Tacon Close Eye TDP,Water Rates - Metered,14-Apr-23,2324/01,LGE,N,
423225,ANGLIAN WATER BUS (NAT) LTD T/A WAVE,61.31,Temporary Accommodation,Water Rates - Metered,14-Apr-23,2324/01,LGE,N,
423225,ANGLIAN WATER BUS (NAT) LTD T/A WAVE,14.37,Tenancy Services,Water Rates - Metered,14-Apr-23,2324/01,LGE,N,
423225,ANGLIAN WATER BUS (NAT) LTD T/A WAVE,23.46,Wingfield Barns,Water Rates - Metered,14-Apr-23,2324/01,LGE,N,
367591,STUDLEY CAPITAL LIMITED,950,MSM Skills & Innovation Centre,Prof & Consultancy Fees,03-Apr-23,2324/01,ST,N,
367592,STUDLEY CAPITAL LIMITED,593.75,MSM Feasibility & Match Fundin,Prof & Consultancy Fees,03-Apr-23,2324/01,ST,N,
367685,GREENACRE RECRUITMENT LTD,"2,075.00",Building Services,Agency Staff,05-Apr-23,2324/01,SME,Y,50%,,
367816,GREENACRE RECRUITMENT LTD,415,Building Services,Agency Staff,12-Apr-23,2324/01,SME,Y,50%,,
367962,GREENACRE RECRUITMENT LTD,"1,660.00",Building Services,Agency Staff,19-Apr-23,2324/01,SME,Y,50%,,
367754,2ND MID SUFFOLK BOYS BRIGADE&GIRLS ASSOC,525,VCSE Resilience,"Equipment, Tools & Materials",05-Apr-23,2324/01,SME,N,
367066,WATERLOGIC,827.9,Creeting Rd Depot,Contracted Services,15-Mar-23,2324/01,LGE,Y,50%,,
367760,PENTACO CONSTRUCTION LTD,"483,545.00",Stowmarket Middle School,Major Contracts,31-Mar-23,2324/01,SME,N,
367647,STOWMARKET RELIEF TRUST,"5,000.00",VCSE Resilience,"Equipment, Tools & Materials",04-Apr-23,2324/01,SME,N,
367881,EYES OPEN CIC,"3,549.00",Grants & Contrbns,Grants,14-Apr-23,2324/01,SME,N,
367798,FEILDEN MAWSON  LLP,"1,085.00",Major Imps,Prof & Consultancy Fees,28-Feb-23,2324/01,SME,N,
368116,LIMELEASE LTD,435,Guaranteed Rent Scheme,Rent Payable,25-Apr-23,2324/01,SME,N,
367369,NOVUS PROPERTY SOLUTIONS LTD,"20,520.00",Wingfield Barns,Annual Bldg Maint Contracts,28-Mar-23,2324/01,LGE,N,
367551,BUCHER MUNICIPAL LTD,"1,519.65",Street & Major Road Cleansing,Plant & Vehicle - Other costs,31-Mar-23,2324/01,LGE,Y,50%,,
367784,BUCHER MUNICIPAL LTD,509.71,Street & Major Road Cleansing,Plant & Vehicle - Other costs,04-Apr-23,2324/01,LGE,N,
368088,PRIVATE LANDLORD,836.5,Guaranteed Rent Scheme,Rent Payable,25-Apr-23,2324/01,ST,N,
423177,PAUL WRIGHT & CO,"1,500.00",Guaranteed Rent Scheme,Misc Supplies & Services Costs,06-Apr-23,2324/01,SME,N,
423177,PAUL WRIGHT & CO,560.56,Guaranteed Rent Scheme,Rent Payable,06-Apr-23,2324/01,SME,N,
367578,SUFFOLK DOORS & WINDOWS LTD,950,Building Services,Repairs,31-Mar-23,2324/01,SME,N,
367789,SUFFOLK DOORS & WINDOWS LTD,470,Building Services,Repairs,11-Apr-23,2324/01,SME,N,
367865,SUFFOLK DOORS & WINDOWS LTD,400,Building Services,Repairs,11-Apr-23,2324/01,SME,N,
367694,PRIVATE LANDLORD,786.5,Guaranteed Rent Scheme,Rent Payable,11-Apr-23,2324/01,ST,N,
367650,COUNTRYSTYLE RECYCLING LTD,"4,627.52",Bring Sites,Contracted Services,31-Mar-23,2324/01,SME,N,
367673,CARE PLUS STAFFORDSHIRE LTD,"6,566.62",Sheltered General Mgmt,Community Alarm Costs,01-Apr-23,2324/01,SME,N,
367673,CARE PLUS STAFFORDSHIRE LTD,58.37,Homelessness Private Sector,Telephone Costs,01-Apr-23,2324/01,SME,N,
367673,CARE PLUS STAFFORDSHIRE LTD,496.14,Building Services,Telephone Costs,01-Apr-23,2324/01,SME,N,
367673,CARE PLUS STAFFORDSHIRE LTD,58.37,Animal Welfare Licensing,Telephone Costs,01-Apr-23,2324/01,SME,N,
367673,CARE PLUS STAFFORDSHIRE LTD,58.37,Bldg Control Commercial Income,Telephone Costs,01-Apr-23,2324/01,SME,N,
367673,CARE PLUS STAFFORDSHIRE LTD,58.37,Civil Protection & Emerg Plg,Telephone Costs,01-Apr-23,2324/01,SME,N,
367467,VECTEC LIMITED,620,Jnt Waste Contract,"Equipment, Tools & Materials",30-Mar-23,2324/01,SME,Y,50%,,
367637,ARAN INSULATION LTD,"3,680.48",Dampness,Repairs,03-Apr-23,2324/01,SME,N,
367690,ARAN INSULATION LTD,"2,175.36",Insulation Imps,Repairs,06-Apr-23,2324/01,SME,N,
367858,ARAN INSULATION LTD,"4,077.79",Insulation Imps,Improvements,13-Apr-23,2324/01,SME,N,
367556,IAN BOOTH CONSULTANT ENGINEER LTD,720,Strategic Assets,Prof & Consultancy Fees,02-Apr-23,2324/01,SME,N,
367603,EYE & DISTRICT CRICKET CLUB,"3,850.00",VCSE Resilience,"Equipment, Tools & Materials",03-Apr-23,2324/01,SME,N,
367554,MARCHDELL LTD,715,Guaranteed Rent Scheme,Rent Payable,03-Apr-23,2324/01,SME,N,
367553,PRIVATE LANDLORD,"1,300.00",Guaranteed Rent Scheme,Rent Payable,03-Apr-23,2324/01,ST,N,
367783,E.ON NEXT,54.29,HRA Strategic Property,Electricity,30-Mar-23,2324/01,LGE,N,
367783,E.ON NEXT,205.06,HRA Strategic Property,Gas,30-Mar-23,2324/01,LGE,N,
368117,PRIVATE LANDLORD,669,Guaranteed Rent Scheme,Rent Payable,25-Apr-23,2324/01,ST,N,
367771,PRIVATE LANDLORD,650,Guaranteed Rent Scheme,Rent Payable,11-Apr-23,2324/01,ST,N,
367855,BACTON UNITED 89 FOOTBALL CLUB,"4,716.09",Community Fund Projects-Grants,Grants,13-Apr-23,2324/01,SME,N,
367855,BACTON UNITED 89 FOOTBALL CLUB,"10,783.91",Communities,Grants,13-Apr-23,2324/01,SME,N,
367953,NORMANTON SCREENPRINT,"1,200.00",Environmental Protection,Misc Supplies & Services Costs,18-Apr-23,2324/01,SME,Y,50%,,
367696,PRIVATE LANDLORD,555,Guaranteed Rent Scheme,Rent Payable,11-Apr-23,2324/01,ST,N,
367571,SHJ HOMES LTD,525,Guaranteed Rent Scheme,Rent Payable,04-Apr-23,2324/01,SME,N,
367893,SHJ HOMES LTD,550,Guaranteed Rent Scheme,Rent Payable,17-Apr-23,2324/01,SME,N,
367579,DUDLEY SMITH PARTNERSHIP LTD,900,Cross Street Tech Hub,Prof & Consultancy Fees,31-Mar-23,2324/01,SME,N,
367938,CASPERS CATERING AND CAKES,467.49,Devt Management - Apps,Food & Drink,15-Mar-23,2324/01,SME,Y,50%,,
368074,CASPERS CATERING AND CAKES,708.33,Endeavour House - HQ,Food & Drink,20-Apr-23,2324/01,SME,Y,50%,,
367567,HAMILTON SMITH LETTINGS,550,Guaranteed Rent Scheme,Rent Payable,04-Apr-23,2324/01,SME,N,
367745,HAMILTON SMITH LETTINGS,590,Guaranteed Rent Scheme,Rent Payable,11-Apr-23,2324/01,SME,N,
367892,HAMILTON SMITH LETTINGS,775,Guaranteed Rent Scheme,Rent Payable,17-Apr-23,2324/01,SME,N,
368118,HAMILTON SMITH LETTINGS,"2,000.00",Guaranteed Rent Scheme,Rent Payable,25-Apr-23,2324/01,SME,N,
423232,HAMILTON SMITH LETTINGS,550,Guaranteed Rent Scheme,Rent Payable,25-Apr-23,2324/01,SME,N,
368022,ADECCO UK LTD,961.52,Organisational Devt,Agency Staff,18-Apr-23,2324/01,LGE,Y,50%,,
367868,PAY 360 LIMITED,"8,778.72",Bank Chgs,Bank Charges,14-Apr-23,2324/01,LGE,N,
367759,TILE HILL INTERIM & EXECUTIVE LTD,"6,240.00",Financial Servs,Agency Staff,06-Apr-23,2324/01,SME,Y,50%,,
367555,PRIVATE LANDLORD,900,Guaranteed Rent Scheme,Rent Payable,03-Apr-23,2324/01,ST,N,
367701,PRIVATE LANDLORD,875,Guaranteed Rent Scheme,Rent Payable,11-Apr-23,2324/01,ST,N,
367770,BENICIA PROPERTIES LTD,575,Guaranteed Rent Scheme,Rent Payable,11-Apr-23,2324/01,SME,N,
367967,GRANTHAM INDUSTRIES LTD T/A GBM DEMOLITI,"131,716.87",Paddock House Eye,Annual Bldg Maint Contracts,13-Apr-23,2324/01,SME,N,
368093,PRIVATE LANDLORD,800,Guaranteed Rent Scheme,Rent Payable,25-Apr-23,2324/01,ST,N,
423231,PRIVATE LANDLORD,"1,500.00",Guaranteed Rent Scheme,Misc Supplies & Services Costs,25-Apr-23,2324/01,SME,N,
367758,NEWSQUEST MEDIA GROUP,"1,036.20",Devt Management - Apps,Advertising&mkting (non-staff),06-Apr-23,2324/01,LGE,N,
367861,NEWSQUEST MEDIA GROUP,"1,186.00",Devt Management - Apps,Advertising&mkting (non-staff),13-Apr-23,2324/01,LGE,N,
367862,FMG CONSULTING LTD,"3,750.00",SHELF Project,Prof & Consultancy Fees,31-Mar-23,2324/01,SME,N,
367743,PRIVATE LANDLORD,800,Guaranteed Rent Scheme,Rent Payable,11-Apr-23,2324/01,ST,N,
367575,BOSTON SEEDS LTD,432.49,Open Spaces,Horticultural Purchases,29-Mar-23,2324/01,SME,Y,50%,,
367601,STEALTH REMOVALS LTD,276,Homeless Prevention Fund,Removal Expenses,03-Apr-23,2324/01,SME,N,
367683,GCS COMPLIANCE LTD,"1,567.62",Building Services,Prof & Consultancy Fees,31-Mar-23,2324/01,SME,N,
367757,REMINISCENCE LEARNING,"3,333.00",Community Wellbeing,Contributions & Donations,05-Apr-23,2324/01,SME,N,
367117,SURFACING STANDARDS LTD,"2,200.00",SHELF Project,Prof & Consultancy Fees,18-Mar-23,2324/01,SME,N,
368069,CLAYDON EXECUTIVE TRAVEL LTD,295,Cost of Democracy,Member's Travel and Subs,16-Dec-22,2324/01,SME,N,
367587,INGENT CONSULTING ENGINEERS,"1,200.00",SHELF Project,Prof & Consultancy Fees,30-Mar-23,2324/01,SME,N,
368115,THOMPSONS ESTATE OFFICES LTD,670,Guaranteed Rent Scheme,Rent Payable,25-Apr-23,2324/01,SME,N,
368079,MENDLESHAM EDUCATIONAL FOUNDATION,"1,380.00",VCSE Resilience,"Equipment, Tools & Materials",24-Apr-23,2324/01,SME,N,
367693,PRIVATE LANDLORD,895,Guaranteed Rent Scheme,Rent Payable,11-Apr-23,2324/01,ST,N,
423228,SEFE ENERGY LIMITED,343.04,Creeting Rd Depot,Gas,17-Apr-23,2324/01,LGE,Y,50%,,
423228,SEFE ENERGY LIMITED,28.88,Headquarters General,Gas,17-Apr-23,2324/01,LGE,N,
423228,SEFE ENERGY LIMITED,198.54,HRA Strategic Property,Gas,17-Apr-23,2324/01,LGE,N,
423228,SEFE ENERGY LIMITED,"17,218.75",Leisure Contract,Gas,17-Apr-23,2324/01,LGE,N,
423228,SEFE ENERGY LIMITED,13.54,Open Spaces,Gas,17-Apr-23,2324/01,LGE,N,
423228,SEFE ENERGY LIMITED,"6,975.75",Sheltered Accommodation,Gas,17-Apr-23,2324/01,LGE,N,
423228,SEFE ENERGY LIMITED,"1,095.28",Temporary Accommodation,Gas,17-Apr-23,2324/01,LGE,N,
423228,SEFE ENERGY LIMITED,591.63,Tenancy Services,Gas,17-Apr-23,2324/01,LGE,N,
367964,KICKS & TRICKS LTD,"1,140.00",Holiday Activity Fund,"Equipment, Tools & Materials",18-Apr-23,2324/01,SME,N,
367769,YELLOW HOMES LIMITED,"1,785.00",Guaranteed Rent Scheme,Rent Payable,12-Apr-23,2324/01,SME,N,
423235,YELLOW HOMES LIMITED,"3,000.00",Guaranteed Rent Scheme,Misc Supplies & Services Costs,25-Apr-23,2324/01,SME,N,
367899,PRIVATE LANDLORD,"1,050.00",Guaranteed Rent Scheme,Rent Payable,17-Apr-23,2324/01,SME,N,
367998,BRETT VALE PROPERTY MAINTENANCE,"1,648.00",Other Temp Accommodation,Misc Supplies & Services Costs,18-Apr-23,2324/01,ST,N,
367846,CRANBURY REMOVALS,985.14,Homeless Prevention Fund,Removal Expenses,13-Apr-23,2324/01,SME,N,
367830,THE COMMUNITY HEARTBEAT TRUST,"2,940.00",CIL Funded REFCUS,Grants,13-Apr-23,2324/01,SME,N,
367599,SHIRES RESIDENTIAL,"2,400.00",Homeless Prevention Fund,Misc Supplies & Services Costs,03-Apr-23,2324/01,SME,N,
367746,1ST MID SUFFOLK BBGA (CLUB),"3,000.00",VCSE Resilience,"Equipment, Tools & Materials",05-Apr-23,2324/01,SME,N,
423224,PRIVATE LANDLORD,880,Guaranteed Rent Scheme,Rent Payable,13-Apr-23,2324/01,ST,N,
423224,PRIVATE LANDLORD,"2,500.00",Guaranteed Rent Scheme,Misc Supplies & Services Costs,13-Apr-23,2324/01,ST,N,
368051,PROPERTY LETTING FURNITURE SOLUTIONS LTD,"1,650.00",Household Support Grant,Furniture,21-Apr-23,2324/01,SME,N,
367792,PRIVATE LANDLORD,500,Homeless Prevention Fund,Misc Supplies & Services Costs,11-Apr-23,2324/01,ST,N,
368025,CROWD TECHNOLOGIES LTD T/A SOCROWD,"7,920.00",Communications,Subscriptions,28-Mar-23,2324/01,SME,Y,50%,,
367888,STOW & DIST ROYAL BRITISH LEGION CLUB,"5,000.00",Grants & Contrbns,Grants,14-Apr-23,2324/01,SME,N,
367988,RICKINGHALL&BOTESDALE BABY&TODD GRP,800,VCSE Resilience,"Equipment, Tools & Materials",19-Apr-23,2324/01,SME,N,
368108,CLARION HOUSING ASSOCIATION LTD,"1,000.00",Household Support Grant,Misc Supplies & Services Costs,25-Apr-23,2324/01,LGE,N,
423236,PRIVATE LANDLORD,"1,197.00",Homeless Prevention Fund,Misc Supplies & Services Costs,25-Apr-23,2324/01,SME,N,
EBC0051262,WAVENEY LOWER YARE & LOTHINGLAND ID B,21.82,Current Assets,LLOYDS GENERAL PAYMENTS,13-Apr-23,2324/01,SME,N,
367529,LEX AUTOLEASE,-216.24,Building Services,Lease Cars - Payment,30-Mar-23,2324/01,SME,Y,50%,,
1020,BENENDEN HEALTH,23.8,Current Assets,LLOYDS GENERAL PAYMENTS,31-Mar-23,2324/01,LGE,N,
423172,BENENDEN HEALTH,-23.8,Organisational Devt,Misc Employee Costs,09-Mar-23,2324/01,LGE,Y,50%,,
367644,KNOWLES ASSOCIATES TFM LTD,-181.55,Building Services,Lease Cars - Payment,31-Mar-23,2324/01,SME,Y,50%,,
367676,KNOWLES ASSOCIATES TFM LTD,-181.55,Building Services,Lease Cars - Payment,31-Mar-23,2324/01,SME,Y,50%,,
368082,AARON SERVICES LTD,"30,823.60",Planned Maint - Heating,Property Servicing,28-Mar-23,2324/02,SME,N,
368083,AARON SERVICES LTD,"30,823.60",Planned Maint - Heating,Property Servicing,25-Apr-23,2324/02,SME,N,
368433,AARON SERVICES LTD,"18,435.16",Planned Maint - Heating,Property Servicing,09-May-23,2324/02,SME,N,
423254,AARON SERVICES LTD,140.6,Planned Maint - Heating,Property Servicing,27-Apr-23,2324/02,SME,N,
423254,AARON SERVICES LTD,481.68,Voids Maintenance,Repairs,27-Apr-23,2324/02,SME,N,
423255,AARON SERVICES LTD,"20,460.46",Planned Maint - Heating,Property Servicing,27-Apr-23,2324/02,SME,N,
423255,AARON SERVICES LTD,"1,127.91",Voids Maintenance,Repairs,27-Apr-23,2324/02,SME,N,
423256,AARON SERVICES LTD,"3,233.54",Planned Maint - Heating,Property Servicing,27-Apr-23,2324/02,SME,Y,2%,,
423256,AARON SERVICES LTD,637.99,Voids Maintenance,Repairs,27-Apr-23,2324/02,SME,N,
423257,AARON SERVICES LTD,"9,097.41",Planned Maint - Heating,Property Servicing,11-May-23,2324/02,SME,N,
423257,AARON SERVICES LTD,"2,851.65",Voids Maintenance,Repairs,11-May-23,2324/02,SME,N,
423266,AARON SERVICES LTD,"1,596.35",Voids Maintenance,Repairs,18-May-23,2324/02,SME,N,
423266,AARON SERVICES LTD,"2,478.16",Planned Maint - Heating,Property Servicing,18-May-23,2324/02,SME,N,
368576,AE WHITE SURFACING,680,C Parks General,Repairs,11-May-23,2324/02,SME,N,
368579,AE WHITE SURFACING,550,C Parks General,Repairs,11-May-23,2324/02,SME,N,
368580,AE WHITE SURFACING,"3,720.00",C Parks General,Repairs,11-May-23,2324/02,SME,N,
368581,AE WHITE SURFACING,595,C Parks General,Repairs,11-May-23,2324/02,SME,N,
368723,AE WHITE SURFACING,"13,216.00",Council House Adaptions,Improvements,16-May-23,2324/02,SME,N,
368724,AE WHITE SURFACING,"11,150.00",C Parks General,Repairs,16-May-23,2324/02,SME,N,
368422,ANGLIAN WATER,477.71,Tenancy Services,Water Rates - Metered,24-Apr-23,2324/02,LGE,N,
368526,ANGLIAN WATER,"8,625.42",Tenancy Services,Water Rates - Metered,06-Mar-23,2324/02,LGE,N,
368527,ANGLIAN WATER,"2,219.38",Sheltered Accommodation,Water Rates - Metered,30-Dec-20,2324/02,LGE,N,
368528,ANGLIAN WATER,"1,925.99",Sheltered Accommodation,Water Rates - Metered,30-Dec-20,2324/02,LGE,N,
368799,ANGLIAN WATER,348.12,Tenancy Services,Water Rates - Metered,15-May-23,2324/02,LGE,N,
368956,ANGLIAN WATER,466.79,Water Sampling,Sampling & Analysis,23-May-23,2324/02,LGE,N,
368957,ANGLIAN WATER,541.6,Water Sampling,Sampling & Analysis,23-May-23,2324/02,LGE,N,
368958,ANGLIAN WATER,700.64,Water Sampling,Sampling & Analysis,23-May-23,2324/02,LGE,N,
369072,ANGLIAN WATER,477.71,Tenancy Services,Water Rates - Metered,24-Apr-23,2324/02,LGE,N,
368712,AQUAJET CLEANING EQUIPMENT LTD,308.24,Creeting Rd Depot,"Equipment, Tools & Materials",28-Apr-23,2324/02,SME,Y,50%,,
368421,BEN BURGESS GARDEN EQUIPMENT,"1,500.00",Open Spaces,"Equipment, Tools & Materials",27-Apr-23,2324/02,SME,N,
368130,BINDER LTD,435.62,Sewage Treatment Works,Contracted Services,25-Apr-23,2324/02,SME,N,
368337,BOWER FULLER,409.74,Leisure Contract,Repairs,28-Apr-23,2324/02,SME,N,
368338,BOWER FULLER,500,Creeting Rd Depot,Electricity,28-Apr-23,2324/02,SME,Y,50%,,
368338,BOWER FULLER,"1,078.40",Sheltered Accommodation,Electricity,28-Apr-23,2324/02,SME,N,
368338,BOWER FULLER,926.8,Tenancy Services,Electricity,28-Apr-23,2324/02,SME,N,
368342,BOWER FULLER,334.78,Creeting Rd Depot,Repairs,28-Apr-23,2324/02,SME,Y,50%,,
368346,BOWER FULLER,300,Sheltered Accommodation,Fire Prevention,28-Apr-23,2324/02,SME,N,
368347,BOWER FULLER,414,Sheltered Accommodation,Fire Prevention,28-Apr-23,2324/02,SME,N,
368351,BOWER FULLER,360,Tenancy Services,Fire Prevention,28-Apr-23,2324/02,SME,N,
368352,BOWER FULLER,"1,716.00",Sheltered Accommodation,Fire Prevention,28-Apr-23,2324/02,SME,N,
368354,BOWER FULLER,"1,560.00",Sheltered Accommodation,Fire Prevention,28-Apr-23,2324/02,SME,N,
368554,BOWER FULLER,"5,745.50",Tenancy Services,Fire Prevention,11-May-23,2324/02,SME,N,
368865,BURY TURFCARE LTD,"5,700.00",Open Spaces,Horticultural Purchases,15-May-23,2324/02,SME,N,
368601,BUTTON & TURNER LTD,290.63,Street & Major Road Cleansing,Plant & Vehicle - Other costs,14-Apr-23,2324/02,SME,N,
368603,BUTTON & TURNER LTD,"2,023.06",Open Spaces,Plant & Vehicle - Other costs,11-Apr-23,2324/02,SME,N,
368604,BUTTON & TURNER LTD,319.86,Open Spaces,Plant & Vehicle - Other costs,03-Apr-23,2324/02,SME,N,
368606,BUTTON & TURNER LTD,259.09,Street & Major Road Cleansing,Plant & Vehicle - Other costs,03-Apr-23,2324/02,SME,N,
368330,AQUASAMPLERS,793,Water Sampling,Sampling & Analysis,31-Mar-23,2324/02,SME,N,
368288,CEDARS HOTEL LTD,"55,571.00",Homelessness Private Sector,B&B Costs,04-May-23,2324/02,SME,Y,50%,,
368824,CEDARS HOTEL LTD,360,Other Temp Accommodation,"Equipment, Tools & Materials",19-May-23,2324/02,SME,N,
368600,CENTRAL TYRE LTD,667,Street & Major Road Cleansing,Plant & Vehicle - Other costs,03-May-23,2324/02,SME,N,
368230,CHAPPLE SIGNS LTD,275.59,MSM Town Centre Vision,"Equipment, Tools & Materials",30-Apr-23,2324/02,SME,N,
368456,CHASSIS-CAB LTD,"1,289.22",Street & Major Road Cleansing,Plant & Vehicle - Other costs,09-May-23,2324/02,SME,N,
368228,CHEQUERS HOTEL LTD,"1,260.00",Homelessness Private Sector,B&B Costs,27-Feb-23,2324/02,SME,N,
367688,CHIPSIDE LTD,986.83,C Parks General,Contracted Services,31-Mar-23,2324/02,SME,N,
368211,CLARKE FENCING LTD,"1,122.20",Open Spaces,"Equipment, Tools & Materials",27-Apr-23,2324/02,SME,N,
368212,CLARKE FENCING LTD,"1,025.82",Open Spaces,"Equipment, Tools & Materials",27-Apr-23,2324/02,SME,N,
368268,CLARKE FENCING LTD,478.48,Open Spaces,"Equipment, Tools & Materials",28-Apr-23,2324/02,SME,N,
368696,CLARKE FENCING LTD,333.83,Open Spaces,"Equipment, Tools & Materials",15-May-23,2324/02,SME,N,
368708,CLARKE FENCING LTD,271.02,Open Spaces,"Equipment, Tools & Materials",12-May-23,2324/02,SME,N,
368081,D W ADAMS LTD,618,Building Services,Repairs,06-Apr-23,2324/02,SME,N,
368591,D W ADAMS LTD,"4,686.00",Council House Adaptions,Improvements,12-May-23,2324/02,SME,N,
368721,D W ADAMS LTD,"4,801.00",Council House Adaptions,Improvements,16-May-23,2324/02,SME,N,
368666,DANCE EAST,"2,925.00",Grants & Contrbns,Grants,15-May-23,2324/02,SME,N,
368147,DISTRICT COUNCILS' NETWORK,"2,875.00",Management Team,Subscriptions,26-Apr-23,2324/02,LGE,N,
368907,DOLPHIN STAIRLIFTS (EAST ANGLIA) LTD,"2,124.00",Mand Disabled Facilities Grant,Grants,23-May-23,2324/02,SME,N,
368558,CIVICA ELECTION SERVICES,"46,424.71",Electoral Registration,Returning Officer Fees,28-Apr-23,2324/02,LGE,N,
368373,ENGLISH SECURITY,447.81,Sheltered Accommodation,Fire Prevention,04-May-23,2324/02,SME,N,
368779,ENGLISH SECURITY,663.24,Sheltered Accommodation,Fire Prevention,18-May-23,2324/02,SME,N,
368923,ENGLISH SECURITY,766.52,Sheltered Accommodation,Fire Prevention,23-May-23,2324/02,SME,N,
368059,FELLBRIDGE BUILDING SERVICES,"14,973.95",Voids Maintenance,Repairs,24-Apr-23,2324/02,SME,N,
368066,FELLBRIDGE BUILDING SERVICES,"29,289.34",Voids Maintenance,Repairs,24-Apr-23,2324/02,SME,N,
368195,FELLBRIDGE BUILDING SERVICES,"1,070.40",Building Services,Repairs,27-Apr-23,2324/02,SME,N,
368520,FELLBRIDGE BUILDING SERVICES,407.9,Building Services,Repairs,08-May-23,2324/02,SME,N,
368703,FELLBRIDGE BUILDING SERVICES,"17,146.49",Major Imps,Repairs,16-May-23,2324/02,SME,N,
368767,FELLBRIDGE BUILDING SERVICES,"14,267.12",Major Imps,Repairs,18-May-23,2324/02,SME,N,
368768,FELLBRIDGE BUILDING SERVICES,"13,753.63",Major Imps,Repairs,18-May-23,2324/02,SME,N,
368258,FORE-MOST GARAGE DOORS LTD,"1,407.40",Building Services,Repairs,30-Apr-23,2324/02,SME,N,
368191,GB ADAPTIONS LTD,"7,420.00",Mand Disabled Facilities Grant,Grants,27-Apr-23,2324/02,SME,N,
368438,GB ADAPTIONS LTD,"6,706.00",Mand Disabled Facilities Grant,Grants,09-May-23,2324/02,SME,N,
367755,G4S CASH SOLUTIONS LTD,"1,585.20",C Parks General,Audit Fees,31-Mar-23,2324/02,LGE,N,
368692,GHB ROOFING,"62,028.35",Roofing,Repairs,30-Apr-23,2324/02,SME,N,
368232,GLASDON UK LTD,605.04,Open Spaces,"Equipment, Tools & Materials",24-Apr-23,2324/02,LGE,N,
368068,HUDSON MEDIA PARTNERSHIP LTD,"1,266.00",Bldg Regs Chargeable Serv,Advertising&mkting (non-staff),15-Apr-23,2324/02,SME,Y,45%,,
368540,HUDSON MEDIA PARTNERSHIP LTD,900,Communications,Advertising&mkting (non-staff),26-Apr-23,2324/02,SME,Y,50%,,
369060,HUDSON MEDIA PARTNERSHIP LTD,276,Community Safety-General,Contributions & Donations,30-May-23,2324/02,SME,Y,50%,,
369061,HUDSON MEDIA PARTNERSHIP LTD,990,Community Safety-General,Contributions & Donations,30-May-23,2324/02,SME,Y,50%,,
369024,INSTITUTE OF LICENSING (EVENTS) LTD,"2,000.00",Cost of Democracy,Training,23-Mar-23,2324/02,SME,Y,50%,,
368662,JOHN PEEL CENTRE FOR CREATIVE ARTS,"16,000.00",Grants & Contrbns,Grants,15-May-23,2324/02,SME,N,
369001,KENDA-CLEAN,70,Creeting Rd Depot,Window Cleaning,25-May-23,2324/02,SME,Y,50%,,
369001,KENDA-CLEAN,"2,699.00",Sheltered Accommodation,Window Cleaning,25-May-23,2324/02,SME,N,
369001,KENDA-CLEAN,35,Tenancy Services,Window Cleaning,25-May-23,2324/02,SME,N,
368100,KEYWAYS THE LOCKSMITHS LTD,420,New Bld/acquisition,BMBS Repairs Work,25-Apr-23,2324/02,SME,Y,50%,,
368726,KEYWAYS THE LOCKSMITHS LTD,270,Sheltered Accommodation,Repairs,17-May-23,2324/02,SME,N,
368728,KEYWAYS THE LOCKSMITHS LTD,300,Building Services,Repairs,17-May-23,2324/02,SME,N,
367909,LABC,"1,240.00",Bldg Regs Chargeable Serv,Conference Expenses,31-Mar-23,2324/02,SME,Y,45%,,
367985,M & H CIVIL ENGINEERING LTD,"2,140.10",Building Services,Repairs,19-Apr-23,2324/02,SME,N,
368334,M & H CIVIL ENGINEERING LTD,823.6,Building Services,Repairs,02-May-23,2324/02,SME,N,
368336,M & H CIVIL ENGINEERING LTD,"2,455.00",Building Services,Repairs,02-May-23,2324/02,SME,N,
368557,M & H CIVIL ENGINEERING LTD,"1,038.86",Building Services,Repairs,24-Apr-23,2324/02,SME,N,
368975,M & H CIVIL ENGINEERING LTD,744.52,Building Services,Repairs,25-May-23,2324/02,SME,N,
368716,MALJON TIMBER PRESERVATION LTD,342,Insulation Imps,Repairs,16-May-23,2324/02,SME,N,
368649,MATERIAL CHANGE COMPOSTING LTD,"3,876.00",Jnt Waste Contract,"Equipment, Tools & Materials",12-May-23,2324/02,LGE,Y,50%,,
368348,MB TREES (EAST ANGLIA) LTD,320,Tenants Forum,Horticultural Purchases,04-May-23,2324/02,SME,N,
368763,MB TREES (EAST ANGLIA) LTD,"3,220.00",Tenancy Services,Grounds & Site Maintenance,18-May-23,2324/02,SME,N,
368997,MB TREES (EAST ANGLIA) LTD,680,Public Tree Programme,Tree felling/maintenance,25-May-23,2324/02,SME,N,
368653,MERCURY BUILDING SERVICES LTD,456,Sheltered Accommodation,Repairs,12-May-23,2324/02,SME,N,
368449,MIXBROW LTD,"7,126.56",Council House Adaptions,Improvements,05-May-23,2324/02,SME,N,
368584,ORWELL HOUSING ASSOCIATION LTD,"1,000.00",Needham Market Middle School,Prof & Consultancy Fees,10-May-23,2324/02,LGE,N,
368479,PLAYDALE PLAYGROUNDS LTD,351.92,Open Spaces,"Equipment, Tools & Materials",09-May-23,2324/02,SME,N,
368190,PRO-FLAT SPECIALIST SERVICES LTD,"1,360.00",Building Services,Repairs,27-Apr-23,2324/02,SME,N,
368197,PRO-FLAT SPECIALIST SERVICES LTD,760,Creeting Rd Depot,Repairs,25-Apr-23,2324/02,SME,Y,50%,,
368198,PRO-FLAT SPECIALIST SERVICES LTD,580,Building Services,Repairs,25-Apr-23,2324/02,SME,N,
368362,PRO-FLAT SPECIALIST SERVICES LTD,"1,342.25",Building Services,Repairs,28-Apr-23,2324/02,SME,N,
368073,REID PLUMBING & HEATING CONTRACTORS LTD,"9,816.80",Central Heating,Major Contracts,24-Apr-23,2324/02,SME,N,
368182,REID PLUMBING & HEATING CONTRACTORS LTD,"5,262.11",Central Heating,Major Contracts,27-Apr-23,2324/02,SME,N,
368280,SACKERS LTD,675.03,Building Services,Waste Disposal,30-Apr-23,2324/02,SME,Y,50%,,
368299,SACKERS LTD,"3,521.31",Building Services,Waste Disposal,30-Apr-23,2324/02,SME,Y,50%,,
368312,SEAGER HOME SOLUTIONS,"30,318.14",Kitchens/Bathrooms,Major Contracts,03-May-23,2324/02,SME,N,
368846,SUDBURY OFFICE SUPPLIES,649.1,Community Safety-General,Contributions & Donations,17-May-23,2324/02,SME,Y,50%,,
368322,SUREFIX,900,Kitchens/Bathrooms,Repairs,24-Apr-23,2324/02,SME,N,
368522,TANKCHANGE LTD,"2,495.00",Central Heating,Improvements,10-May-23,2324/02,SME,N,
368265,THE PLAY INSPECTION COMPANY LTD,"3,511.04",Open Spaces,"Equipment, Tools & Materials",28-Apr-23,2324/02,SME,N,
368273,THE PLAY INSPECTION COMPANY LTD,946.6,Open Spaces,"Equipment, Tools & Materials",28-Apr-23,2324/02,SME,N,
368313,THERMATECH,"4,850.00",Fire Risk Assessment (Flats),Prof & Consultancy Fees,03-May-23,2324/02,SME,N,
368314,THERMATECH,"1,175.00",Fire Risk Assessment (Flats),Prof & Consultancy Fees,03-May-23,2324/02,SME,N,
368769,TRUCKEAST LTD,"1,173.10",Street & Major Road Cleansing,Plant & Vehicle - Other costs,19-Apr-23,2324/02,LGE,N,
369048,TRUCKEAST LTD,330,Street & Major Road Cleansing,Plant & Vehicle - Other costs,30-May-23,2324/02,LGE,N,
368998,VODAFONE CORPORATE LTD,"1,577.25",ICT,Telephone Costs,22-Apr-23,2324/02,LGE,N,
368248,WEST END REHOMING,640.3,Dog Control,Collection Charges,01-May-23,2324/02,SME,N,
368134,WINDIMAN LTD,780,Building Services,Repairs,25-Apr-23,2324/02,SME,N,
368291,WINDIMAN LTD,780,Building Services,Repairs,28-Apr-23,2324/02,SME,N,
368292,WINDIMAN LTD,920,Voids Maintenance,Repairs,28-Apr-23,2324/02,SME,N,
368775,WINDIMAN LTD,800,Building Services,Repairs,18-May-23,2324/02,SME,N,
368776,WINDIMAN LTD,780,Window & Door Rplcmts,Repairs,18-May-23,2324/02,SME,N,
368777,WINDIMAN LTD,350,Building Services,Repairs,18-May-23,2324/02,SME,N,
368787,WINDIMAN LTD,900,Building Services,Repairs,18-May-23,2324/02,SME,N,
368214,WORKWEAR (EAST ANGLIA) LTD,305.1,Open Spaces,Protective clothing,27-Apr-23,2324/02,SME,N,
368214,WORKWEAR (EAST ANGLIA) LTD,305.09,Street & Major Road Cleansing,Protective clothing,27-Apr-23,2324/02,SME,N,
368259,WORKWEAR (EAST ANGLIA) LTD,424.24,Open Spaces,Protective clothing,25-Apr-23,2324/02,SME,N,
368260,WORKWEAR (EAST ANGLIA) LTD,424.24,Open Spaces,Protective clothing,25-Apr-23,2324/02,SME,N,
368262,WORKWEAR (EAST ANGLIA) LTD,372.55,Open Spaces,Protective clothing,25-Apr-23,2324/02,SME,N,
368968,WORKWEAR (EAST ANGLIA) LTD,388.46,Open Spaces,Protective clothing,09-May-23,2324/02,SME,N,
368969,WORKWEAR (EAST ANGLIA) LTD,388.46,Open Spaces,Protective clothing,09-May-23,2324/02,SME,N,
368287,HAYMARKET MEDIA GROUP LTD,"5,160.00",Devt Management - Apps,Subscriptions,03-May-23,2324/02,SME,Y,44%,,
423244,LOCAL GOVERNMENT ASSOCIATION,"10,281.77",Governance,Subscriptions,03-Apr-23,2324/02,LGE,N,
367916,EVERYONE ACTIVE STOWMARKET,"1,119.72",Holiday Activity Fund,"Equipment, Tools & Materials",01-Mar-23,2324/02,SME,N,
368502,EVERYONE ACTIVE STOWMARKET,396.67,Holiday Activity Fund,"Equipment, Tools & Materials",09-May-23,2324/02,SME,N,
368749,IDOX SOFTWARE LTD,"4,575.00",Devt Management - Apps,Desktop Software,18-May-23,2324/02,SME,Y,44%,,
368210,NPS PROPERTY CONSULTANTS LTD,304.2,Assets & Development,Prof & Consultancy Fees,27-Apr-23,2324/02,LGE,N,
368515,SERCO LTD,"318,798.70",Domestic Waste,Refuse Contract,05-May-23,2324/02,LGE,Y,48%,,
368515,SERCO LTD,"24,172.70",Trade Waste,Refuse Contract,05-May-23,2324/02,LGE,Y,60%,,
368515,SERCO LTD,"84,642.60",Garden Waste,Refuse Contract,05-May-23,2324/02,LGE,Y,48%,,
368516,SERCO LTD,"4,587.00",Domestic Waste,Refuse Contract,05-May-23,2324/02,LGE,Y,50%,,
368517,SERCO LTD,"10,000.00",Jnt Waste Contract,Plant & Vehicle Fuel,05-May-23,2324/02,LGE,Y,50%,,
368523,SERCO LTD,"9,799.40",Open Spaces,Plant & Vehicle Fuel,05-May-23,2324/02,LGE,Y,50%,,
368888,SERCO LTD,"10,000.00",Domestic Waste,Refuse Contract,22-May-23,2324/02,LGE,Y,50%,,
423262,EDF ENERGY,179.79,C Parks General,Electricity,14-May-23,2324/02,LGE,N,
423262,EDF ENERGY,679.09,Creeting Rd Depot,Electricity,14-May-23,2324/02,LGE,Y,50%,,
423262,EDF ENERGY,98.27,Headquarters General,Electricity,14-May-23,2324/02,LGE,N,
423262,EDF ENERGY,"21,798.38",Leisure Contract,Electricity,14-May-23,2324/02,LGE,N,
423262,EDF ENERGY,12.45,Open Spaces,Electricity,14-May-23,2324/02,LGE,N,
423262,EDF ENERGY,536.72,Other HRA Temp Accommodation,Electricity,14-May-23,2324/02,LGE,N,
423262,EDF ENERGY,63.55,Pure Gym & Adjacent Building,Electricity,14-May-23,2324/02,LGE,N,
423262,EDF ENERGY,43.6,Sewage Treatment Works,Electricity,14-May-23,2324/02,LGE,N,
423262,EDF ENERGY,"18,245.14",Sheltered Accommodation,Electricity,14-May-23,2324/02,LGE,N,
423262,EDF ENERGY,146.37,Temporary Accommodation,Electricity,14-May-23,2324/02,LGE,N,
423262,EDF ENERGY,"1,345.38",Tenancy Services,Electricity,14-May-23,2324/02,LGE,N,
423262,EDF ENERGY,"2,213.11",Wingfield Barns,Electricity,14-May-23,2324/02,LGE,N,
368665,RURAL COFFEE CARAVAN INFORMATION PROJECT,"10,000.00",Grants & Contrbns,Grants,15-May-23,2324/02,SME,N,
423264,GPC BARCLAYS,"10,838.51",Current Assets,Barclaycard Control,14-May-23,2324/02,LGE,Y,12%,,
423243,ALLSTAR BUSINESS SOLUTIONS LTD,106.42,Housing Options,Plant & Vehicle Fuel,30-Apr-23,2324/02,SME,Y,50%,,
423243,ALLSTAR BUSINESS SOLUTIONS LTD,"13,465.20",Building Services,Plant & Vehicle Fuel,30-Apr-23,2324/02,SME,Y,50%,,
368065,STANNAH STAIRLIFTS LTD,"5,324.00",Council House Adaptions,Improvements,24-Apr-23,2324/02,LGE,N,
368328,STANNAH STAIRLIFTS LTD,"5,740.00",Mand Disabled Facilities Grant,Grants,04-May-23,2324/02,LGE,N,
423241,COMPUTERSHARE ,890,Current Assets,ChildCare Vouchers-Control,26-Apr-23,2324/02,LGE,N,
368667,ASSOCIATION FOR SUFFOLK MUSEUMS,"1,500.00",Grants & Contrbns,Grants,15-May-23,2324/02,SME,N,
423277,BEDINGFIELD VILLAGE HALL,300,Elections,Misc Supplies & Services Costs,22-May-23,2324/02,SME,N,
423252,BRUNDISH PARISH ROOMS,409.87,Bring Sites,Contributions & Donations,10-May-23,2324/02,SME,N,
423284,CODDENHAM PARISH COUNCIL,382.5,Elections,Misc Supplies & Services Costs,22-May-23,2324/02,SME,N,
368669,DEBENHAM VILLAGE HALL & PLAYING FIELD TR,"25,000.00",Grants & Contrbns,Grants,15-May-23,2324/02,SME,N,
368675,EAST ANGLIAN TRADITIONAL MUSIC TRUST,"2,000.00",Grants & Contrbns,Grants,15-May-23,2324/02,SME,N,
368674,EASTERN ANGLES THEATRE CO LTD,"1,000.00",Grants & Contrbns,Grants,15-May-23,2324/02,SME,N,
368755,EYE TOWN COUNCIL,"25,000.00",Community Fund Projects-Grants,Grants,18-May-23,2324/02,SME,N,
368756,EYE TOWN COUNCIL,"20,000.00",Communities,Grants,18-May-23,2324/02,SME,N,
368331,GOSBECK VILLAGE HALL,787.75,Grants & Contrbns,Grants,04-May-23,2324/02,SME,N,
368331,GOSBECK VILLAGE HALL,"4,212.25",VCSE Resilience,"Equipment, Tools & Materials",04-May-23,2324/02,SME,N,
368862,HARLESTON PARISH MEETING,617.5,Street & Major Road Cleansing,Contributions to other Bodies,22-May-23,2324/02,SME,N,
423310,HOXNE VILLAGE HALL,300,Elections,Misc Supplies & Services Costs,22-May-23,2324/02,SME,N,
368668,LIGHTHOUSE WOMENS AID LTD,"3,000.00",Grants & Contrbns,Grants,15-May-23,2324/02,SME,N,
368204,METFIELD PARISH COUNCIL,"6,729.30",CIL Funded REFCUS,Grants,28-Apr-23,2324/02,SME,N,
423324,PALGRAVE & DISTRICT COMMUNITY CENTRE,272,Elections,Misc Supplies & Services Costs,22-May-23,2324/02,SME,N,
368664,STREET FORGE WORKSHOPS,"2,500.00",Grants & Contrbns,Grants,15-May-23,2324/02,SME,N,
368663,SUFFOLK ACCIDENT RESCUE SERVICE,"1,000.00",Grants & Contrbns,Grants,15-May-23,2324/02,SME,N,
368672,SUFFOLK ARTLINK,"2,550.00",Grants & Contrbns,Grants,15-May-23,2324/02,SME,N,
368676,SUFFOLK WEST CITIZENS ADVICE BUREAU,"5,460.00",Grants & Contrbns,Grants,15-May-23,2324/02,SME,N,
368146,SUFFOLK COUNTY COUNCIL,"14,154.07",Community Safety-General,Contributions & Donations,26-Apr-23,2324/02,LGE,Y,50%,,
368294,SUFFOLK COUNTY COUNCIL,"10,117.04",Domestic Waste,MRF Disposal,02-May-23,2324/02,LGE,N,
368294,SUFFOLK COUNTY COUNCIL,"11,726.31",Garden Waste,Garden Waste Disposal,02-May-23,2324/02,LGE,N,
368594,SUFFOLK COUNTY COUNCIL,273,Communications,Advertising&mkting (non-staff),12-May-23,2324/02,LGE,Y,50%,,
368752,SUFFOLK COUNTY COUNCIL,300,Governance,Misc Supplies & Services Costs,17-Mar-23,2324/02,LGE,N,
368759,SUFFOLK COUNTY COUNCIL,"52,273.10",Trade Waste,Trade Waste Disposal,17-May-23,2324/02,LGE,N,
368851,SUFFOLK COUNTY COUNCIL,394.79,Independent Living Service,Contracted Services,19-May-23,2324/02,LGE,Y,50%,,
368896,SUFFOLK COUNTY COUNCIL,"1,213.50",Housing Standards,Prof & Consultancy Fees,23-May-23,2324/02,LGE,Y,50%,,
368897,SUFFOLK COUNTY COUNCIL,607,Independent Living Service,Prof & Consultancy Fees,23-May-23,2324/02,LGE,Y,50%,,
368991,SUFFOLK COUNTY COUNCIL,"6,646.00",Organisational Devt,Recruitment,02-May-23,2324/02,LGE,Y,50%,,
368471,ROYAL MAIL,"5,410.22",Central Postal Serv,Postage,02-May-23,2324/02,LGE,Y,50%,,
368619,ROYAL MAIL,"1,481.50",Central Postal Serv,Postage,09-May-23,2324/02,LGE,Y,50%,,
368801,ROYAL MAIL,"4,018.00",Central Postal Serv,Postage,08-May-23,2324/02,LGE,Y,50%,,
368269,LACY SCOTT & KNIGHT,500,Assets & Development,Prof & Consultancy Fees,14-Dec-22,2324/02,SME,N,
368967,EAST OF ENGLAND CO-OPERATIVE SOCIETY LTD,"7,494.00",Electoral Registration,Returning Officer Fees,24-May-23,2324/02,LGE,Y,50%,,
368806,LEX AUTOLEASE,315.39,Building Services,Lease Cars - Payment,11-Apr-23,2324/02,SME,Y,50%,,
368807,LEX AUTOLEASE,303.08,Building Services,Lease Cars - Payment,11-Apr-23,2324/02,SME,Y,50%,,
368808,LEX AUTOLEASE,265.38,Building Services,Lease Cars - Payment,12-Apr-23,2324/02,SME,Y,50%,,
368809,LEX AUTOLEASE,325.05,Building Services,Lease Cars - Payment,12-Apr-23,2324/02,SME,Y,50%,,
368810,LEX AUTOLEASE,337.78,Building Services,Lease Cars - Payment,12-Apr-23,2324/02,SME,Y,50%,,
368811,LEX AUTOLEASE,263.72,Building Services,Lease Cars - Payment,12-Apr-23,2324/02,SME,Y,50%,,
368815,LEX AUTOLEASE,348.97,Building Services,Lease Cars - Payment,01-May-23,2324/02,SME,Y,50%,,
368816,LEX AUTOLEASE,276.83,Building Services,Lease Cars - Payment,01-May-23,2324/02,SME,Y,50%,,
368817,LEX AUTOLEASE,310.1,Building Services,Lease Cars - Payment,01-May-23,2324/02,SME,Y,50%,,
368818,LEX AUTOLEASE,620.97,Building Services,Lease Cars - Payment,17-Apr-23,2324/02,SME,Y,50%,,
368819,LEX AUTOLEASE,424.45,Building Services,Lease Cars - Payment,17-Apr-23,2324/02,SME,Y,50%,,
368249,CIVICA UK LIMITED,"1,120.00",Lettings & Allocations,Contracted Services,28-Mar-23,2324/02,LGE,N,
368709,CIVICA UK LIMITED,672,Lettings & Allocations,Contracted Services,12-May-23,2324/02,LGE,N,
423340,STOWUPLAND VILLAGE HALL,450,Elections,Misc Supplies & Services Costs,22-May-23,2324/02,SME,N,
368363,ACUITY RESEARCH & PRACTICE LTD,675.7,Software/ICT Projects/Surveys,Improvements,27-Apr-23,2324/02,SME,Y,50%,,
368986,ACUITY RESEARCH & PRACTICE LTD,658.85,Software/ICT Projects/Surveys,Improvements,24-May-23,2324/02,SME,Y,50%,,
368217,WHYBROW PROPERTY SOLUTIONS LTD,"12,517.27",Voids Maintenance,Repairs,27-Apr-23,2324/02,SME,N,
368414,WHYBROW PROPERTY SOLUTIONS LTD,350,Voids Maintenance,Repairs,05-Apr-23,2324/02,SME,N,
368454,WHYBROW PROPERTY SOLUTIONS LTD,518.73,Voids Maintenance,Repairs,05-Apr-23,2324/02,SME,N,
368599,WHYBROW PROPERTY SOLUTIONS LTD,"6,286.51",Council House Adaptions,Improvements,12-May-23,2324/02,SME,N,
368654,WHYBROW PROPERTY SOLUTIONS LTD,"6,132.25",Insurance Claims,Misc Premises Costs,31-Jan-23,2324/02,SME,N,
368783,WHYBROW PROPERTY SOLUTIONS LTD,"12,000.00",Major Imps,Repairs,17-May-23,2324/02,SME,N,
368076,L A C CLEANING CONTRACTORS LIMITED,865.58,Temporary Accommodation,General Cleaning,24-Apr-23,2324/02,SME,N,
368077,L A C CLEANING CONTRACTORS LIMITED,625.5,Other Temp Accommodation,General Cleaning,25-Apr-23,2324/02,SME,N,
368085,L A C CLEANING CONTRACTORS LIMITED,525.5,Voids Maintenance,Repairs,25-Apr-23,2324/02,SME,N,
368086,L A C CLEANING CONTRACTORS LIMITED,867.5,Voids Maintenance,Repairs,25-Apr-23,2324/02,SME,N,
368455,L A C CLEANING CONTRACTORS LIMITED,295.5,Other Temp Accommodation,General Cleaning,09-May-23,2324/02,SME,N,
368585,L A C CLEANING CONTRACTORS LIMITED,495.5,Voids Maintenance,Repairs,28-Apr-23,2324/02,SME,N,
368725,L A C CLEANING CONTRACTORS LIMITED,987.5,Other Temp Accommodation,General Cleaning,17-May-23,2324/02,SME,N,
368939,L A C CLEANING CONTRACTORS LIMITED,384.45,Temporary Accommodation,General Cleaning,23-May-23,2324/02,SME,N,
369008,L A C CLEANING CONTRACTORS LIMITED,390.5,Voids Maintenance,Repairs,26-May-23,2324/02,SME,N,
369009,L A C CLEANING CONTRACTORS LIMITED,345.5,Voids Maintenance,Repairs,26-May-23,2324/02,SME,N,
368874,TUDOR ENVIRONMENTAL,"1,496.25",Open Spaces,"Equipment, Tools & Materials",22-May-23,2324/02,SME,Y,50%,,
368875,TUDOR ENVIRONMENTAL,299.25,Open Spaces,"Equipment, Tools & Materials",22-May-23,2324/02,SME,Y,50%,,
368999,BAREFOOT & GILLES LTD,900,Cross Street Tech Hub,Prof & Consultancy Fees,28-Apr-23,2324/02,SME,N,
368671,THE MIX STOWMARKET LTD,"15,000.00",Grants & Contrbns,Grants,15-May-23,2324/02,SME,N,
423260,GT BLAKENHAM VILLAGE HALL FUND,"20,000.00",S106 Open Spaces Expenditure,Grants,15-May-23,2324/02,SME,N,
368427,TRADITION (UK) LTD,747.95,Treasury Management,Prof & Consultancy Fees,28-Apr-23,2324/02,LGE,N,
368135,COMMUNITY ACTION SUFFOLK,"1,617.34",Community Safety-General,Contributions & Donations,26-Apr-23,2324/02,SME,Y,50%,,
368673,COMMUNITY ACTION SUFFOLK,"10,000.00",Grants & Contrbns,Grants,15-May-23,2324/02,SME,N,
368459,CONCERTUS DESIGN & PROPERTY CONSULTANTS,"5,500.00",Assets & Development,Prof & Consultancy Fees,28-Apr-23,2324/02,SME,Y,50%,,
368460,CONCERTUS DESIGN & PROPERTY CONSULTANTS,"3,800.00",Assets & Development,Prof & Consultancy Fees,28-Apr-23,2324/02,SME,Y,50%,,
368536,CONCERTUS DESIGN & PROPERTY CONSULTANTS,"3,835.00",Endeavour House - HQ,Misc Premises Costs,31-Mar-23,2324/02,SME,Y,50%,,
368293,OXBURY CHARTERED SURVEYORS,"2,850.00","Aspall Road, Debenham, Stowmar",Prof & Consultancy Fees,30-Apr-23,2324/02,SME,N,
368694,OXBURY CHARTERED SURVEYORS,"1,530.00","Framlingham Road, Laxfield",Prof & Consultancy Fees,15-May-23,2324/02,SME,N,
369059,OXBURY CHARTERED SURVEYORS,"2,850.00","Aspall Road, Debenham, Stowmar",Prof & Consultancy Fees,30-May-23,2324/02,SME,N,
423318,NEEDHAM MARKET COMMUNITY CENTRE,400,Elections,Misc Supplies & Services Costs,22-May-23,2324/02,SME,N,
368252,OPUS PEOPLE SOLUTIONS LTD,422.55,Building Services,Agency Staff,27-Apr-23,2324/02,SME,N,
368252,OPUS PEOPLE SOLUTIONS LTD,197.78,Health & Safety,Agency Staff,27-Apr-23,2324/02,SME,N,
368252,OPUS PEOPLE SOLUTIONS LTD,331.13,Homeless Prevention Fund,Agency Staff,27-Apr-23,2324/02,SME,N,
368252,OPUS PEOPLE SOLUTIONS LTD,68.28,Devt Management -Applications,Agency Staff,27-Apr-23,2324/02,SME,N,
368498,OPUS PEOPLE SOLUTIONS LTD,371.25,Climate Change and Sustainabil,Agency Staff,04-May-23,2324/02,SME,N,
368498,OPUS PEOPLE SOLUTIONS LTD,197.78,Health & Safety,Agency Staff,04-May-23,2324/02,SME,N,
368498,OPUS PEOPLE SOLUTIONS LTD,325.14,Homeless Prevention Fund,Agency Staff,04-May-23,2324/02,SME,N,
368498,OPUS PEOPLE SOLUTIONS LTD,281.7,Building Services,Agency Staff,04-May-23,2324/02,SME,N,
368645,OPUS PEOPLE SOLUTIONS LTD,742.5,Climate Change and Sustainabil,Agency Staff,11-May-23,2324/02,SME,N,
368645,OPUS PEOPLE SOLUTIONS LTD,197.78,Health & Safety,Agency Staff,11-May-23,2324/02,SME,N,
368645,OPUS PEOPLE SOLUTIONS LTD,268.2,Homeless Prevention Fund,Agency Staff,11-May-23,2324/02,SME,N,
368645,OPUS PEOPLE SOLUTIONS LTD,281.7,Building Services,Agency Staff,11-May-23,2324/02,SME,N,
368645,OPUS PEOPLE SOLUTIONS LTD,68.28,Devt Management -Applications,Agency Staff,11-May-23,2324/02,SME,N,
368836,OPUS PEOPLE SOLUTIONS LTD,247.5,Climate Change and Sustainabil,Agency Staff,18-May-23,2324/02,SME,N,
368836,OPUS PEOPLE SOLUTIONS LTD,197.78,Health & Safety,Agency Staff,18-May-23,2324/02,SME,N,
368836,OPUS PEOPLE SOLUTIONS LTD,252.47,Homeless Prevention Fund,Agency Staff,18-May-23,2324/02,SME,N,
368836,OPUS PEOPLE SOLUTIONS LTD,211.28,Building Services,Agency Staff,18-May-23,2324/02,SME,N,
368836,OPUS PEOPLE SOLUTIONS LTD,136.56,Devt Management -Applications,Agency Staff,18-May-23,2324/02,SME,N,
369041,OPUS PEOPLE SOLUTIONS LTD,433.13,Climate Change and Sustainabil,Agency Staff,25-May-23,2324/02,SME,N,
369041,OPUS PEOPLE SOLUTIONS LTD,"1,604.95",Electoral Registration,Agency Staff,25-May-23,2324/02,SME,N,
369041,OPUS PEOPLE SOLUTIONS LTD,331.13,Homeless Prevention Fund,Agency Staff,25-May-23,2324/02,SME,N,
369041,OPUS PEOPLE SOLUTIONS LTD,281.7,Building Services,Agency Staff,25-May-23,2324/02,SME,N,
368482,CORNERSTONE BARRISTERS,"2,750.00",Environmental Protection,Legal Expenses,04-May-23,2324/02,SME,Y,50%,,
368316,COLLINS SKIP HIRE,300,Building Services,Repairs,30-Apr-23,2324/02,SME,N,
368542,BIRKETTS LLP,"1,227.00",Planning Enforcement,Legal Expenses,09-May-23,2324/02,LGE,N,
368993,BIRKETTS LLP,"3,465.00",Organisational Devt,Professional Subs (Staff),31-Jan-23,2324/02,LGE,Y,50%,,
368124,GALLAGHER CAR & VAN RENTALS LTD,616,Domestic Waste,Refuse Contract,26-Apr-23,2324/02,LGE,N,
368202,GALLAGHER CAR & VAN RENTALS LTD,"1,316.00",Domestic Waste,Refuse Contract,28-Apr-23,2324/02,LGE,N,
368277,GALLAGHER CAR & VAN RENTALS LTD,"1,232.00",Domestic Waste,Refuse Contract,03-May-23,2324/02,LGE,N,
368451,GALLAGHER CAR & VAN RENTALS LTD,364,Elections,"Equipment, Tools & Materials",06-May-23,2324/02,LGE,N,
368452,GALLAGHER CAR & VAN RENTALS LTD,364,Elections,"Equipment, Tools & Materials",05-May-23,2324/02,LGE,N,
368453,GALLAGHER CAR & VAN RENTALS LTD,364,Elections,"Equipment, Tools & Materials",06-May-23,2324/02,LGE,N,
368465,GALLAGHER CAR & VAN RENTALS LTD,588,Domestic Waste,Refuse Contract,09-May-23,2324/02,LGE,N,
368472,GALLAGHER CAR & VAN RENTALS LTD,416,Elections,"Equipment, Tools & Materials",10-May-23,2324/02,LGE,N,
368474,GALLAGHER CAR & VAN RENTALS LTD,416,Elections,"Equipment, Tools & Materials",10-May-23,2324/02,LGE,N,
368941,GALLAGHER CAR & VAN RENTALS LTD,968,Domestic Waste,Refuse Contract,24-May-23,2324/02,LGE,N,
368976,CIRRUS RESEARCH PLC,"1,778.00",Environmental Protection,Contracted Services,24-May-23,2324/02,SME,N,
368090,OPINION RESEARCH SERVICES LTD,"21,975.00",PP&I,Contracted Services,25-Apr-23,2324/02,SME,Y,50%,,
368529,FORESOLUTIONS LTD,276.08,Street & Major Road Cleansing,Plant & Vehicle - Other costs,08-May-23,2324/02,SME,N,
368588,BADWELL ASH PLAYING FIELD & RECREATION G,"3,360.00",Community Fund Projects-Grants,Grants,12-May-23,2324/02,SME,N,
367935,PENNA PLC,"2,568.00",PP&I,Recruitment,31-Mar-23,2324/02,SME,Y,50%,,
367936,PENNA PLC,"2,566.00",PP&I,Recruitment,28-Feb-23,2324/02,SME,Y,50%,,
367937,PENNA PLC,"3,674.00",PP&I,Recruitment,19-Jan-23,2324/02,SME,Y,50%,,
367979,PENNA PLC,"2,566.00",PP&I,Recruitment,30-Dec-22,2324/02,SME,Y,50%,,
368804,CHEC PLANNING LTD,"1,339.29",Nghbrhd Plan Designations,Prof & Consultancy Fees,19-May-23,2324/02,SME,N,
368972,OCEAN MEDIA GROUP LTD,"2,530.00",HRA Strategic Property,Conference Expenses,17-Jan-23,2324/02,SME,Y,50%,,
368973,OCEAN MEDIA GROUP LTD,"1,218.00",HRA Strategic Property,Subscriptions,24-May-23,2324/02,SME,Y,50%,,
368323,RICHARD UTTING ASSOCIATES LLP,"6,188.00",Paddock House Eye,Prof & Consultancy Fees,30-Apr-23,2324/02,SME,N,
368332,RICHARD UTTING ASSOCIATES LLP,"2,124.74",Stowmarket Middle School,Prof & Consultancy Fees,30-Apr-23,2324/02,SME,N,
369049,RICHARD UTTING ASSOCIATES LLP,"2,063.00",Paddock House Eye,Prof & Consultancy Fees,31-May-23,2324/02,SME,N,
368129,LAXFIELD VILLAGE HALL,"2,200.00",Grants & Contrbns,Grants,26-Apr-23,2324/02,SME,N,
423311,LAXFIELD VILLAGE HALL,280,Elections,Misc Supplies & Services Costs,22-May-23,2324/02,SME,N,
368892,PUBLIC SEWER SERVICES,682.8,Building Services,Repairs,23-May-23,2324/02,SME,N,
368850,SMARTSURVEY LTD,"1,080.00",Organisational Devt,Training,12-Apr-23,2324/02,SME,Y,50%,,
368911,SMARTSURVEY LTD,720,Capita System Support,Subscriptions,07-Apr-23,2324/02,SME,Y,50%,,
368274,THE STOWMARKET GLASS COMPANY LTD,401.85,Building Services,Repairs,17-Apr-23,2324/02,SME,N,
368364,THE STOWMARKET GLASS COMPANY LTD,260,Building Services,Repairs,04-May-23,2324/02,SME,N,
368139,THE OYSTER PARTNERSHIP LTD,"2,656.25",Building Servs Tech Staff,Agency Staff,26-Apr-23,2324/02,SME,Y,50%,,
368140,THE OYSTER PARTNERSHIP LTD,923.25,Building Services,Agency Staff,26-Apr-23,2324/02,SME,Y,50%,,
368141,THE OYSTER PARTNERSHIP LTD,"2,485.10",Building Servs Tech Staff,Agency Staff,26-Apr-23,2324/02,SME,Y,50%,,
368142,THE OYSTER PARTNERSHIP LTD,"3,650.00",HRA Strategic Property,Agency Staff,26-Apr-23,2324/02,SME,Y,50%,,
368143,THE OYSTER PARTNERSHIP LTD,"1,120.00",Building Services,Agency Staff,26-Apr-23,2324/02,SME,Y,50%,,
368144,THE OYSTER PARTNERSHIP LTD,"2,263.40",Building Servs Tech Staff,Agency Staff,26-Apr-23,2324/02,SME,Y,50%,,
368295,THE OYSTER PARTNERSHIP LTD,"3,650.00",HRA Strategic Property,Agency Staff,03-May-23,2324/02,SME,Y,50%,,
368296,THE OYSTER PARTNERSHIP LTD,"2,024.45",Building Servs Tech Staff,Agency Staff,03-May-23,2324/02,SME,Y,50%,,
368297,THE OYSTER PARTNERSHIP LTD,"1,008.00",Building Services,Agency Staff,03-May-23,2324/02,SME,Y,50%,,
368301,THE OYSTER PARTNERSHIP LTD,"2,041.85",Building Servs Tech Staff,Agency Staff,03-May-23,2324/02,SME,Y,50%,,
368302,THE OYSTER PARTNERSHIP LTD,"2,656.25",Building Servs Tech Staff,Agency Staff,03-May-23,2324/02,SME,Y,50%,,
368303,THE OYSTER PARTNERSHIP LTD,923.25,Building Services,Agency Staff,03-May-23,2324/02,SME,Y,50%,,
368417,THE OYSTER PARTNERSHIP LTD,"1,350.00",Building Servs Tech Staff,Agency Staff,26-Apr-23,2324/02,SME,Y,50%,,
368418,THE OYSTER PARTNERSHIP LTD,"1,200.00",Building Servs Tech Staff,Agency Staff,26-Apr-23,2324/02,SME,Y,50%,,
368497,THE OYSTER PARTNERSHIP LTD,"2,285.10",Building Servs Tech Staff,Agency Staff,03-May-23,2324/02,SME,Y,50%,,
368550,THE OYSTER PARTNERSHIP LTD,"2,435.15",Building Servs Tech Staff,Agency Staff,03-May-23,2324/02,SME,Y,50%,,
368552,THE OYSTER PARTNERSHIP LTD,"1,600.00",Building Servs Tech Staff,Agency Staff,10-May-23,2324/02,SME,Y,50%,,
368564,THE OYSTER PARTNERSHIP LTD,"1,917.50",Building Servs Tech Staff,Agency Staff,10-May-23,2324/02,SME,Y,50%,,
368567,THE OYSTER PARTNERSHIP LTD,"1,008.00",Building Services,Agency Staff,10-May-23,2324/02,SME,Y,50%,,
368568,THE OYSTER PARTNERSHIP LTD,738.6,Building Services,Agency Staff,10-May-23,2324/02,SME,Y,50%,,
368569,THE OYSTER PARTNERSHIP LTD,"1,851.30",Building Servs Tech Staff,Agency Staff,10-May-23,2324/02,SME,Y,50%,,
368570,THE OYSTER PARTNERSHIP LTD,"2,920.00",HRA Strategic Property,Agency Staff,10-May-23,2324/02,SME,Y,50%,,
368571,THE OYSTER PARTNERSHIP LTD,"2,125.00",Building Servs Tech Staff,Agency Staff,10-May-23,2324/02,SME,Y,50%,,
368572,THE OYSTER PARTNERSHIP LTD,"1,652.55",Building Servs Tech Staff,Agency Staff,10-May-23,2324/02,SME,Y,50%,,
368734,THE OYSTER PARTNERSHIP LTD,"3,285.00",HRA Strategic Property,Agency Staff,17-May-23,2324/02,SME,Y,50%,,
368735,THE OYSTER PARTNERSHIP LTD,738.6,Building Services,Agency Staff,17-May-23,2324/02,SME,Y,50%,,
368736,THE OYSTER PARTNERSHIP LTD,"2,125.00",Building Servs Tech Staff,Agency Staff,17-May-23,2324/02,SME,Y,50%,,
368737,THE OYSTER PARTNERSHIP LTD,"1,684.50",Building Servs Tech Staff,Agency Staff,17-May-23,2324/02,SME,Y,50%,,
368738,THE OYSTER PARTNERSHIP LTD,"1,818.90",Building Servs Tech Staff,Agency Staff,17-May-23,2324/02,SME,Y,50%,,
368739,THE OYSTER PARTNERSHIP LTD,"1,947.65",Building Servs Tech Staff,Agency Staff,17-May-23,2324/02,SME,Y,50%,,
368740,THE OYSTER PARTNERSHIP LTD,924,Building Services,Agency Staff,17-May-23,2324/02,SME,Y,50%,,
368741,THE OYSTER PARTNERSHIP LTD,"1,647.70",Building Servs Tech Staff,Agency Staff,17-May-23,2324/02,SME,Y,50%,,
368977,THE OYSTER PARTNERSHIP LTD,"2,268.45",Building Servs Tech Staff,Agency Staff,24-May-23,2324/02,SME,Y,50%,,
368979,THE OYSTER PARTNERSHIP LTD,975,Building Servs Tech Staff,Agency Staff,24-May-23,2324/02,SME,Y,50%,,
368980,THE OYSTER PARTNERSHIP LTD,"2,000.00",Building Servs Tech Staff,Agency Staff,24-May-23,2324/02,SME,Y,50%,,
368984,THE OYSTER PARTNERSHIP LTD,"3,650.00",HRA Strategic Property,Agency Staff,24-May-23,2324/02,SME,Y,50%,,
368987,THE OYSTER PARTNERSHIP LTD,"1,120.00",Building Services,Agency Staff,24-May-23,2324/02,SME,Y,50%,,
368989,THE OYSTER PARTNERSHIP LTD,"2,050.95",Building Servs Tech Staff,Agency Staff,24-May-23,2324/02,SME,Y,50%,,
423263,RIX PETROLEUM (EAST ANGLIA) LTD,"8,618.25",Open Spaces,Plant & Vehicle Fuel,04-May-23,2324/02,SME,N,
368213,KNOWLES ASSOCIATES TFM LTD,"22,568.00",Building Services,Vehicle Hire,27-Apr-23,2324/02,SME,Y,50%,,
368270,KNOWLES ASSOCIATES TFM LTD,644,Building Services,Vehicle Hire,20-Apr-23,2324/02,SME,Y,50%,,
368367,KNOWLES ASSOCIATES TFM LTD,251.44,Building Services,Plant & Vehicle - Other costs,17-Feb-23,2324/02,SME,Y,50%,,
368368,KNOWLES ASSOCIATES TFM LTD,343.5,Building Services,Plant & Vehicle - Other costs,29-Mar-23,2324/02,SME,Y,50%,,
368145,VIVID RESOURCING,"1,803.10",Building Servs Tech Staff,Agency Staff,26-Apr-23,2324/02,SME,Y,50%,,
368311,VIVID RESOURCING,"1,913.80",Building Servs Tech Staff,Agency Staff,03-May-23,2324/02,SME,Y,50%,,
368492,VIVID RESOURCING,"1,486.40",Building Servs Tech Staff,Agency Staff,10-May-23,2324/02,SME,Y,50%,,
368732,VIVID RESOURCING,"1,433.30",Building Servs Tech Staff,Agency Staff,17-May-23,2324/02,SME,Y,50%,,
368949,VIVID RESOURCING,"1,830.10",Building Servs Tech Staff,Agency Staff,24-May-23,2324/02,SME,Y,50%,,
368231,GIPPING OCCUPATIONAL HEALTH LTD,335,Organisational Devt,Contracted Services,28-Apr-23,2324/02,SME,Y,50%,,
368719,GIPPING OCCUPATIONAL HEALTH LTD,430,Organisational Devt,Contracted Services,16-May-23,2324/02,SME,Y,50%,,
369063,GIPPING OCCUPATIONAL HEALTH LTD,554.18,Health & Safety,Contracted Services,24-May-23,2324/02,SME,N,
368435,BARRY MARLOW,788.02,Street & Major Road Cleansing,"Equipment, Tools & Materials",31-Jan-23,2324/02,ST,N,
368092,C J FROST TRANSPORT,425,Homeless Prevention Fund,Removal Expenses,02-Mar-23,2324/02,SME,N,
368876,JOHN FORD GROUP LTD,"3,666.04",Mand Disabled Facilities Grant,Grants,23-May-23,2324/02,SME,N,
368281,RESIDENTIALLY CHARTERED SURVEYORS,350,"Cedars Park C & D, Stowmarket",Prof & Consultancy Fees,27-Apr-23,2324/02,SME,N,
368282,RESIDENTIALLY CHARTERED SURVEYORS,"1,025.00",Needham Market Middle School,Prof & Consultancy Fees,27-Apr-23,2324/02,SME,N,
368500,RESIDENTIALLY CHARTERED SURVEYORS,300,"The Broadway, Badwell Ash",Prof & Consultancy Fees,27-Apr-23,2324/02,SME,N,
368360,TOP FLOORS (EAST ANGLIA) LTD,"1,714.67",Other Temp Accommodation,"Equipment, Tools & Materials",03-May-23,2324/02,SME,N,
368670,HOME-START IN SUFFOLK,"9,000.00",Grants & Contrbns,Grants,15-May-23,2324/02,SME,N,
368412,PORTAL PLAN QUEST LTD,936,Devt Management - Apps,Planning Fees,09-May-23,2324/02,SME,N,
368563,ACTIVLIVES,"2,336.00",Ips & E A - Strength & Balance,Misc Supplies & Services Costs,05-May-23,2324/02,SME,Y,50%,,
368439,BADWELL ASH PCC NO 2 DEPOSIT,660,Open Spaces,Repairs,16-Dec-22,2324/02,SME,N,
368440,BADWELL ASH PCC NO 2 DEPOSIT,"1,100.00",Open Spaces,Repairs,16-Dec-22,2324/02,SME,N,
368632,MTM PLANT AND SALES LTD,315,Open Spaces,Horticultural Purchases,30-Apr-23,2324/02,SME,N,
368951,BELLWAY HOMES LIMITED (ESSEX DIVISION),"567,581.66",Loraine Way Bramford  S106,Purchase of Land & Buildings,22-May-23,2324/02,LGE,N,
368731,GOVERNMENT EVENTS,359.2,MSM Feasibility & Match Fundin,Prof & Consultancy Fees,19-Apr-23,2324/02,SME,N,
368223,HAMSON BARRON SMITH LTD,"2,000.00",Strategic Investment Fund,Prof & Consultancy Fees,30-Apr-23,2324/02,LGE,N,
368160,A C LEIGH (NORWICH) LTD,287.27,Building Services,"Equipment, Tools & Materials",13-Apr-23,2324/02,SME,N,
368162,A C LEIGH (NORWICH) LTD,421.32,Building Services,"Equipment, Tools & Materials",14-Apr-23,2324/02,SME,N,
368169,A C LEIGH (NORWICH) LTD,"1,035.40",Building Services,"Equipment, Tools & Materials",18-Apr-23,2324/02,SME,N,
368173,A C LEIGH (NORWICH) LTD,407.4,Building Services,"Equipment, Tools & Materials",21-Apr-23,2324/02,SME,N,
368406,A C LEIGH (NORWICH) LTD,316.8,Building Services,"Equipment, Tools & Materials",25-Apr-23,2324/02,SME,N,
368508,A C LEIGH (NORWICH) LTD,254.25,Building Services,"Equipment, Tools & Materials",05-May-23,2324/02,SME,N,
368684,A C LEIGH (NORWICH) LTD,445.2,Building Services,"Equipment, Tools & Materials",09-May-23,2324/02,SME,N,
368859,A C LEIGH (NORWICH) LTD,369.6,Building Services,"Equipment, Tools & Materials",16-May-23,2324/02,SME,N,
367750,SUFFOLK POWER EQUIPMENT,610,Open Spaces,Plant & Vehicle - Other costs,30-Mar-23,2324/02,ST,N,
368200,SUFFOLK POWER EQUIPMENT,"2,850.00",MSM Town Centre Vision,"Equipment, Tools & Materials",26-Apr-23,2324/02,ST,N,
368547,SUFFOLK POWER EQUIPMENT,304.8,Open Spaces,Plant & Vehicle - Other costs,10-May-23,2324/02,ST,N,
368548,SUFFOLK POWER EQUIPMENT,379.98,Street & Major Road Cleansing,Plant & Vehicle - Other costs,10-May-23,2324/02,ST,N,
368243,3 POINT PROPERTY MANAGEMENT LTD,595,Guaranteed Rent Scheme,Rent Payable,02-May-23,2324/02,SME,N,
368388,3 POINT PROPERTY MANAGEMENT LTD,675,Guaranteed Rent Scheme,Rent Payable,09-May-23,2324/02,SME,N,
368394,3 POINT PROPERTY MANAGEMENT LTD,895,Guaranteed Rent Scheme,Rent Payable,09-May-23,2324/02,SME,N,
368298,OAKPARK SECURITY SYSTEMS LTD,"1,350.00",Temporary Accommodation,Misc Premises Costs,30-Apr-23,2324/02,LGE,N,
368595,FLAGSHIP HOUSING GROUP LTD-RENT ACCOUNT,480,MSM Housing Solutions,Misc Supplies & Services Costs,12-May-23,2324/02,LGE,N,
368680,FLAGSHIP HOUSING GROUP LTD-RENT ACCOUNT,"1,016.52",Homeless Prevention Fund,Removal Expenses,16-May-23,2324/02,LGE,N,
368652,EAST SUFFOLK COUNCIL,"18,333.00",Ips & E A - Strength & Balance,Misc Supplies & Services Costs,15-May-23,2324/02,LGE,Y,50%,,
368965,EAST SUFFOLK COUNCIL,"2,500.00",Independent Living Service,Contributions & Donations,23-May-23,2324/02,LGE,N,
368324,HUGHES TRADE,252.73,Other Temp Accommodation,Furniture,15-Mar-23,2324/02,LGE,N,
368461,WASHCO LTD,467,Sheltered Accommodation,"Equipment, Tools & Materials",01-May-23,2324/02,SME,N,
368955,PEOPLE FOCUSED TRAINING & SOLUTIONS LTD,450,Organisational Devt,Corporate Training,24-May-23,2324/02,ST,Y,50%,,
368152,ANGLIA COMMERCIAL FLOORING LTD,986.07,Voids Maintenance,Repairs,06-Apr-23,2324/02,SME,N,
368153,ANGLIA COMMERCIAL FLOORING LTD,945.96,Voids Maintenance,Repairs,20-Apr-23,2324/02,SME,N,
368175,ANGLIA COMMERCIAL FLOORING LTD,962.02,Building Services,Repairs,27-Apr-23,2324/02,SME,N,
368176,ANGLIA COMMERCIAL FLOORING LTD,770.22,Building Services,Repairs,27-Apr-23,2324/02,SME,N,
368187,ANGLIA COMMERCIAL FLOORING LTD,545.81,Building Services,Repairs,20-Apr-23,2324/02,SME,N,
368233,ANGLIA COMMERCIAL FLOORING LTD,420.88,Voids Maintenance,Repairs,20-Apr-23,2324/02,SME,N,
368234,ANGLIA COMMERCIAL FLOORING LTD,845.88,Voids Maintenance,Repairs,27-Apr-23,2324/02,SME,N,
368237,ANGLIA COMMERCIAL FLOORING LTD,586.83,Building Services,Repairs,02-May-23,2324/02,SME,N,
368238,ANGLIA COMMERCIAL FLOORING LTD,545.81,Building Services,Repairs,02-May-23,2324/02,SME,N,
368560,ANGLIA COMMERCIAL FLOORING LTD,352.44,Building Services,Repairs,11-May-23,2324/02,SME,N,
368562,ANGLIA COMMERCIAL FLOORING LTD,388.45,Building Services,Repairs,02-May-23,2324/02,SME,N,
368771,ANGLIA COMMERCIAL FLOORING LTD,511.35,Building Services,Repairs,18-May-23,2324/02,SME,N,
423261,ANGLIAN WATER BUS (NAT) LTD T/A WAVE,595.1,Creeting Rd Depot,Water Rates - Metered,12-May-23,2324/02,LGE,Y,50%,,
423261,ANGLIAN WATER BUS (NAT) LTD T/A WAVE,108.09,Headquarters General,Water Rates - Metered,12-May-23,2324/02,LGE,N,
423261,ANGLIAN WATER BUS (NAT) LTD T/A WAVE,16.54,HRA Strategic Property,Water Rates - Metered,12-May-23,2324/02,LGE,N,
423261,ANGLIAN WATER BUS (NAT) LTD T/A WAVE,162.35,Open Spaces,Water Rates - Metered,12-May-23,2324/02,LGE,N,
423261,ANGLIAN WATER BUS (NAT) LTD T/A WAVE,252.43,Public Conveniences,Water Rates - Metered,12-May-23,2324/02,LGE,N,
423261,ANGLIAN WATER BUS (NAT) LTD T/A WAVE,8.34,Recycling Centre,Water Rates - Metered,12-May-23,2324/02,LGE,N,
423261,ANGLIAN WATER BUS (NAT) LTD T/A WAVE,6.69,Sewage Treatment Works,Water Rates - Metered,12-May-23,2324/02,LGE,N,
423261,ANGLIAN WATER BUS (NAT) LTD T/A WAVE,"1,310.47",Sheltered Accommodation,Water Rates - Metered,12-May-23,2324/02,LGE,N,
423261,ANGLIAN WATER BUS (NAT) LTD T/A WAVE,17.05,Tacon Close Eye TDP,Water Rates - Metered,12-May-23,2324/02,LGE,Y,50%,,
423261,ANGLIAN WATER BUS (NAT) LTD T/A WAVE,70.32,Temporary Accommodation,Water Rates - Metered,12-May-23,2324/02,LGE,N,
423261,ANGLIAN WATER BUS (NAT) LTD T/A WAVE,16.07,Tenancy Services,Water Rates - Metered,12-May-23,2324/02,LGE,N,
423261,ANGLIAN WATER BUS (NAT) LTD T/A WAVE,24.54,Wingfield Barns,Water Rates - Metered,12-May-23,2324/02,LGE,N,
423367,PARKYNS LETTINGS BURY ST EDMUNDS,"2,800.00",Guaranteed Rent Scheme,Rent Payable,25-May-23,2324/02,SME,N,
423367,PARKYNS LETTINGS BURY ST EDMUNDS,"1,750.00",Guaranteed Rent Scheme,Misc Supplies & Services Costs,25-May-23,2324/02,SME,N,
368493,STUDLEY CAPITAL LIMITED,712.5,MSM Skills & Innovation Centre,Prof & Consultancy Fees,09-May-23,2324/02,ST,N,
368494,STUDLEY CAPITAL LIMITED,831.25,MSM Feasibility & Match Fundin,Prof & Consultancy Fees,09-May-23,2324/02,ST,N,
368181,GREENACRE RECRUITMENT LTD,"1,660.00",Building Services,Agency Staff,26-Apr-23,2324/02,SME,Y,50%,,
368285,GREENACRE RECRUITMENT LTD,"2,075.00",Building Services,Agency Staff,03-May-23,2324/02,SME,Y,50%,,
423320,OCCOLD VILLAGE HALL,300,Elections,Misc Supplies & Services Costs,22-May-23,2324/02,SME,N,
423334,STOWMARKET (SCF3) REDWOODS OLD LIBRARY,295.2,Elections,Misc Supplies & Services Costs,22-May-23,2324/02,SME,N,
423339,STOWMARKET (SST3) SUFFOLK FOOTBALL ASSN,350,Elections,Misc Supplies & Services Costs,22-May-23,2324/02,SME,N,
368264,MID SUFFOLK GROWTH LTD,"2,218.87",Loraine Way Bramford  S106,Prof & Consultancy Fees,30-Apr-23,2324/02,SME,N,
368266,MID SUFFOLK GROWTH LTD,"1,515.00","Cedars Park C & D, Stowmarket",Prof & Consultancy Fees,30-Apr-23,2324/02,SME,N,
368845,THE CODDENHAM CENTRE,"11,006.12",Communities,Grants,22-May-23,2324/02,SME,N,
368374,QUADIENT UK LIMITED,"2,000.00",Central Postal Serv,Postage,05-May-23,2324/02,LGE,Y,50%,,
367680,SPRYTAR LTD,680.5,Shared Prosperity Fund,Advertising&mkting (non-staff),04-Apr-23,2324/02,SME,N,
368327,PENTACO CONSTRUCTION LTD,"352,983.00",Stowmarket Middle School,Major Contracts,02-May-23,2324/02,SME,N,
368743,THE KINETIC SCIENCE FOUNDATION,810.88,Holiday Activity Fund,"Equipment, Tools & Materials",15-May-23,2324/02,SME,N,
369028,LIMELEASE LTD,435,Guaranteed Rent Scheme,Rent Payable,26-May-23,2324/02,SME,N,
368317,BUCHER MUNICIPAL LTD,506.55,Street & Major Road Cleansing,Plant & Vehicle - Other costs,28-Apr-23,2324/02,LGE,Y,50%,,
368590,BUCHER MUNICIPAL LTD,509.71,Street & Major Road Cleansing,Plant & Vehicle - Other costs,09-May-23,2324/02,LGE,N,
368235,PAUL WRIGHT & CO,775,Guaranteed Rent Scheme,Rent Payable,02-May-23,2324/02,SME,N,
369046,PAUL WRIGHT & CO,775,Guaranteed Rent Scheme,Rent Payable,30-May-23,2324/02,SME,N,
423259,PAUL WRIGHT & CO,391.23,Guaranteed Rent Scheme,Rents (voids),15-May-23,2324/02,SME,N,
423362,PAUL WRIGHT & CO,850,Guaranteed Rent Scheme,Rent Payable,23-May-23,2324/02,SME,N,
423362,PAUL WRIGHT & CO,"1,500.00",Guaranteed Rent Scheme,Misc Supplies & Services Costs,23-May-23,2324/02,SME,N,
368805,AFFINITY HEALTH AT WORK LTD,"1,300.00",Organisational Devt,Training,19-May-23,2324/02,SME,Y,50%,,
368962,AFFINITY HEALTH AT WORK LTD,600,Organisational Devt,Corporate Training,22-May-23,2324/02,SME,Y,50%,,
368430,PRIVATE LANDLORD,786.5,Guaranteed Rent Scheme,Rent Payable,09-May-23,2324/02,ST,N,
368358,COUNTRYSTYLE RECYCLING LTD,"4,651.77",Bring Sites,Contracted Services,30-Apr-23,2324/02,SME,N,
368254,DGL QUALITY MANAGEMENT LTD,"1,092.00",Stowmarket Middle School,Prof & Consultancy Fees,30-Apr-23,2324/02,SME,N,
368656,WOOLPIT CHILDCARE CENTRE LTD(WOOLPITARC),"1,848.00",Holiday Activity Fund,"Equipment, Tools & Materials",25-Apr-23,2324/02,SME,N,
368773,ARAN INSULATION LTD,"3,358.90",Insulation Imps,Repairs,18-May-23,2324/02,SME,N,
368318,IAN BOOTH CONSULTANT ENGINEER LTD,"1,240.40",Roads and Paths,Improvements,03-May-23,2324/02,SME,N,
368240,MARCHDELL LTD,715,Guaranteed Rent Scheme,Rent Payable,02-May-23,2324/02,SME,N,
368241,PRIVATE LANDLORD,"1,300.00",Guaranteed Rent Scheme,Rent Payable,02-May-23,2324/02,ST,N,
369040,PRIVATE LANDLORD,"1,300.00",Guaranteed Rent Scheme,Rent Payable,30-May-23,2324/02,ST,N,
368375,E.ON NEXT,20.34,HRA Strategic Property,Electricity,19-Apr-23,2324/02,LGE,N,
368375,E.ON NEXT,704.83,HRA Strategic Property,Gas,19-Apr-23,2324/02,LGE,N,
368377,E.ON NEXT,757.67,HRA Strategic Property,Gas,17-Apr-23,2324/02,LGE,N,
368382,E.ON NEXT,20.87,HRA Strategic Property,Electricity,19-Apr-23,2324/02,LGE,N,
368382,E.ON NEXT,704.83,HRA Strategic Property,Gas,19-Apr-23,2324/02,LGE,N,
368383,E.ON NEXT,42.97,HRA Strategic Property,Electricity,19-Apr-23,2324/02,LGE,N,
368383,E.ON NEXT,726.93,HRA Strategic Property,Gas,19-Apr-23,2324/02,LGE,N,
368384,E.ON NEXT,21.83,HRA Strategic Property,Electricity,17-Apr-23,2324/02,LGE,N,
368384,E.ON NEXT,645.54,HRA Strategic Property,Gas,17-Apr-23,2324/02,LGE,N,
368386,E.ON NEXT,714.46,HRA Strategic Property,Gas,15-Apr-23,2324/02,LGE,N,
368423,E.ON NEXT,3.26,HRA Strategic Property,Electricity,21-Apr-23,2324/02,LGE,N,
368423,E.ON NEXT,736.71,HRA Strategic Property,Gas,21-Apr-23,2324/02,LGE,N,
368424,E.ON NEXT,676.88,HRA Strategic Property,Gas,21-Apr-23,2324/02,LGE,N,
368425,E.ON NEXT,2.76,HRA Strategic Property,Electricity,22-Apr-23,2324/02,LGE,N,
368425,E.ON NEXT,679.92,HRA Strategic Property,Gas,22-Apr-23,2324/02,LGE,N,
368426,E.ON NEXT,676.88,HRA Strategic Property,Gas,21-Apr-23,2324/02,LGE,N,
368611,E.ON NEXT,279.6,Voids Maintenance,Gas,06-May-23,2324/02,LGE,N,
368802,E.ON NEXT,602.51,HRA Strategic Property,Gas,11-May-23,2324/02,LGE,N,
368936,E.ON NEXT,731.23,HRA Strategic Property,Gas,20-Apr-23,2324/02,LGE,N,
369035,E.ON NEXT,137.02,HRA Strategic Property,Electricity,30-May-23,2324/02,LGE,N,
369035,E.ON NEXT,540.82,HRA Strategic Property,Gas,30-May-23,2324/02,LGE,N,
368094,SSE,445.3,Voids Maintenance,Electricity,12-Apr-23,2324/02,LGE,N,
368843,PRIVATE LANDLORD,669,Guaranteed Rent Scheme,Rent Payable,22-May-23,2324/02,ST,N,
368428,PRIVATE LANDLORD,650,Guaranteed Rent Scheme,Rent Payable,09-May-23,2324/02,ST,N,
367981,MK AUTOS MOT CENTRE LIMITED,450,Taxi & Private Hire Licensing,Contracted Services,06-Apr-23,2324/02,SME,N,
368800,MK AUTOS MOT CENTRE LIMITED,350,Taxi & Private Hire Licensing,Contracted Services,30-Apr-23,2324/02,SME,N,
368431,PRIVATE LANDLORD,555,Guaranteed Rent Scheme,Rent Payable,09-May-23,2324/02,ST,N,
368940,PIXEL FINANCIAL MANAGEMENT LTD,"1,100.00",Financial Servs,Subscriptions,19-May-23,2324/02,SME,N,
368242,SHJ HOMES LTD,525,Guaranteed Rent Scheme,Rent Payable,02-May-23,2324/02,SME,N,
368871,SHJ HOMES LTD,550,Guaranteed Rent Scheme,Rent Payable,22-May-23,2324/02,SME,N,
368245,DUDLEY SMITH PARTNERSHIP LTD,300,Cross Street Tech Hub,Prof & Consultancy Fees,28-Apr-23,2324/02,SME,N,
368582,THORNHAM MAGNA BOWLS CLUB,"1,000.00",Grants & Contrbns,Grants,11-May-23,2324/02,SME,N,
368148,PONT ENTERPRISES LTD,"1,400.00",Other Temp Accommodation,Misc Supplies & Services Costs,19-Dec-22,2324/02,SME,N,
368149,PONT ENTERPRISES LTD,"1,200.00",Other Temp Accommodation,Misc Supplies & Services Costs,22-Nov-22,2324/02,SME,N,
368889,NEC SOFTWARE SOLUTIONS UK LTD,"3,000.00",Housing Standards,Software Licnse (Line of Bus) ,22-May-23,2324/02,LGE,Y,50%,,
368137,DPL GROUP LTD,"24,935.00",Leisure Contract,Repairs,26-Apr-23,2324/02,SME,N,
368236,HAMILTON SMITH LETTINGS,550,Guaranteed Rent Scheme,Rent Payable,02-May-23,2324/02,SME,N,
368392,HAMILTON SMITH LETTINGS,590,Guaranteed Rent Scheme,Rent Payable,09-May-23,2324/02,SME,N,
368651,HAMILTON SMITH LETTINGS,775,Guaranteed Rent Scheme,Rent Payable,15-May-23,2324/02,SME,N,
368872,HAMILTON SMITH LETTINGS,"2,000.00",Guaranteed Rent Scheme,Rent Payable,22-May-23,2324/02,SME,N,
369054,HAMILTON SMITH LETTINGS,405,Guaranteed Rent Scheme,Rent Payable,30-May-23,2324/02,SME,N,
368577,THE RESPUBLICA PARTNERSHIP LTD,"12,000.00",MSM Skills & Innovation Centre,Prof & Consultancy Fees,06-Feb-23,2324/02,SME,N,
368578,THE RESPUBLICA PARTNERSHIP LTD,"1,193.00",MSM Skills & Innovation Centre,Prof & Consultancy Fees,10-May-23,2324/02,SME,N,
368207,ADECCO UK LTD,961.52,Organisational Devt,Agency Staff,25-Apr-23,2324/02,LGE,Y,50%,,
368215,ADECCO UK LTD,"1,116.05",Organisational Devt,Agency Staff,25-Apr-23,2324/02,LGE,Y,50%,,
368216,ADECCO UK LTD,"1,116.05",Organisational Devt,Agency Staff,25-Apr-23,2324/02,LGE,Y,50%,,
368714,ADECCO UK LTD,"1,390.77",Organisational Devt,Agency Staff,25-Apr-23,2324/02,LGE,Y,50%,,
368791,ADECCO UK LTD,"1,193.32",Organisational Devt,Agency Staff,17-May-23,2324/02,LGE,Y,50%,,
369030,ADECCO UK LTD,"1,270.58",Organisational Devt,Agency Staff,24-May-23,2324/02,LGE,Y,50%,,
369031,ADECCO UK LTD,"1,270.58",Organisational Devt,Agency Staff,24-May-23,2324/02,LGE,Y,50%,,
368853,PAY 360 LIMITED,"8,499.76",Bank Chgs,Bank Charges,12-May-23,2324/02,LGE,N,
368693,GOVERNANCE TRAINING AND CONSULTANCY LTD,"1,590.00",Cost of Democracy,Training,15-May-23,2324/02,SME,Y,50%,,
368902,THE FOOD MUSEUM LTD,"5,000.00",MSM Town Centre Vision,Contributions & Donations,31-Mar-23,2324/02,SME,N,
368848,KADA RESEARCH LTD,"8,100.00",MSM Skills & Innovation Centre,Prof & Consultancy Fees,19-May-23,2324/02,SME,N,
368753,ELITE TEACHING LTD,858,Holiday Activity Fund,"Equipment, Tools & Materials",18-May-23,2324/02,SME,N,
368136,TILE HILL INTERIM & EXECUTIVE LTD,"7,020.00",Financial Servs,Agency Staff,26-Apr-23,2324/02,SME,Y,50%,,
368457,TILE HILL INTERIM & EXECUTIVE LTD,"6,240.00",Financial Servs,Agency Staff,09-May-23,2324/02,SME,Y,50%,,
369053,PRIVATE LANDLORD,410,Guaranteed Rent Scheme,Rent Payable,30-May-23,2324/02,ST,N,
368621,DTS EAST LTD T/A HUDSON SIGN SOLUTIONS,255,Endeavour House - HQ,Stationery,14-Apr-23,2324/02,SME,Y,
368393,PRIVATE LANDLORD,900,Guaranteed Rent Scheme,Rent Payable,09-May-23,2324/02,ST,N,
368390,PRIVATE LANDLORD,875,Guaranteed Rent Scheme,Rent Payable,09-May-23,2324/02,ST,N,
368239,BENICIA PROPERTIES LTD,650,Guaranteed Rent Scheme,Rent Payable,02-May-23,2324/02,SME,N,
368389,BENICIA PROPERTIES LTD,575,Guaranteed Rent Scheme,Rent Payable,09-May-23,2324/02,SME,N,
369029,BENICIA PROPERTIES LTD,650,Guaranteed Rent Scheme,Rent Payable,26-May-23,2324/02,SME,N,
368751,WIZ TRAINING & DEVELOPMENT LTD,"1,550.00",Organisational Devt,Training,18-May-23,2324/02,SME,Y,50%,,
369032,PRIVATE LANDLORD,800,Guaranteed Rent Scheme,Rent Payable,26-May-23,2324/02,ST,N,
368194,NEWSQUEST MEDIA GROUP,747.8,Devt Management - Apps,Advertising&mkting (non-staff),27-Apr-23,2324/02,LGE,N,
368371,NEWSQUEST MEDIA GROUP,865,Devt Management - Apps,Advertising&mkting (non-staff),04-May-23,2324/02,LGE,N,
368575,NEWSQUEST MEDIA GROUP,576.8,Devt Management - Apps,Advertising&mkting (non-staff),11-May-23,2324/02,LGE,N,
368784,NEWSQUEST MEDIA GROUP,525.3,Devt Management - Apps,Advertising&mkting (non-staff),18-May-23,2324/02,LGE,N,
368785,NEWSQUEST MEDIA GROUP,"1,236.00",Devt Management - Apps,Advertising&mkting (non-staff),18-May-23,2324/02,LGE,N,
368988,NEWSQUEST MEDIA GROUP,"1,050.60",Devt Management - Apps,Advertising&mkting (non-staff),25-May-23,2324/02,LGE,N,
368543,INSIGHT TECHNOLOGY (SUFFOLK) LTD,296.1,Tenancy Services,Fire Prevention,10-May-23,2324/02,SME,N,
368103,BELL DECORATING GROUP LTD,"23,080.83",Planned Maint - Ext Painting,Major Contracts,25-Apr-23,2324/02,LGE,N,
368391,PRIVATE LANDLORD,800,Guaranteed Rent Scheme,Rent Payable,09-May-23,2324/02,ST,N,
368677,FAMILIES TOGETHER SUFFOLK,"4,000.00",Grants & Contrbns,Grants,15-May-23,2324/02,SME,N,
368898,LEAD GENERA LTD,"2,112.50",Economy & Business,Prof & Consultancy Fees,23-May-23,2324/02,SME,Y,50%,,
368608,STEALTH REMOVALS LTD,276,Homeless Prevention Fund,Removal Expenses,10-May-23,2324/02,SME,N,
367774,SURFACING STANDARDS LTD,"4,850.00",SHELF Project,Prof & Consultancy Fees,10-Apr-23,2324/02,SME,N,
367272,BLOOM PROCUREMENT SERVICES LTD,"49,549.50",SHELF Project,Prof & Consultancy Fees,23-Mar-23,2324/02,SME,N,
368201,BLOOM PROCUREMENT SERVICES LTD,"36,708.00",SHELF Project,Prof & Consultancy Fees,27-Apr-23,2324/02,SME,N,
369007,SBA SUSTAINABILITY LIMITED,"8,300.00",SHELF Project,Prof & Consultancy Fees,23-May-23,2324/02,SME,N,
368220,INGENT CONSULTING ENGINEERS,"1,200.00",SHELF Project,Prof & Consultancy Fees,28-Apr-23,2324/02,SME,N,
368196,KMC TRANSPORT PLANNING LTD,400,SHELF Project,Prof & Consultancy Fees,26-Apr-23,2324/02,SME,N,
368863,THOMPSONS ESTATE OFFICES LTD,670,Guaranteed Rent Scheme,Rent Payable,22-May-23,2324/02,SME,N,
368290,COMMUNITIES TOGETHER EAST ANGLIA,"10,000.00",MSM Sustainable Travel,Contributions & Donations,14-Apr-23,2324/02,SME,N,
368434,COMMUNITIES TOGETHER EAST ANGLIA,"20,157.26",Community Wellbeing,Contributions & Donations,09-May-23,2324/02,SME,N,
368760,URBAN DESIGN LONDON,750,Devt Management - Apps,Subscriptions,18-May-23,2324/02,SME,Y,44%,,
368655,PRIVATE LANDLORD,895,Guaranteed Rent Scheme,Rent Payable,15-May-23,2324/02,ST,N,
368537,TURVEC SOLUTIONS LTD,"2,825.00",MSM Sustainable Travel,"Equipment, Tools & Materials",10-May-23,2324/02,SME,N,
367279,LAND UTILITY GROUP LTD,"9,425.00",SHELF Project,Prof & Consultancy Fees,09-Mar-23,2324/02,SME,N,
368178,ENVIRONMENTAL PROTECTION STRATEGIES LTD,"10,385.00",SHELF Project,Prof & Consultancy Fees,27-Apr-23,2324/02,SME,N,
368224,THE MYERS BRIGGS COMPANY LTD,"2,995.00",Organisational Devt,Training,02-May-23,2324/02,SME,Y,50%,,
368483,ANGLIA CAR CHARGING,"3,848.50",Climate Change and Sustainabil,Misc Supplies & Services Costs,09-May-23,2324/02,SME,N,
368742,ANGLIA CAR CHARGING,"108,842.71",EV Charge Points Car parks,Misc Supplies & Services Costs,17-May-23,2324/02,SME,Y,50%,,
368491,THE LITMUS PARTNERSHIP LTD,909.6,SHELF Project,Prof & Consultancy Fees,10-May-23,2324/02,SME,N,
368432,YELLOW HOMES LIMITED,"2,665.27",Guaranteed Rent Scheme,Rent Payable,09-May-23,2324/02,SME,N,
368657,PRIVATE LANDLORD,"1,050.00",Guaranteed Rent Scheme,Rent Payable,15-May-23,2324/02,SME,N,
368982,TAYPLAY SPORT LTD,849.8,Holiday Activity Fund,"Equipment, Tools & Materials",25-May-23,2324/02,SME,N,
368838,SAC COMMERCIAL LTD,"3,971.20",Economy & Business,Prof & Consultancy Fees,19-May-23,2324/02,LGE,Y,50%,,
368429,PRIVATE LANDLORD,880,Guaranteed Rent Scheme,Rent Payable,09-May-23,2324/02,ST,N,
368796,PROPERTY LETTING FURNITURE SOLUTIONS LTD,302,MSM Housing Solutions,Furniture,19-May-23,2324/02,SME,N,
368650,THE GREAT WHITE HORSE HOTEL,350,Homelessness Private Sector,B&B Costs,14-May-23,2324/02,SME,N,
368798,THE GREAT WHITE HORSE HOTEL,600,Homelessness Private Sector,B&B Costs,21-May-23,2324/02,SME,N,
423246,EUSTACE BROKE LORAINE TRUST,"1,616.48",Bring Sites,Contributions & Donations,10-May-23,2324/02,SME,N,
368909,COLNESETT LTD,"22,563.63",Cross Street Tech Hub,Prof & Consultancy Fees,03-May-23,2324/02,SME,N,
368369,GEERINGS PRINT LTD,385,MSM Housing Solutions,Misc Supplies & Services Costs,04-May-23,2324/02,SME,N,
368218,NHS SUFFOLK & NORTH EAST ESSEX ICB,"19,000.00",Ips & E Alliance-Michael Burke,Contributions from non-LAs,24-Mar-23,2324/02,LGE,N,
423258,PALMER AND PARTNERS (IPSWICH),"1,634.77",Homes for Ukraine,Misc Supplies & Services Costs,11-May-23,2324/02,SME,N,
368643,SUFFOLK CONTEMPORARY DANCE,884,Holiday Activity Fund,"Equipment, Tools & Materials",12-May-23,2324/02,ST,N,
368644,SUFFOLK CONTEMPORARY DANCE,556.13,Holiday Activity Fund,"Equipment, Tools & Materials",12-May-23,2324/02,ST,N,
368436,BAW STAIRLIFTS,"6,985.00",Mand Disabled Facilities Grant,Grants,09-May-23,2324/02,SME,N,
368906,STOUR BANK CARPENTRY,370,Endeavour House - HQ,Stationery,02-May-23,2324/02,ST,Y,50%,,
368707,HOXNE PAROCHIAL CHURCH COUNCIL,"17,200.75",CIL Funded REFCUS,Grants,16-May-23,2324/02,SME,N,
423265,MAP LETTINGS & PROPERTY MANAGEMENT,"1,050.00",Guaranteed Rent Scheme,Rent Payable,19-May-23,2324/02,SME,N,
423265,MAP LETTINGS & PROPERTY MANAGEMENT,200,Homeless Prevention Fund,Misc Supplies & Services Costs,19-May-23,2324/02,SME,N,
423265,MAP LETTINGS & PROPERTY MANAGEMENT,"1,500.00",Guaranteed Rent Scheme,Misc Supplies & Services Costs,19-May-23,2324/02,SME,N,
423363,MAXWELL BROWN INDEPENDENT PROPERTY AGENT,"1,200.00",Rent Deposit Scheme,Misc Premises Costs,24-May-23,2324/02,SME,N,
DDT0102127,ELMHURST ENERGY SYSTEMS LTD - DD,145.74,Current Assets,LLOYDS GENERAL PAYMENTS,15-May-23,2324/02,SME,N,
369099,CIVICA UK LIMITED,-672,Lettings & Allocations,Contracted Services,31-May-23,2324/02,LGE,N,
368715,ERNEST DOE & SONS LTD,-88.44,Open Spaces,"Equipment, Tools & Materials",12-Jan-23,2324/02,LGE,N,
368441,A C LEIGH (NORWICH) LTD,-71.24,Building Services,"Equipment, Tools & Materials",28-Apr-23,2324/02,SME,N,
1026,EWS LIMITED,-126.04,Tenancy Services,Other Service Charges,12-May-23,2324/02,SME,N,
EBC0051635,EWS LIMITED,126.04,Current Assets,LLOYDS GENERAL PAYMENTS,15-May-23,2324/02,SME,N,
368704,ADECCO UK LTD,-961.52,Organisational Devt,Agency Staff,21-Apr-23,2324/02,LGE,Y,50%,,
369051,AARON SERVICES LTD,"30,823.60",Planned Maint - Heating,Property Servicing,30-May-23,2324/03,SME,M8103,H2009,N,
423381,AARON SERVICES LTD,"1,489.03",Planned Maint - Heating,Property Servicing,09-Jun-23,2324/03,SME,M8103,H2009,N,
423382,AARON SERVICES LTD,277.74,Planned Maint - Heating,Property Servicing,30-May-23,2324/03,SME,M8103,H2009,N,
423383,AARON SERVICES LTD,"1,208.81",Voids Maintenance,Repairs,30-May-23,2324/03,SME,M8105,H2010,N,
423383,AARON SERVICES LTD,"22,908.03",Planned Maint - Heating,Property Servicing,30-May-23,2324/03,SME,M8103,H2009,N,
423385,AARON SERVICES LTD,841.57,Voids Maintenance,Repairs,14-Jun-23,2324/03,SME,M8105,H2010,N,
423385,AARON SERVICES LTD,"12,448.23",Planned Maint - Heating,Property Servicing,14-Jun-23,2324/03,SME,M8103,H2009,N,
423396,AARON SERVICES LTD,301.37,Voids Maintenance,Repairs,22-Jun-23,2324/03,SME,M8105,H2010,N,
423396,AARON SERVICES LTD,"6,347.14",Planned Maint - Heating,Property Servicing,22-Jun-23,2324/03,SME,M8103,H2009,N,
369660,ANGLIAN WATER,335.04,Other HRA Temp Accommodation,Water Rates - Metered,12-Jun-23,2324/03,LGE,M8499,H2034,N,
369336,AQUAJET CLEANING EQUIPMENT LTD,"25,995.00",Open Spaces,"Equipment, Tools & Materials",07-Jun-23,2324/03,SME,M4404,H3031,Y,50%
369371,AQUAJET CLEANING EQUIPMENT LTD,867,Creeting Rd Depot,"Equipment, Tools & Materials",08-Jun-23,2324/03,SME,M1103,H3031,Y,50%
369372,AQUAJET CLEANING EQUIPMENT LTD,336.51,Creeting Rd Depot,"Equipment, Tools & Materials",26-May-23,2324/03,SME,M1103,H3031,Y,50%
369148,ASSOCIATION OF ELECTORAL ADMINISTRATORS,"4,316.50",Electoral Registration,Returning Officer Fees,26-May-23,2324/03,SME,M5301,H3093,Y,50%
369047,BEN BURGESS GARDEN EQUIPMENT,"1,500.00",Open Spaces,"Equipment, Tools & Materials",30-May-23,2324/03,SME,M4404,H3031,N,
369286,BEN BURGESS GARDEN EQUIPMENT,"14,535.00",Vehicle and Plant Renewals,Plant & Vehicle - Purchase,06-Jun-23,2324/03,SME,M7052,H4016,N,
369811,BEN BURGESS GARDEN EQUIPMENT,"1,500.00",Open Spaces,"Equipment, Tools & Materials",27-Jun-23,2324/03,SME,M4404,H3031,N,
369686,BINDER LTD,"16,315.80",Sewage Treatment Works,Contracted Services,19-Jun-23,2324/03,SME,M8115,H3042,N,
368353,BOWER FULLER,"22,323.35",Pld Maint/ Enhncmts-C Parks,"Equipment, Tools & Materials",28-Apr-23,2324/03,SME,M7101,H3031,N,
368864,BOWER FULLER,"4,569.84",Sheltered Accommodation,Fire Prevention,22-May-23,2324/03,SME,M8410,H2048,N,
369289,BOWER FULLER,"1,939.72",Sheltered Accommodation,Fire Prevention,31-May-23,2324/03,SME,M8411,H2048,N,
369293,BOWER FULLER,"1,272.00",Tenancy Services,Fire Prevention,31-May-23,2324/03,SME,M8500,H2048,N,
369317,BOWER FULLER,"1,523.57",Sheltered Accommodation,Repairs,06-Jun-23,2324/03,SME,M8406,H2010,N,
369339,BUTTON & TURNER LTD,410,Open Spaces,Plant & Vehicle - Other costs,24-May-23,2324/03,SME,M4404,H4015,N,
369340,BUTTON & TURNER LTD,524.55,Open Spaces,Plant & Vehicle - Other costs,10-May-23,2324/03,SME,M4404,H4015,N,
369341,BUTTON & TURNER LTD,387.72,Street & Major Road Cleansing,Plant & Vehicle - Other costs,03-May-23,2324/03,SME,M4402,H4015,N,
369342,BUTTON & TURNER LTD,292.08,Open Spaces,Plant & Vehicle - Other costs,23-May-23,2324/03,SME,M4404,H4015,N,
369343,BUTTON & TURNER LTD,503.2,Open Spaces,Plant & Vehicle - Other costs,02-May-23,2324/03,SME,M4404,H4015,N,
369345,BUTTON & TURNER LTD,313.26,Open Spaces,Plant & Vehicle - Other costs,17-May-23,2324/03,SME,M4404,H4015,N,
369347,BUTTON & TURNER LTD,"1,047.63",Street & Major Road Cleansing,Plant & Vehicle - Other costs,15-May-23,2324/03,SME,M4402,H4015,N,
369350,BUTTON & TURNER LTD,286.45,Street & Major Road Cleansing,Plant & Vehicle - Other costs,15-May-23,2324/03,SME,M4402,H4015,N,
369716,CENTRAL TYRE LTD,306.07,Open Spaces,Plant & Vehicle - Other costs,21-Jun-23,2324/03,SME,M4404,H4015,N,
369769,CHASSIS-CAB LTD,650.18,Street & Major Road Cleansing,Plant & Vehicle - Other costs,23-Jun-23,2324/03,SME,M4402,H4015,N,
368829,CLARKE FENCING LTD,341.44,Open Spaces,"Equipment, Tools & Materials",18-May-23,2324/03,SME,M4404,H3031,N,
369050,CLARKE FENCING LTD,"1,629.72",Open Spaces,"Equipment, Tools & Materials",26-May-23,2324/03,SME,M4404,H3031,N,
369338,CLARKE FENCING LTD,"1,317.84",Open Spaces,"Equipment, Tools & Materials",07-Jun-23,2324/03,SME,M4404,H3031,N,
369376,CLARKE FENCING LTD,"1,181.53","Fences, Gates and Walls",Improvements,05-Jun-23,2324/03,SME,M7607,H2051,N,
369476,CLARKE FENCING LTD,"5,015.76",Open Spaces,"Equipment, Tools & Materials",09-Jun-23,2324/03,SME,M4404,H3031,N,
369712,CLARKE FENCING LTD,336.97,Open Spaces,"Equipment, Tools & Materials",20-Jun-23,2324/03,SME,M4404,H3031,N,
369614,COLCHESTER BOROUGH COUNCIL,515.43,Lettings & Allocations,Contracted Services,09-May-23,2324/03,SME,M8201,H3042,N,
368943,D W ADAMS LTD,"6,989.00",Council House Adaptions,Improvements,23-May-23,2324/03,SME,M7640,H2051,N,
369501,D W ADAMS LTD,"4,798.00",Council House Adaptions,Improvements,12-Jun-23,2324/03,SME,M7640,H2051,N,
369551,D W ADAMS LTD,"5,534.00",Council House Adaptions,Improvements,13-Jun-23,2324/03,SME,M7640,H2051,N,
369627,D W ADAMS LTD,"5,285.00",Council House Adaptions,Improvements,16-Jun-23,2324/03,SME,M7640,H2051,N,
369699,D W ADAMS LTD,"5,221.00",Council House Adaptions,Improvements,21-Jun-23,2324/03,SME,M7640,H2051,N,
369752,D W ADAMS LTD,"2,249.00",Building Services,Repairs,22-Jun-23,2324/03,SME,M8199,H2010,N,
369621,DIRECT WORKS FORUM,700,Building Services,Subscriptions,12-Jun-23,2324/03,SME,M8199,H3054,Y,50%
369731,DMA HEALTH AND SAFETY LTD,597,Wingfield Barns,Prof & Consultancy Fees,21-Jun-23,2324/03,SME,M2102,H3041,N,
369309,DOLPHIN STAIRLIFTS (EAST ANGLIA) LTD,"5,895.00",Mand Disabled Facilities Grant,Grants,06-Jun-23,2324/03,SME,M7001,H3081,N,
369110,EAST ANGLIA CLEANING SERVICES LTD,"1,604.54",Jnt Waste Contract,General Cleaning,31-May-23,2324/03,SME,M4501,H2011,Y,50%
369111,EAST ANGLIA CLEANING SERVICES LTD,483.73,Open Spaces,General Cleaning,31-May-23,2324/03,SME,M4404,H2011,N,
369784,EAST ANGLIA CLEANING SERVICES LTD,483.73,Open Spaces,General Cleaning,26-Jun-23,2324/03,SME,M4404,H2011,N,
369785,EAST ANGLIA CLEANING SERVICES LTD,"1,604.54",Jnt Waste Contract,General Cleaning,26-Jun-23,2324/03,SME,M4501,H2011,Y,50%
369144,EAST OF ENGLAND LGA,"1,200.00",Management Team,Prof & Consultancy Fees,06-Apr-23,2324/03,SME,M0100,H3041,Y,50%
369783,CIVICA ELECTION SERVICES,"3,021.49",Electoral Registration,Returning Officer Fees,05-May-23,2324/03,LGE,M5301,H3093,N,
369305,ENGLISH SECURITY,"1,098.11",Sheltered Accommodation,Fire Prevention,05-Jun-23,2324/03,SME,M8407,H2048,N,
369334,ENGLISH SECURITY,398.34,Sheltered Accommodation,Fire Prevention,07-Jun-23,2324/03,SME,M8406,H2048,N,
368935,FELGAINS CARE CENTRE,"3,983.00",Council House Adaptions,Improvements,23-May-23,2324/03,SME,M7640,H2051,N,
369307,FELGAINS CARE CENTRE,"2,720.00",Mand Disabled Facilities Grant,Grants,06-Jun-23,2324/03,SME,M7001,H3081,N,
369386,FELGAINS CARE CENTRE,"6,343.00",Mand Disabled Facilities Grant,Grants,09-Jun-23,2324/03,SME,M7001,H3081,N,
368521,FELLBRIDGE BUILDING SERVICES,"9,950.89",Voids Maintenance,Repairs,08-May-23,2324/03,SME,M8105,H2010,N,
368981,FELLBRIDGE BUILDING SERVICES,"29,375.28",Major Imps,Repairs,25-May-23,2324/03,SME,M7617,H2010,N,
369154,FELLBRIDGE BUILDING SERVICES,"4,033.61",Insulation Imps,Repairs,01-Jun-23,2324/03,SME,M7616,H2010,N,
369375,FELLBRIDGE BUILDING SERVICES,379.31,Building Services,Repairs,08-Jun-23,2324/03,SME,M8199,H2010,N,
369741,FELLBRIDGE BUILDING SERVICES,647.21,Building Services,Repairs,22-Jun-23,2324/03,SME,M8199,H2010,N,
369071,FORE-MOST GARAGE DOORS LTD,"1,096.40",Building Services,Repairs,31-May-23,2324/03,SME,M8199,H2010,N,
369071,FORE-MOST GARAGE DOORS LTD,810.9,"Garages, Forecourts & Stores",Repairs,31-May-23,2324/03,SME,M7606,H2010,N,
369522,G & G SIGNS,265.4,Street Naming & Numbering,Signs,09-Jun-23,2324/03,SME,M3306,H3034,N,
369149,GB ADAPTIONS LTD,"6,394.00",Mand Disabled Facilities Grant,Grants,01-Jun-23,2324/03,SME,M7001,H3081,N,
369171,GB ADAPTIONS LTD,"7,447.00",Mand Disabled Facilities Grant,Grants,01-Jun-23,2324/03,SME,M7001,H3081,N,
369536,GB ADAPTIONS LTD,"6,055.00",Mand Disabled Facilities Grant,Grants,13-Jun-23,2324/03,SME,M7001,H3081,N,
369571,GB ADAPTIONS LTD,"30,000.00",Mand Disabled Facilities Grant,Grants,14-Jun-23,2324/03,SME,M7001,H3081,N,
369572,GB ADAPTIONS LTD,786.7,Mand Disabled Facilities Grant,Grants,14-Jun-23,2324/03,SME,M7001,H3081,N,
369516,GHB ROOFING,"30,031.40",Roofing,Repairs,30-May-23,2324/03,SME,M7602,H2010,N,
369700,HAYES DIGGINS BUILDERS,"3,240.00",Insulation Imps,Repairs,03-May-23,2324/03,SME,M7616,H2010,N,
369387,KEYWAYS THE LOCKSMITHS LTD,300,Homeless Prevention Fund,Misc Premises Costs,09-Jun-23,2324/03,SME,M1404,H2042,N,
369840,KINGSLEY HOUSE HOTEL,"3,084.00",Homelessness Private Sector,B&B Costs,05-Apr-23,2324/03,SME,M1401,H3050,N,
369864,KINGSLEY HOUSE HOTEL,"5,008.00",Homelessness Private Sector,B&B Costs,04-Apr-23,2324/03,SME,M1401,H3050,N,
369528,LJ GAMMER (STOWMARKET) LTD,508.79,Building Services,Plant & Vehicle - Other costs,12-Jun-23,2324/03,SME,M8199,H4015,Y,50%
368333,M & H CIVIL ENGINEERING LTD,"1,294.29",Building Services,Repairs,02-May-23,2324/03,SME,M8199,H2010,N,
369052,M & H CIVIL ENGINEERING LTD,"1,451.50",Building Services,Repairs,30-May-23,2324/03,SME,M8199,H2010,N,
369288,M & H CIVIL ENGINEERING LTD,730.5,Building Services,Repairs,05-Jun-23,2324/03,SME,M8199,H2010,N,
369335,M & H CIVIL ENGINEERING LTD,850,Building Services,Repairs,06-Jun-23,2324/03,SME,M8199,H2010,N,
369525,M & H CIVIL ENGINEERING LTD,675,Building Services,Repairs,12-Jun-23,2324/03,SME,M8199,H2010,N,
369527,M & H CIVIL ENGINEERING LTD,"1,336.10",Building Services,Repairs,12-Jun-23,2324/03,SME,M8199,H2010,N,
369279,MATERIAL CHANGE COMPOSTING LTD,399.96,Open Spaces,Waste Disposal,31-May-23,2324/03,LGE,M4404,H3068,N,
369312,MB TREES (EAST ANGLIA) LTD,840,Public Tree Programme,Tree felling/maintenance,06-Jun-23,2324/03,SME,M4405,H2004,N,
369462,MERLIN DMS LTD,510,ICT,Contracted Services,01-Jun-23,2324/03,SME,M6200,H3042,N,
369146,MIXBROW LTD,949,Council House Adaptions,Improvements,24-May-23,2324/03,SME,M7640,H2051,N,
369353,MIXBROW LTD,"6,536.44",Council House Adaptions,Improvements,07-Jun-23,2324/03,SME,M7640,H2051,N,
369526,MIXBROW LTD,"5,080.00",Council House Adaptions,Improvements,12-Jun-23,2324/03,SME,M7640,H2051,N,
369549,MIXBROW LTD,"7,556.00",Council House Adaptions,Improvements,12-Jun-23,2324/03,SME,M7640,H2051,N,
369550,MIXBROW LTD,"3,210.00",Council House Adaptions,Improvements,12-Jun-23,2324/03,SME,M7640,H2051,N,
369637,MIXBROW LTD,"7,092.69",Council House Adaptions,Improvements,16-Jun-23,2324/03,SME,M7640,H2051,N,
369638,MIXBROW LTD,"8,299.71",Council House Adaptions,Improvements,16-Jun-23,2324/03,SME,M7640,H2051,N,
369639,MIXBROW LTD,"6,812.57",Council House Adaptions,Improvements,16-Jun-23,2324/03,SME,M7640,H2051,N,
369392,PMC POLYTHENE LTD,834,Street & Major Road Cleansing,"Equipment, Tools & Materials",09-Jun-23,2324/03,SME,M4402,H3031,N,
368847,PRO-FLAT SPECIALIST SERVICES LTD,"3,974.00",Building Services,Repairs,18-May-23,2324/03,SME,M8199,H2010,N,
368854,PRO-FLAT SPECIALIST SERVICES LTD,"3,038.00",Building Services,Repairs,25-Apr-23,2324/03,SME,M8199,H2010,N,
369409,PRO-FLAT SPECIALIST SERVICES LTD,680,Building Services,Repairs,09-Jun-23,2324/03,SME,M8199,H2010,N,
369409,PRO-FLAT SPECIALIST SERVICES LTD,722,Building Services,Repairs,09-Jun-23,2324/03,SME,M8199,H2010,N,
369410,PRO-FLAT SPECIALIST SERVICES LTD,"1,666.00",Building Services,Repairs,09-Jun-23,2324/03,SME,M8199,H2010,N,
369492,PRO-FLAT SPECIALIST SERVICES LTD,580,Building Services,Repairs,31-May-23,2324/03,SME,M8199,H2010,N,
369493,PRO-FLAT SPECIALIST SERVICES LTD,"2,293.00",Building Services,Repairs,31-May-23,2324/03,SME,M8199,H2010,N,
369494,PRO-FLAT SPECIALIST SERVICES LTD,"1,080.00",Building Services,Repairs,31-May-23,2324/03,SME,M8199,H2010,N,
369579,PRO-FLAT SPECIALIST SERVICES LTD,875,Building Services,Repairs,14-Jun-23,2324/03,SME,M8199,H2010,N,
369580,PRO-FLAT SPECIALIST SERVICES LTD,910,Building Services,Repairs,14-Jun-23,2324/03,SME,M8199,H2010,N,
369776,PRO-FLAT SPECIALIST SERVICES LTD,"1,363.00",Building Services,Repairs,23-Jun-23,2324/03,SME,M8199,H2010,N,
368286,REID PLUMBING & HEATING CONTRACTORS LTD,"44,114.05",Central Heating,Major Contracts,03-May-23,2324/03,SME,M7604,H6001,N,
368511,REID PLUMBING & HEATING CONTRACTORS LTD,"20,995.82",Central Heating,Major Contracts,10-May-23,2324/03,SME,M7604,H6001,N,
368702,REID PLUMBING & HEATING CONTRACTORS LTD,"15,836.00",Central Heating,Major Contracts,15-May-23,2324/03,SME,M7604,H6001,N,
368729,REID PLUMBING & HEATING CONTRACTORS LTD,"22,109.87",Central Heating,Major Contracts,17-May-23,2324/03,SME,M7604,H6001,N,
368942,REID PLUMBING & HEATING CONTRACTORS LTD,"43,217.02",Central Heating,Major Contracts,24-May-23,2324/03,SME,M7604,H6001,N,
369114,REID PLUMBING & HEATING CONTRACTORS LTD,"28,527.46",Central Heating,Major Contracts,31-May-23,2324/03,SME,M7604,H6001,N,
369600,REID PLUMBING & HEATING CONTRACTORS LTD,"10,086.00",Central Heating,Major Contracts,14-Jun-23,2324/03,SME,M7604,H6001,N,
369601,REID PLUMBING & HEATING CONTRACTORS LTD,438,Central Heating,Major Contracts,14-Jun-23,2324/03,SME,M7604,H6001,N,
369178,SACKERS LTD,"2,847.54",Building Services,Waste Disposal,31-May-23,2324/03,SME,M8199,H3068,Y,50%
369648,SHELTON DEVELOPMENT SEVICES LTD,"2,080.82",Assets & Development,Line of Business Applications,16-Jun-23,2324/03,SME,M6400,A3003,Y,50%
369062,SEAGER HOME SOLUTIONS,"60,478.05",Kitchens/Bathrooms,Major Contracts,26-May-23,2324/03,SME,M7605,H6001,N,
369098,SEAGER HOME SOLUTIONS,"7,390.00",Mand Disabled Facilities Grant,Grants,31-May-23,2324/03,SME,M7001,H3081,N,
369391,SOLUTIONS ON SECURITY SERVICES,650,Creeting Rd Depot,Misc Premises Costs,24-Apr-23,2324/03,SME,M1103,H2042,Y,50%
369411,SSI SCHAEFER LTD,"16,441.00",Bins,Bins,09-Jun-23,2324/03,SME,M7051,H3072,Y,50%
369373,SUFFOLK POLICE & CRIME COMMISSIONER,"1,000.00",Homelessness Private Sector,Contributions to other Bodies,08-Jun-23,2324/03,LGE,M1401,H3083,N,
368867,THE PLAY INSPECTION COMPANY LTD,"1,635.00",Open Spaces,Training,22-May-23,2324/03,SME,M4404,H1043,Y,50%
369299,THERMATECH,"10,750.00",Fire Risk Assessment (Flats),Prof & Consultancy Fees,05-Jun-23,2324/03,SME,M7635,H3041,N,
369477,THERMATECH,350,Temporary Accommodation,Fire Prevention,05-Jun-23,2324/03,SME,M1409,H2048,N,
369477,THERMATECH,350,Creeting Rd Depot,Fire Prevention,05-Jun-23,2324/03,SME,M1103,H2048,Y,50%
369751,THERMATECH,"3,900.00",Fire Risk Assessment (Flats),Prof & Consultancy Fees,22-Jun-23,2324/03,SME,M7635,H3041,N,
369754,THERMATECH,450,Building Services,Fire Prevention,22-Jun-23,2324/03,SME,M8199,H2048,N,
369306,THOMPSON COOPER LTD,713.96,Street & Major Road Cleansing,"Equipment, Tools & Materials",05-Jun-23,2324/03,SME,M4402,H3031,N,
369521,THOMPSON COOPER LTD,994.5,Street & Major Road Cleansing,"Equipment, Tools & Materials",08-Jun-23,2324/03,SME,M4402,H3031,N,
369151,WEST END REHOMING,665.34,Dog Control,Collection Charges,01-Jun-23,2324/03,SME,M4307,H3112,N,
368484,WINDIMAN LTD,"1,280.00",Window & Door Rplcmts,Repairs,09-May-23,2324/03,SME,M7603,H2010,N,
368914,WINDIMAN LTD,720,Building Services,Repairs,23-May-23,2324/03,SME,M8199,H2010,N,
368952,WINDIMAN LTD,640,Building Services,Repairs,23-May-23,2324/03,SME,M8199,H2010,N,
369086,WINDIMAN LTD,950,Window & Door Rplcmts,Repairs,30-May-23,2324/03,SME,M7603,H2010,N,
369087,WINDIMAN LTD,300,Building Services,Repairs,30-May-23,2324/03,SME,M8199,H2010,N,
369088,WINDIMAN LTD,"1,600.00",Window & Door Rplcmts,Repairs,30-May-23,2324/03,SME,M7603,H2010,N,
369359,WINDIMAN LTD,960,Insulation Imps,Repairs,07-Jun-23,2324/03,SME,M7616,H2010,N,
369360,WINDIMAN LTD,670,Insulation Imps,Repairs,07-Jun-23,2324/03,SME,M7616,H2010,N,
369361,WINDIMAN LTD,800,Voids Maintenance,Repairs,07-Jun-23,2324/03,SME,M8105,H2010,N,
369553,WINDIMAN LTD,990,Building Services,Repairs,13-Jun-23,2324/03,SME,M8199,H2010,N,
369554,WINDIMAN LTD,570,Building Services,Repairs,13-Jun-23,2324/03,SME,M8199,H2010,N,
369556,WINDIMAN LTD,850,Building Services,Repairs,13-Jun-23,2324/03,SME,M8199,H2010,N,
369557,WINDIMAN LTD,800,Building Services,Repairs,13-Jun-23,2324/03,SME,M8199,H2010,N,
369558,WINDIMAN LTD,800,Voids Maintenance,Repairs,13-Jun-23,2324/03,SME,M8105,H2010,N,
369559,WINDIMAN LTD,"1,600.00",Window & Door Rplcmts,Repairs,13-Jun-23,2324/03,SME,M7603,H2010,N,
369689,WINDIMAN LTD,"1,084.00",Window & Door Rplcmts,Repairs,20-Jun-23,2324/03,SME,M7603,H2010,N,
369690,WINDIMAN LTD,262,Building Services,Repairs,20-Jun-23,2324/03,SME,M8199,H2010,N,
369691,WINDIMAN LTD,300,Voids Maintenance,Repairs,20-Jun-23,2324/03,SME,M8105,H2010,N,
369014,WORKWEAR (EAST ANGLIA) LTD,279.95,Building Services,Protective clothing,22-May-23,2324/03,SME,M8199,H3033,Y,50%
369498,WORKWEAR (EAST ANGLIA) LTD,363.48,Open Spaces,Protective clothing,05-Jun-23,2324/03,SME,M4404,H3033,N,
369498,WORKWEAR (EAST ANGLIA) LTD,363.48,Street & Major Road Cleansing,Protective clothing,05-Jun-23,2324/03,SME,M4402,H3033,N,
369606,IPSWICH BOROUGH COUNCIL,"4,130.00",Shared Revenues Partnership,Contributions to other Bodies,14-Jun-23,2324/03,LGE,M6113,H3083,N,
369607,IPSWICH BOROUGH COUNCIL,"14,730.00",Shared Revenues Partnership,Contributions to other Bodies,14-Jun-23,2324/03,LGE,M6113,H3083,N,
369608,IPSWICH BOROUGH COUNCIL,"5,772.42",Shared Revenues Partnership,Contributions to other Bodies,14-Jun-23,2324/03,LGE,M6113,H3083,N,
369609,IPSWICH BOROUGH COUNCIL,"5,653.11",Shared Revenues Partnership,Contributions to other Bodies,12-Jun-23,2324/03,LGE,M6113,H3083,N,
369736,IPSWICH BOROUGH COUNCIL,"1,431.77",Shared Revenues Partnership,Contributions to other Bodies,19-Jun-23,2324/03,LGE,M6113,H3083,N,
369737,IPSWICH BOROUGH COUNCIL,"1,431.77",Shared Revenues Partnership,Contributions to other Bodies,19-Jun-23,2324/03,LGE,M6113,H3083,N,
369738,IPSWICH BOROUGH COUNCIL,"6,686.28",Shared Revenues Partnership,Contributions to other Bodies,19-Jun-23,2324/03,LGE,M6113,H3083,N,
369366,SERCO LTD,"4,587.00",Domestic Waste,Refuse Contract,07-Jun-23,2324/03,LGE,M4503,H6002,Y,50%
369367,SERCO LTD,"351,945.86",Domestic Waste,Refuse Contract,07-Jun-23,2324/03,LGE,M4503,H6002,Y,47%
369367,SERCO LTD,"27,482.56",Trade Waste,Refuse Contract,07-Jun-23,2324/03,LGE,M4505,H6002,Y,55%
369367,SERCO LTD,"97,030.98",Garden Waste,Refuse Contract,07-Jun-23,2324/03,LGE,M4506,H6002,Y,48%
369368,SERCO LTD,"6,902.60",Domestic Waste,Refuse Contract,07-Jun-23,2324/03,LGE,M4503,H6002,Y,50%
369369,SERCO LTD,"10,000.00",Jnt Waste Contract,Plant & Vehicle Fuel,07-Jun-23,2324/03,LGE,M4501,H4014,Y,50%
369380,SERCO LTD,"5,605.84",Open Spaces,Plant & Vehicle Fuel,07-Jun-23,2324/03,LGE,M4404,H4014,Y,50%
369713,SERCO LTD,"6,309.08",Domestic Waste,Refuse Contract,07-Jun-23,2324/03,LGE,M4503,H6002,Y,50%
368620,TRAVIS PERKINS TRADING CO LTD,625,Building Services,"Equipment, Tools & Materials",12-Apr-23,2324/03,LGE,M8199,H3033,Y,50%
368627,TRAVIS PERKINS TRADING CO LTD,394.5,Building Services,"Equipment, Tools & Materials",21-Apr-23,2324/03,LGE,M8199,H3033,Y,50%
368628,TRAVIS PERKINS TRADING CO LTD,882.79,Building Services,"Equipment, Tools & Materials",26-Apr-23,2324/03,LGE,M8199,H3033,Y,50%
368629,TRAVIS PERKINS TRADING CO LTD,"2,957.67",Building Services,"Equipment, Tools & Materials",26-Apr-23,2324/03,LGE,M8199,H3033,Y,50%
368633,TRAVIS PERKINS TRADING CO LTD,"3,270.99",Building Services,"Equipment, Tools & Materials",28-Apr-23,2324/03,LGE,M8199,H3033,Y,50%
368638,TRAVIS PERKINS TRADING CO LTD,"2,154.92",Building Services,"Equipment, Tools & Materials",10-May-23,2324/03,LGE,M8199,H3033,Y,50%
368639,TRAVIS PERKINS TRADING CO LTD,"3,115.33",Building Services,"Equipment, Tools & Materials",10-May-23,2324/03,LGE,M8199,H3033,Y,50%
368640,TRAVIS PERKINS TRADING CO LTD,744.26,Building Services,"Equipment, Tools & Materials",10-May-23,2324/03,LGE,M8199,H3033,Y,50%
368788,TRAVIS PERKINS TRADING CO LTD,333.24,Building Services,"Equipment, Tools & Materials",16-May-23,2324/03,LGE,M8199,H3033,Y,50%
368849,TRAVIS PERKINS TRADING CO LTD,"53,413.43",Building Services,"Equipment, Tools & Materials",30-Apr-23,2324/03,LGE,M8199,H3031,Y,42%
368920,TRAVIS PERKINS TRADING CO LTD,923.79,Building Services,"Equipment, Tools & Materials",19-May-23,2324/03,LGE,M8199,H3033,Y,50%
369000,TRAVIS PERKINS TRADING CO LTD,"2,953.03",Building Services,"Equipment, Tools & Materials",24-May-23,2324/03,LGE,M8199,H3033,Y,50%
369093,TRAVIS PERKINS TRADING CO LTD,271.32,Building Services,"Equipment, Tools & Materials",26-May-23,2324/03,LGE,M8199,H3033,Y,50%
369094,TRAVIS PERKINS TRADING CO LTD,"1,839.80",Building Services,"Equipment, Tools & Materials",26-May-23,2324/03,LGE,M8199,H3033,Y,50%
369399,TRAVIS PERKINS TRADING CO LTD,"1,348.31",Building Services,"Equipment, Tools & Materials",07-Jun-23,2324/03,LGE,M8199,H3033,N,
369464,TRAVIS PERKINS TRADING CO LTD,281.78,Building Services,"Equipment, Tools & Materials",08-Jun-23,2324/03,LGE,M8199,H3033,N,
369465,TRAVIS PERKINS TRADING CO LTD,"2,320.87",Building Services,"Equipment, Tools & Materials",08-Jun-23,2324/03,LGE,M8199,H3033,N,
369466,TRAVIS PERKINS TRADING CO LTD,"1,530.84",Building Services,"Equipment, Tools & Materials",08-Jun-23,2324/03,LGE,M8199,H3033,N,
369467,TRAVIS PERKINS TRADING CO LTD,488.28,Building Services,"Equipment, Tools & Materials",08-Jun-23,2324/03,LGE,M8199,H3033,N,
369497,TRAVIS PERKINS TRADING CO LTD,"66,304.71",Building Services,"Equipment, Tools & Materials",31-Mar-23,2324/03,LGE,M8199,H3031,Y,60.50%
369642,TRAVIS PERKINS TRADING CO LTD,"52,617.90",Building Services,"Equipment, Tools & Materials",31-May-23,2324/03,LGE,M8199,H3031,Y,33%
369664,TRAVIS PERKINS TRADING CO LTD,290.71,Building Services,"Equipment, Tools & Materials",16-Jun-23,2324/03,LGE,M8199,H3033,N,
423397,EDF ENERGY,"1,058.06",C Parks General,Electricity,15-Jun-23,2324/03,LGE,M4410,H2031,N,
423397,EDF ENERGY,875.54,Creeting Rd Depot,Electricity,15-Jun-23,2324/03,LGE,M1103,H2031,Y,50%
423397,EDF ENERGY,163.99,Headquarters General,Electricity,15-Jun-23,2324/03,LGE,M1102,H2031,N,
423397,EDF ENERGY,"26,305.23",Leisure Contract,Electricity,15-Jun-23,2324/03,LGE,M2203,H2031,N,
423397,EDF ENERGY,269.35,Needham Market Middle School,Electricity,15-Jun-23,2324/03,LGE,M6410,H2031,N,
423397,EDF ENERGY,"1,679.57",Open Spaces,Electricity,15-Jun-23,2324/03,LGE,M4404,H2031,N,
423397,EDF ENERGY,"8,672.49",Other HRA Temp Accommodation,Electricity,15-Jun-23,2324/03,LGE,M8499,H2031,N,
423397,EDF ENERGY,0.71,Pure Gym & Adjacent Building,Electricity,15-Jun-23,2324/03,LGE,M6427,H2031,N,
423397,EDF ENERGY,169.54,Recycling Centre,Electricity,15-Jun-23,2324/03,LGE,M4508,H2031,N,
423397,EDF ENERGY,384.11,Sewage Treatment Works,Electricity,15-Jun-23,2324/03,LGE,M8115,H2031,N,
423397,EDF ENERGY,"13,931.79",Sheltered Accommodation,Electricity,15-Jun-23,2324/03,LGE,M8406,H2031,N,
423397,EDF ENERGY,295.62,Tacon Close Eye TDP,Electricity,15-Jun-23,2324/03,LGE,M8804,H2031,N,
423397,EDF ENERGY,851.45,Temporary Accommodation,Electricity,15-Jun-23,2324/03,LGE,M1409,H2031,N,
423397,EDF ENERGY,"2,397.67",Tenancy Services,Electricity,15-Jun-23,2324/03,LGE,M8500,H2031,N,
423397,EDF ENERGY,"2,361.30",Wingfield Barns,Electricity,15-Jun-23,2324/03,LGE,M2102,H2031,N,
369668,J BREHENY CONTRACTORS LTD,"28,948.97",Strategic Assets,Major Contracts,16-Jun-23,2324/03,LGE,M7281,H6001,N,
423387,GPC BARCLAYS,"17,373.29",Current Assets,Barclaycard Control,14-Jun-23,2324/03,LGE,M9002,ZL086,Y,16%
423374,ALLSTAR BUSINESS SOLUTIONS LTD,67.95,Housing Options,Plant & Vehicle Fuel,31-May-23,2324/03,SME,M8200,H4014,Y,50%
423374,ALLSTAR BUSINESS SOLUTIONS LTD,"10,217.84",Building Services,Plant & Vehicle Fuel,31-May-23,2324/03,SME,M8199,H4014,Y,50%
369214,STANNAH STAIRLIFTS LTD,"4,843.24",Stairlifts,Plant Maintenance,01-Jun-23,2324/03,LGE,M8119,H2002,N,
423369,COMPUTERSHARE ,890,Current Assets,ChildCare Vouchers-Control,26-May-23,2324/03,LGE,M9002,ZG006,N,
369822,1ST WETHERDEN & HAUGHLEY SCOUTS,"2,738.54",Communities,Grants,26-Jun-23,2324/03,SME,M2309,H3081,N,
369757,EYE TOWN COUNCIL,"90,925.02",CIL Funded REFCUS,Grants,23-Jun-23,2324/03,SME,M7161,H3081,N,
369204,NEW ANGLIA LOCAL ENTERPRISE PARTNERSHIP,"7,000.00",Management Team,Advertising&mkting (non-staff),23-May-23,2324/03,SME,M0100,H3049,N,
369315,WALSHAM LE WILLOWS SPORTS CLUB,"25,000.00",Community Fund Projects-Grants,Grants,06-Jun-23,2324/03,SME,M7115,H3081,N,
368029,SUFFOLK COUNTY COUNCIL,618.75,Organisational Devt,Recruitment,20-Apr-23,2324/03,LGE,M5100,H1052,Y,50%
368852,SUFFOLK COUNTY COUNCIL,"1,579.16",Building Servs Tech Staff,Software Licnse (Line of Bus) ,19-May-23,2324/03,LGE,M8100,H3003,Y,50%
369012,SUFFOLK COUNTY COUNCIL,785,Organisational Devt,Recruitment,25-May-23,2324/03,LGE,M5100,H1052,Y,50%
369193,SUFFOLK COUNTY COUNCIL,"1,050.00",Pre App Charging,Prof & Consultancy Fees,01-Jun-23,2324/03,LGE,M3103,H3041,N,
369194,SUFFOLK COUNTY COUNCIL,"1,070.00",Pre App Charging,Highways  Consultancy,01-Jun-23,2324/03,LGE,M3103,H3155,N,
369374,SUFFOLK COUNTY COUNCIL,"6,278.86",Jnt Waste Contract,Subscriptions,07-Jun-23,2324/03,LGE,M4501,H3054,Y,50%
369381,SUFFOLK COUNTY COUNCIL,"1,280.00",Land Chgs,Contracted Services,07-Jun-23,2324/03,LGE,M6202,H3042,N,
369407,SUFFOLK COUNTY COUNCIL,"21,595.21",Domestic Waste,MRF Disposal,08-Jun-23,2324/03,LGE,M4503,H3069,N,
369407,SUFFOLK COUNTY COUNCIL,"29,225.63",Garden Waste,Garden Waste Disposal,08-Jun-23,2324/03,LGE,M4506,H3063,N,
369625,ROYAL MAIL,899.28,Electoral Registration,Postage,05-Jun-23,2324/03,LGE,B5301,H3025,N,
369037,TELEFONICA UK LIMITED - O2,"1,933.02",ICT,Telephone Costs,27-May-23,2324/03,LGE,M6200,H3011,Y,50%
369820,TELEFONICA UK LIMITED - O2,"1,841.38",ICT,Telephone Costs,27-Jun-23,2324/03,LGE,M6200,H3011,Y,50%
369674,SUFFOLK COUNTY COUNCIL - PENSIONS ACCT,"2,285.72",Ext Audit,Audit Fees,07-Mar-23,2324/03,LGE,M6103,H3045,N,
369390,EAST OF ENGLAND CO-OPERATIVE SOCIETY LTD,"1,413.00",Publice Health Funerals,Contracted Services,08-Jun-23,2324/03,LGE,M1306,H3042,N,
369073,LEX AUTOLEASE,620.97,Building Services,Lease Cars - Payment,16-May-23,2324/03,SME,M8199,H4011,Y,50%
369074,LEX AUTOLEASE,424.45,Building Services,Lease Cars - Payment,16-May-23,2324/03,SME,M8199,H4011,Y,50%
369075,LEX AUTOLEASE,337.78,Building Services,Lease Cars - Payment,14-May-23,2324/03,SME,M8199,H4011,Y,50%
369076,LEX AUTOLEASE,325.05,Building Services,Lease Cars - Payment,14-May-23,2324/03,SME,M8199,H4011,Y,50%
369077,LEX AUTOLEASE,265.48,Building Services,Lease Cars - Payment,14-May-23,2324/03,SME,M8199,H4011,Y,50%
369079,LEX AUTOLEASE,303.08,Building Services,Lease Cars - Payment,11-May-23,2324/03,SME,M8199,H4011,Y,50%
369080,LEX AUTOLEASE,315.39,Building Services,Lease Cars - Payment,11-May-23,2324/03,SME,M8199,H4011,Y,50%
369081,LEX AUTOLEASE,327.22,Building Services,Lease Cars - Payment,08-May-23,2324/03,SME,M8199,H4011,Y,50%
369082,LEX AUTOLEASE,311.29,Building Services,Lease Cars - Payment,08-May-23,2324/03,SME,M8199,H4011,Y,50%
369083,LEX AUTOLEASE,320.52,Building Services,Lease Cars - Payment,08-May-23,2324/03,SME,M8199,H4011,Y,50%
369200,LEX AUTOLEASE,348.97,Building Services,Lease Cars - Payment,29-May-23,2324/03,SME,M8199,H4011,Y,50%
369201,LEX AUTOLEASE,276.83,Building Services,Lease Cars - Payment,29-May-23,2324/03,SME,M8199,H4011,Y,50%
369202,LEX AUTOLEASE,310.1,Building Services,Lease Cars - Payment,29-May-23,2324/03,SME,M8199,H4011,Y,50%
369463,LEX AUTOLEASE,263.72,Building Services,Lease Cars - Payment,14-May-23,2324/03,SME,M8199,H4011,Y,50%
369424,CIVICA UK LIMITED,891.43,Lettings & Allocations,Contracted Services,31-May-23,2324/03,LGE,M8201,H3042,N,
368912,MID SUFFOLK CITIZENS ADVICE BUREAU,"62,750.00",Grants & Contrbns,Grants,24-May-23,2324/03,SME,M2107,H3081,N,
369507,TEMPLE GROUP LTD,"5,665.00",SHELF Project,Prof & Consultancy Fees,13-Jun-23,2324/03,SME,M7317,H3041,N,
369685,ACUITY RESEARCH & PRACTICE LTD,"4,031.50",Software/ICT Projects/Surveys,Improvements,15-Jun-23,2324/03,SME,M7623,H2051,Y,50%
369033,WHYBROW PROPERTY SOLUTIONS LTD,870.41,Council House Adaptions,Improvements,26-May-23,2324/03,SME,M7640,H2051,N,
369034,WHYBROW PROPERTY SOLUTIONS LTD,"6,722.36",Council House Adaptions,Improvements,26-May-23,2324/03,SME,M7640,H2051,N,
369721,WHYBROW PROPERTY SOLUTIONS LTD,"10,000.00",Major Imps,Repairs,15-Jun-23,2324/03,SME,M7617,H2010,N,
368750,L A C CLEANING CONTRACTORS LIMITED,"1,395.50",Voids Maintenance,Repairs,18-May-23,2324/03,SME,M8105,H2010,N,
368928,L A C CLEANING CONTRACTORS LIMITED,865.58,Temporary Accommodation,General Cleaning,23-May-23,2324/03,SME,M1409,H2011,N,
369095,L A C CLEANING CONTRACTORS LIMITED,285.5,Voids Maintenance,Repairs,31-May-23,2324/03,SME,M8105,H2010,N,
369097,L A C CLEANING CONTRACTORS LIMITED,415.5,Voids Maintenance,Repairs,31-May-23,2324/03,SME,M8105,H2010,N,
369281,L A C CLEANING CONTRACTORS LIMITED,990.5,Voids Maintenance,Repairs,05-Jun-23,2324/03,SME,M8105,H2010,N,
369401,L A C CLEANING CONTRACTORS LIMITED,447.5,Other Temp Accommodation,General Cleaning,08-Jun-23,2324/03,SME,M1410,H2011,N,
369544,L A C CLEANING CONTRACTORS LIMITED,285.5,Voids Maintenance,Repairs,13-Jun-23,2324/03,SME,M8105,H2010,N,
369545,L A C CLEANING CONTRACTORS LIMITED,435.5,Voids Maintenance,Repairs,13-Jun-23,2324/03,SME,M8105,H2010,N,
369599,L A C CLEANING CONTRACTORS LIMITED,565.5,Voids Maintenance,Repairs,10-Mar-23,2324/03,SME,M8105,H2010,N,
368990,BRITISH PARKING ASSOCIATION,720,C Parks General,Contracted Services,25-May-23,2324/03,SME,M4410,H3042,N,
369303,ARMSTRONG YORK ASBESTOS ENVIRONMENTAL,"8,802.59",Asbestos Survey & Reinspection,Prof & Consultancy Fees,31-May-23,2324/03,SME,M8128,H3041,N,
369313,ARMSTRONG YORK ASBESTOS ENVIRONMENTAL,"12,762.95",Asbestos Survey & Reinspection,Prof & Consultancy Fees,28-Apr-23,2324/03,SME,M8128,H3041,N,
369471,DMP TRAINING (UK),675,Street & Major Road Cleansing,Training,28-Apr-23,2324/03,SME,M4402,H1043,N,
369141,BAREFOOT & GILLES LTD,900,Cross Street Tech Hub,Prof & Consultancy Fees,31-Mar-23,2324/03,SME,M7295,H3041,N,
369142,BAREFOOT & GILLES LTD,900,Cross Street Tech Hub,Prof & Consultancy Fees,31-May-23,2324/03,SME,M7295,H3041,N,
423393,BT DIRECT DEBIT,"9,842.30",ICT,Telephone Costs,21-Jun-23,2324/03,LGE,M6200,H3011,N,
369137,COMMUNITY ACTION SUFFOLK,"1,940.80",Community Safety-General,Contributions & Donations,31-May-23,2324/03,SME,M2302,A3082,Y,50%
369654,OLD NEWTON VILLAGE HALL,"4,033.00",CIL Funded REFCUS,Grants,19-Jun-23,2324/03,SME,M7161,H3081,N,
369258,OXBURY CHARTERED SURVEYORS,"1,530.00","Framlingham Road, Laxfield",Prof & Consultancy Fees,27-Apr-23,2324/03,SME,M7716,H3041,N,
369591,OXBURY CHARTERED SURVEYORS,"1,530.00","Framlingham Road, Laxfield",Prof & Consultancy Fees,24-Feb-23,2324/03,SME,M7716,H3041,N,
369257,OPUS PEOPLE SOLUTIONS LTD,"1,187.22",Current Liabilities,Agency Staff Holding A/C,01-Jun-23,2324/03,SME,M9003,ZL116,N,
369461,OPUS PEOPLE SOLUTIONS LTD,"1,444.41",Current Liabilities,Agency Staff Holding A/C,08-Jun-23,2324/03,SME,M9003,ZL116,N,
369640,OPUS PEOPLE SOLUTIONS LTD,"1,564.97",Current Liabilities,Agency Staff Holding A/C,15-Jun-23,2324/03,SME,M9003,ZL116,N,
369795,OPUS PEOPLE SOLUTIONS LTD,"3,791.85",Current Liabilities,Agency Staff Holding A/C,22-Jun-23,2324/03,SME,M9003,ZL116,N,
368971,CORNERSTONE BARRISTERS,"1,500.00",Devt Management - Appeals,Legal Expenses,25-May-23,2324/03,SME,M3102,H3047,N,
369670,CORNERSTONE BARRISTERS,"55,937.06",Devt Management - Appeals,Legal Expenses,19-Jun-23,2324/03,SME,M3102,H3047,N,
369425,VERTAS GROUP LTD,765,Assets & Development,Repairs,31-May-23,2324/03,SME,M6400,H2010,N,
369496,4PRINCIPLES CONSTRUCTION LTD,"3,585.73",Mand Disabled Facilities Grant,Grants,13-Jun-23,2324/03,SME,M7001,H3081,N,
369628,4PRINCIPLES CONSTRUCTION LTD,"5,695.35",Mand Disabled Facilities Grant,Grants,16-Jun-23,2324/03,SME,M7001,H3081,N,
369629,4PRINCIPLES CONSTRUCTION LTD,"3,218.86",Mand Disabled Facilities Grant,Grants,16-Jun-23,2324/03,SME,M7001,H3081,N,
369673,4PRINCIPLES CONSTRUCTION LTD,"5,466.15",Mand Disabled Facilities Grant,Grants,20-Jun-23,2324/03,SME,M7001,H3081,N,
369675,4PRINCIPLES CONSTRUCTION LTD,"7,500.00",Mand Disabled Facilities Grant,Grants,20-Jun-23,2324/03,SME,M7001,H3081,N,
369183,UK CONTAINER MAINTENANCE LTD,"2,584.00",Jnt Waste Contract,"Equipment, Tools & Materials",30-May-23,2324/03,SME,M4501,H3031,Y,47%
369022,GALLAGHER CAR & VAN RENTALS LTD,"1,316.00",Domestic Waste,Refuse Contract,26-May-23,2324/03,LGE,M4503,H6002,N,
369314,GALLAGHER CAR & VAN RENTALS LTD,588,Domestic Waste,Refuse Contract,06-Jun-23,2324/03,LGE,M4503,H6002,N,
369695,GALLAGHER CAR & VAN RENTALS LTD,616,Domestic Waste,Refuse Contract,21-Jun-23,2324/03,LGE,M4503,H6002,N,
369697,GALLAGHER CAR & VAN RENTALS LTD,"1,232.00",Domestic Waste,Refuse Contract,21-Jun-23,2324/03,LGE,M4503,H6002,N,
369474,FORESOLUTIONS LTD,276.08,Open Spaces,Plant & Vehicle - Other costs,08-Jun-23,2324/03,SME,M4404,H4015,N,
369693,FORESOLUTIONS LTD,"1,236.60",Street & Major Road Cleansing,Plant & Vehicle - Other costs,26-May-23,2324/03,SME,M4402,H4015,N,
369552,THE BLACKBOURNE & WESLEY MAN ASSOCIATION,680,Devt Management - Apps,Room Hire,12-Jun-23,2324/03,SME,M3101,H3027,N,
369472,PENNA PLC,"13,629.00",Health & Safety,Agency Staff,02-Jun-23,2324/03,SME,M5101,H1031,Y,50%
369524,FREETHS LLP,350,Assets & Development,Misc Legal Expenses,28-Feb-23,2324/03,LGE,M6400,H3055,N,
369782,CHEC PLANNING LTD,"6,092.49",Nghbrhd Plan Designations,Prof & Consultancy Fees,23-Jun-23,2324/03,SME,M3702,H3041,N,
369147,FAST TEST STOWMARKET LLP,400,Taxi & Private Hire Licensing,Contracted Services,31-May-23,2324/03,SME,M4601,H3042,N,
369090,RICHARD UTTING ASSOCIATES LLP,"12,519.40",Needham Market Middle School,Prof & Consultancy Fees,31-Mar-23,2324/03,SME,M7685,H3041,N,
369755,RICHARD UTTING ASSOCIATES LLP,"2,124.74",Stowmarket Middle School,Prof & Consultancy Fees,31-May-23,2324/03,SME,M7309,H3041,N,
423388,HM COURTS & TRIBUNALS SERVICE  (DD ONLY),226,Tenancy Services,Specialist Legal Expenses,01-May-23,2324/03,LGE,M8500,A3047,Y,100%
423388,HM COURTS & TRIBUNALS SERVICE  (DD ONLY),"3,652.00",Building Servs Tech Staff,Legal Expenses,01-May-23,2324/03,LGE,M8100,H3047,Y,54.50%
369616,MANSION HOUSE PUBLISHING LTD,390,SHELF Project,Advertising&mkting (non-staff),14-Jun-23,2324/03,SME,M3563,H3049,N,
368880,PUBLIC SEWER SERVICES,330,Building Services,Repairs,23-May-23,2324/03,SME,M8199,H2010,N,
368895,PUBLIC SEWER SERVICES,507.93,Building Services,Repairs,23-May-23,2324/03,SME,M8199,H2010,N,
369124,PUBLIC SEWER SERVICES,704.12,Building Services,Repairs,31-May-23,2324/03,SME,M8199,H2010,N,
369215,THE STOWMARKET GLASS COMPANY LTD,"1,105.00",Building Services,Repairs,23-May-23,2324/03,SME,M8199,H2010,N,
369219,THE STOWMARKET GLASS COMPANY LTD,409.5,Building Services,Repairs,31-May-23,2324/03,SME,M8199,H2010,N,
369225,THE STOWMARKET GLASS COMPANY LTD,411.79,Building Services,Repairs,31-May-23,2324/03,SME,M8199,H2010,N,
369227,THE STOWMARKET GLASS COMPANY LTD,695.19,Building Services,Repairs,31-May-23,2324/03,SME,M8199,H2010,N,
369228,THE STOWMARKET GLASS COMPANY LTD,325,Building Services,Repairs,31-May-23,2324/03,SME,M8199,H2010,N,
369229,THE STOWMARKET GLASS COMPANY LTD,"1,755.00",Building Services,Repairs,15-May-23,2324/03,SME,M8199,H2010,N,
369230,THE STOWMARKET GLASS COMPANY LTD,"1,431.39",Building Services,Repairs,18-May-23,2324/03,SME,M8199,H2010,N,
369231,THE STOWMARKET GLASS COMPANY LTD,668.28,Building Services,Repairs,18-May-23,2324/03,SME,M8199,H2010,N,
369232,THE STOWMARKET GLASS COMPANY LTD,349.89,Building Services,Repairs,18-May-23,2324/03,SME,M8199,H2010,N,
369236,THE STOWMARKET GLASS COMPANY LTD,"1,324.16",Building Services,Repairs,18-May-23,2324/03,SME,M8199,H2010,N,
369244,THE STOWMARKET GLASS COMPANY LTD,845,Building Services,Repairs,11-May-23,2324/03,SME,M8199,H2010,N,
369248,THE STOWMARKET GLASS COMPANY LTD,365.19,Building Services,Repairs,11-May-23,2324/03,SME,M8199,H2010,N,
369139,ASPECT CONTRACTS LTD,"6,398.00",Asbestos,Improvements,18-May-23,2324/03,LGE,M7625,H2051,N,
369469,ASPECT CONTRACTS LTD,"3,224.00",Asbestos,Improvements,31-May-23,2324/03,LGE,M7625,H2051,N,
369351,MALLARD CONSULTANCY LTD,999,Food & Safety (General),Prof & Consultancy Fees,07-Jun-23,2324/03,SME,M4101,H3041,N,
369470,MALLARD CONSULTANCY LTD,999,Organisational Devt,Training,09-Jun-23,2324/03,SME,M5100,H1043,Y,50%
368985,THE OYSTER PARTNERSHIP LTD,"2,656.25",Building Servs Tech Staff,Agency Staff,24-May-23,2324/03,SME,M8100,H1031,Y,50%
369127,THE OYSTER PARTNERSHIP LTD,"1,078.00",Building Services,Agency Staff,31-May-23,2324/03,SME,M8199,H1031,Y,50%
369128,THE OYSTER PARTNERSHIP LTD,"2,046.35",Building Servs Tech Staff,Agency Staff,31-May-23,2324/03,SME,M8100,H1031,Y,50%
369129,THE OYSTER PARTNERSHIP LTD,"2,250.00",Building Servs Tech Staff,Agency Staff,31-May-23,2324/03,SME,M8100,H1031,Y,50%
369130,THE OYSTER PARTNERSHIP LTD,"3,650.00",HRA Strategic Property,Agency Staff,31-May-23,2324/03,SME,M8001,H1031,Y,50%
369131,THE OYSTER PARTNERSHIP LTD,844.05,Building Servs Tech Staff,Agency Staff,31-May-23,2324/03,SME,M8100,H1031,Y,50%
369132,THE OYSTER PARTNERSHIP LTD,923.25,Building Services,Agency Staff,31-May-23,2324/03,SME,M8199,H1031,Y,50%
369133,THE OYSTER PARTNERSHIP LTD,"2,656.25",Building Servs Tech Staff,Agency Staff,31-May-23,2324/03,SME,M8100,H1031,Y,50%
369134,THE OYSTER PARTNERSHIP LTD,923.25,Building Services,Agency Staff,31-May-23,2324/03,SME,M8199,H1031,Y,50%
369321,THE OYSTER PARTNERSHIP LTD,"2,920.00",HRA Strategic Property,Agency Staff,07-Jun-23,2324/03,SME,M8001,H1031,Y,50%
369322,THE OYSTER PARTNERSHIP LTD,"1,917.50",Building Servs Tech Staff,Agency Staff,07-Jun-23,2324/03,SME,M8100,H1031,Y,50%
369324,THE OYSTER PARTNERSHIP LTD,"2,125.00",Building Servs Tech Staff,Agency Staff,07-Jun-23,2324/03,SME,M8100,H1031,Y,50%
369325,THE OYSTER PARTNERSHIP LTD,"1,600.00",Building Servs Tech Staff,Agency Staff,07-Jun-23,2324/03,SME,M8100,H1031,Y,50%
369326,THE OYSTER PARTNERSHIP LTD,728,Building Services,Agency Staff,07-Jun-23,2324/03,SME,M8199,H1031,Y,50%
369328,THE OYSTER PARTNERSHIP LTD,"1,823.40",Building Servs Tech Staff,Agency Staff,07-Jun-23,2324/03,SME,M8100,H1031,Y,50%
369331,THE OYSTER PARTNERSHIP LTD,738.6,Building Services,Agency Staff,07-Jun-23,2324/03,SME,M8199,H1031,Y,50%
369581,THE OYSTER PARTNERSHIP LTD,"2,277.45",Building Servs Tech Staff,Agency Staff,14-Jun-23,2324/03,SME,M8100,H1031,Y,50%
369582,THE OYSTER PARTNERSHIP LTD,"2,018.00",Building Servs Tech Staff,Agency Staff,14-Jun-23,2324/03,SME,M8100,H1031,Y,50%
369593,THE OYSTER PARTNERSHIP LTD,"2,656.25",Building Servs Tech Staff,Agency Staff,14-Jun-23,2324/03,SME,M8100,H1031,Y,50%
369594,THE OYSTER PARTNERSHIP LTD,"2,447.30",Building Servs Tech Staff,Agency Staff,14-Jun-23,2324/03,SME,M8100,H1031,Y,50%
369595,THE OYSTER PARTNERSHIP LTD,"1,007.00",Building Servs Tech Staff,Agency Staff,14-Jun-23,2324/03,SME,M8100,H1031,Y,50%
369596,THE OYSTER PARTNERSHIP LTD,923.25,Building Services,Agency Staff,14-Jun-23,2324/03,SME,M8199,H1031,Y,50%
369597,THE OYSTER PARTNERSHIP LTD,"1,008.00",Building Services,Agency Staff,14-Jun-23,2324/03,SME,M8199,H1031,Y,50%
369598,THE OYSTER PARTNERSHIP LTD,"3,650.00",HRA Strategic Property,Agency Staff,14-Jun-23,2324/03,SME,M8001,H1031,Y,50%
369704,THE OYSTER PARTNERSHIP LTD,923.25,Building Services,Agency Staff,21-Jun-23,2324/03,SME,M8199,H1031,Y,50%
369705,THE OYSTER PARTNERSHIP LTD,"2,018.90",Building Servs Tech Staff,Agency Staff,21-Jun-23,2324/03,SME,M8100,H1031,Y,50%
369706,THE OYSTER PARTNERSHIP LTD,"3,650.00",HRA Strategic Property,Agency Staff,21-Jun-23,2324/03,SME,M8001,H1031,Y,50%
369707,THE OYSTER PARTNERSHIP LTD,"1,008.00",Building Services,Agency Staff,21-Jun-23,2324/03,SME,M8199,H1031,Y,50%
369708,THE OYSTER PARTNERSHIP LTD,"2,276.10",Building Servs Tech Staff,Agency Staff,21-Jun-23,2324/03,SME,M8100,H1031,Y,50%
369709,THE OYSTER PARTNERSHIP LTD,"1,924.30",Building Servs Tech Staff,Agency Staff,21-Jun-23,2324/03,SME,M8100,H1031,Y,50%
369710,THE OYSTER PARTNERSHIP LTD,"2,656.25",Building Servs Tech Staff,Agency Staff,21-Jun-23,2324/03,SME,M8100,H1031,Y,50%
423390,RIX PETROLEUM (EAST ANGLIA) LTD,"10,598.00",Open Spaces,Plant & Vehicle Fuel,02-Jun-23,2324/03,SME,M4404,H4014,N,
369421,KNOWLES ASSOCIATES TFM LTD,"1,638.00",Building Services,Vehicle Hire,21-Apr-23,2324/03,SME,M8199,H4013,Y,50%
369632,KNOWLES ASSOCIATES TFM LTD,644,Building Services,Vehicle Hire,16-Jun-23,2324/03,SME,M8199,H4013,Y,50%
369189,VIVID RESOURCING,"1,848.10",Building Servs Tech Staff,Agency Staff,31-May-23,2324/03,SME,M8100,H1031,Y,50%
369352,VIVID RESOURCING,"1,464.80",Building Servs Tech Staff,Agency Staff,07-Jun-23,2324/03,SME,M8100,H1031,Y,50%
369583,VIVID RESOURCING,"1,757.65",Building Servs Tech Staff,Agency Staff,14-Jun-23,2324/03,SME,M8100,H1031,Y,50%
369423,NORTHUMBRIAN WATER LTD,"1,344.06",Sheltered Accommodation,Legionella Testing,25-May-23,2324/03,LGE,M8411,H2044,N,
369423,NORTHUMBRIAN WATER LTD,39.3,Tenancy Services,Legionella Testing,25-May-23,2324/03,LGE,M8500,H2044,N,
369085,PARK AVENUE RECRUITMENT LTD,"1,675.00",Devt Management - Apps,Prof & Consultancy Fees,25-Apr-23,2324/03,SME,M3101,H3041,Y,45%
369089,PARK AVENUE RECRUITMENT LTD,"1,900.00",Devt Management - Apps,Prof & Consultancy Fees,30-May-23,2324/03,SME,M3101,H3041,Y,45%
369615,RESIDENTIALLY CHARTERED SURVEYORS,"1,600.00",Loraine Way Bramford  S106,Prof & Consultancy Fees,14-Jun-23,2324/03,SME,M7712,H3041,N,
369592,WILD FRONTIER ECOLOGY LTD,"3,347.00",Paddock House Eye,Prof & Consultancy Fees,03-May-23,2324/03,SME,M7686,H3041,N,
369251,PORTAL PLAN QUEST LTD,462,Devt Management - Apps,Planning Fees,02-Jun-23,2324/03,SME,M3101,H9112,N,
369377,PORTAL PLAN QUEST LTD,924,Devt Management - Apps,Planning Fees,07-Jun-23,2324/03,SME,M3101,H9112,N,
369538,PORTAL PLAN QUEST LTD,"3,234.00",Devt Management - Apps,Planning Fees,13-Jun-23,2324/03,SME,M3101,H9112,N,
369683,PORTAL PLAN QUEST LTD,462,Devt Management - Apps,Planning Fees,20-Jun-23,2324/03,SME,M3101,H9112,N,
369277,MTM PLANT AND SALES LTD,350,Open Spaces,"Equipment, Tools & Materials",31-May-23,2324/03,SME,M4404,H3031,N,
369680,ABBEYCROFT LEISURE,"1,932.60",Holiday Activity Fund,"Equipment, Tools & Materials",02-Feb-23,2324/03,LGE,M2113,H3031,N,
369803,ABBEYCROFT LEISURE,934.99,Holiday Activity Fund,"Equipment, Tools & Materials",27-Jun-23,2324/03,LGE,M2113,H3031,N,
369011,EARTH ANCHORS LTD,580,Sheltered General Mgmt,Furniture,19-May-23,2324/03,SME,M8450,H3026,N,
369172,HAMSON BARRON SMITH LTD,"1,000.00",BRRP-MarketTownVision&Invest,Prof & Consultancy Fees,31-May-23,2324/03,LGE,M6805,H3041,N,
369173,HAMSON BARRON SMITH LTD,"1,400.00",Strategic Investment Fund,Prof & Consultancy Fees,31-May-23,2324/03,LGE,M7314,H3041,N,
369633,HAMSON BARRON SMITH LTD,"3,165.50",Strategic Investment Fund,Prof & Consultancy Fees,16-Jun-23,2324/03,LGE,M7314,H3041,N,
369105,A C LEIGH (NORWICH) LTD,641.6,Building Services,"Equipment, Tools & Materials",26-May-23,2324/03,SME,M8199,H3031,N,
369502,A C LEIGH (NORWICH) LTD,440,Building Services,"Equipment, Tools & Materials",01-Jun-23,2324/03,SME,M8199,H3031,N,
369661,A C LEIGH (NORWICH) LTD,259.67,Building Services,"Equipment, Tools & Materials",16-Jun-23,2324/03,SME,M8199,H3031,N,
368826,SUFFOLK POWER EQUIPMENT,"1,061.14",Open Spaces,Plant & Vehicle - Other costs,18-May-23,2324/03,ST,M4404,H4015,N,
368827,SUFFOLK POWER EQUIPMENT,"1,160.06",Open Spaces,Plant & Vehicle - Other costs,18-May-23,2324/03,ST,M4404,H4015,N,
368828,SUFFOLK POWER EQUIPMENT,904.92,Open Spaces,Plant & Vehicle - Other costs,18-May-23,2324/03,ST,M4404,H4015,N,
368830,SUFFOLK POWER EQUIPMENT,"1,207.56",Open Spaces,Plant & Vehicle - Other costs,18-May-23,2324/03,ST,M4404,H4015,N,
368831,SUFFOLK POWER EQUIPMENT,818.21,Open Spaces,Plant & Vehicle - Other costs,18-May-23,2324/03,ST,M4404,H4015,N,
368832,SUFFOLK POWER EQUIPMENT,"1,702.39",Open Spaces,Plant & Vehicle - Other costs,18-May-23,2324/03,ST,M4404,H4015,N,
368833,SUFFOLK POWER EQUIPMENT,903.98,Open Spaces,Plant & Vehicle - Other costs,18-May-23,2324/03,ST,M4404,H4015,N,
368834,SUFFOLK POWER EQUIPMENT,"1,090.90",Open Spaces,Plant & Vehicle - Other costs,18-May-23,2324/03,ST,M4404,H4015,N,
368835,SUFFOLK POWER EQUIPMENT,"1,619.13",Open Spaces,Plant & Vehicle - Other costs,18-May-23,2324/03,ST,M4404,H4015,N,
369109,SUFFOLK POWER EQUIPMENT,"1,450.00",Open Spaces,"Equipment, Tools & Materials",26-May-23,2324/03,ST,M4404,H3031,N,
369512,SUFFOLK POWER EQUIPMENT,725.42,Open Spaces,"Equipment, Tools & Materials",10-Jun-23,2324/03,ST,M4404,H3031,N,
369513,SUFFOLK POWER EQUIPMENT,260,Open Spaces,"Equipment, Tools & Materials",10-Jun-23,2324/03,ST,M4404,H3031,N,
369265,3 POINT PROPERTY MANAGEMENT LTD,675,Guaranteed Rent Scheme,Rent Payable,05-Jun-23,2324/03,SME,M1414,H2023,N,
369270,3 POINT PROPERTY MANAGEMENT LTD,595,Guaranteed Rent Scheme,Rent Payable,05-Jun-23,2324/03,SME,M1414,H2023,N,
369274,3 POINT PROPERTY MANAGEMENT LTD,895,Guaranteed Rent Scheme,Rent Payable,05-Jun-23,2324/03,SME,M1414,H2023,N,
369240,OAKPARK SECURITY SYSTEMS LTD,"1,395.00",Temporary Accommodation,Misc Premises Costs,31-May-23,2324/03,LGE,M1409,H2042,N,
369160,HUGHES TRADE,848.03,Other Temp Accommodation,Furniture,22-May-23,2324/03,LGE,M1410,H3026,N,
369389,HUGHES TRADE,317.46,Other Temp Accommodation,Furniture,09-Jun-23,2324/03,LGE,M1410,H3026,N,
369791,HUGHES TRADE,292.31,Other Temp Accommodation,Furniture,20-Jun-23,2324/03,LGE,M1410,H3026,N,
369252,APTL ENTERPRISES LTD,"4,326.67",PV Panels,Contracted Services,30-Apr-23,2324/03,SME,M1115,H3042,N,
369253,APTL ENTERPRISES LTD,"4,326.67",PV Panels,Contracted Services,31-May-23,2324/03,SME,M1115,H3042,N,
369575,APTL ENTERPRISES LTD,"8,205.00",PV Panels,Contracted Services,31-May-23,2324/03,SME,M1115,H3042,N,
369209,WASHCO LTD,467,Sheltered Accommodation,"Equipment, Tools & Materials",01-Jun-23,2324/03,SME,M8411,H3031,N,
368343,ANGLIA COMMERCIAL FLOORING LTD,"1,209.46",Voids Maintenance,Repairs,02-May-23,2324/03,SME,M8105,H2010,N,
368561,ANGLIA COMMERCIAL FLOORING LTD,"1,028.15",Building Services,Repairs,11-May-23,2324/03,SME,M8199,H2010,N,
368772,ANGLIA COMMERCIAL FLOORING LTD,"2,060.56",Building Services,Repairs,18-May-23,2324/03,SME,M8199,H2010,N,
369116,ANGLIA COMMERCIAL FLOORING LTD,481.8,Building Services,Repairs,31-May-23,2324/03,SME,M8199,H2010,N,
369357,ANGLIA COMMERCIAL FLOORING LTD,"2,273.73",Voids Maintenance,Repairs,31-May-23,2324/03,SME,M8105,H2010,N,
369358,ANGLIA COMMERCIAL FLOORING LTD,431.38,Voids Maintenance,Repairs,31-May-23,2324/03,SME,M8105,H2010,N,
369701,ANGLIA COMMERCIAL FLOORING LTD,400.22,Voids Maintenance,Repairs,12-Jun-23,2324/03,SME,M8105,H2010,N,
369702,ANGLIA COMMERCIAL FLOORING LTD,969.96,Voids Maintenance,Repairs,12-Jun-23,2324/03,SME,M8105,H2010,N,
369703,ANGLIA COMMERCIAL FLOORING LTD,969.96,Voids Maintenance,Repairs,12-Jun-23,2324/03,SME,M8105,H2010,N,
369364,CABBAGES & KINGS,294.65,Endeavour House - HQ,Food & Drink,07-Jun-23,2324/03,SME,M6414,H3028,Y,50%
423380,ANGLIAN WATER BUS (NAT) LTD T/A WAVE,613.65,Creeting Rd Depot,Water Rates - Metered,12-Jun-23,2324/03,LGE,M1103,H2034,Y,50%
423380,ANGLIAN WATER BUS (NAT) LTD T/A WAVE,120,Headquarters General,Water Rates - Metered,12-Jun-23,2324/03,LGE,M1102,H2034,N,
423380,ANGLIAN WATER BUS (NAT) LTD T/A WAVE,17.1,HRA Strategic Property,Water Rates - Metered,12-Jun-23,2324/03,LGE,M8001,H2034,N,
423380,ANGLIAN WATER BUS (NAT) LTD T/A WAVE,167.04,Open Spaces,Water Rates - Metered,12-Jun-23,2324/03,LGE,M4404,H2034,N,
423380,ANGLIAN WATER BUS (NAT) LTD T/A WAVE,256.98,Public Conveniences,Water Rates - Metered,12-Jun-23,2324/03,LGE,M4401,H2034,N,
423380,ANGLIAN WATER BUS (NAT) LTD T/A WAVE,6.92,Recycling Centre,Water Rates - Metered,12-Jun-23,2324/03,LGE,M4508,H2034,N,
423380,ANGLIAN WATER BUS (NAT) LTD T/A WAVE,6.92,Sewage Treatment Works,Water Rates - Metered,12-Jun-23,2324/03,LGE,M8115,H2034,N,
423380,ANGLIAN WATER BUS (NAT) LTD T/A WAVE,"1,354.23",Sheltered Accommodation,Water Rates - Metered,12-Jun-23,2324/03,LGE,M8401,H2034,N,
423380,ANGLIAN WATER BUS (NAT) LTD T/A WAVE,17.63,Tacon Close Eye TDP,Water Rates - Metered,12-Jun-23,2324/03,LGE,M8804,H2034,N,
423380,ANGLIAN WATER BUS (NAT) LTD T/A WAVE,67.24,Temporary Accommodation,Water Rates - Metered,12-Jun-23,2324/03,LGE,M8498,H2034,N,
423380,ANGLIAN WATER BUS (NAT) LTD T/A WAVE,16.61,Tenancy Services,Water Rates - Metered,12-Jun-23,2324/03,LGE,M8500,H2034,N,
423380,ANGLIAN WATER BUS (NAT) LTD T/A WAVE,26.46,Wingfield Barns,Water Rates - Metered,12-Jun-23,2324/03,LGE,M2102,H2034,N,
369156,127 TRADING LTD,351.25,Food & Safety (General),Food & Drink,01-Jun-23,2324/03,SME,M4101,H3028,Y,50%
369643,PARKYNS LETTINGS BURY ST EDMUNDS,"1,300.00",Guaranteed Rent Scheme,Rent Payable,19-Jun-23,2324/03,SME,M1414,H2023,N,
423379,IMSERV EUROPE LTD,105.27,Pure Gym & Adjacent Building,Electricity,23-May-23,2324/03,LGE,M6427,H2031,N,
423379,IMSERV EUROPE LTD,508.37,Leisure Contract,Electricity,23-May-23,2324/03,LGE,M2203,H2031,N,
369162,STUDLEY CAPITAL LIMITED,593.75,MSM Skills & Innovation Centre,Prof & Consultancy Fees,01-Jun-23,2324/03,ST,M3553,H3041,N,
369163,STUDLEY CAPITAL LIMITED,831.25,MSM Feasibility & Match Fundin,Prof & Consultancy Fees,01-Jun-23,2324/03,ST,M3561,H3041,N,
369164,MID SUFFOLK GROWTH LTD,"2,673.37",Loraine Way Bramford  S106,Prof & Consultancy Fees,31-May-23,2324/03,SME,M7712,H3041,N,
369165,MID SUFFOLK GROWTH LTD,"1,515.00","Cedars Park C & D, Stowmarket",Prof & Consultancy Fees,31-May-23,2324/03,SME,M7701,H3041,N,
423384,THE CODDENHAM CENTRE,382.5,Elections,Misc Supplies & Services Costs,14-Jun-23,2324/03,SME,M5302,H3106,N,
369318,OCN CONTRACTS,"1,110.00",Temporary Accommodation,Furniture,04-Apr-23,2324/03,SME,M1409,H3026,N,
369150,PENTACO CONSTRUCTION LTD,"461,526.00",Stowmarket Middle School,Major Contracts,30-May-23,2324/03,SME,M7696,H6001,N,
369535,ACORN MOBILITY SERVICES LTD,"6,085.00",Mand Disabled Facilities Grant,Grants,13-Jun-23,2324/03,LGE,M7001,H3081,N,
369733,ELLISONS SOLICITORS,"10,000.00","Cedars Park C & D, Stowmarket",Prof & Consultancy Fees,16-May-23,2324/03,SME,M7701,H3041,N,
369734,ELLISONS SOLICITORS,"1,800.00",Land at Walsham le Willows,Prof & Consultancy Fees,16-May-23,2324/03,SME,M7707,H3041,N,
369809,LIMELEASE LTD,435,Guaranteed Rent Scheme,Rent Payable,26-Jun-23,2324/03,SME,M1414,H2023,N,
369529,BUCHER MUNICIPAL LTD,509.71,Street & Major Road Cleansing,Plant & Vehicle - Other costs,05-Jun-23,2324/03,LGE,M4402,H4015,N,
369747,PLUG-N-GO-LIMITED,550,Climate Change and Sustainabil,Contracted Services,01-Apr-23,2324/03,SME,M4306,H3042,N,
369666,PRIVATE LANDLORD,836.5,Guaranteed Rent Scheme,Rent Payable,19-Jun-23,2324/03,ST,M1414,H2023,N,
369667,PRIVATE LANDLORD,836.5,Guaranteed Rent Scheme,Rent Payable,19-Jun-23,2324/03,ST,M1414,H2023,N,
369517,PAUL WRIGHT & CO,850,Guaranteed Rent Scheme,Rent Payable,13-Jun-23,2324/03,SME,M1414,H2023,N,
423392,PAUL WRIGHT & CO,577.5,Guaranteed Rent Scheme,Rent Payable,22-Jun-23,2324/03,SME,M1414,H2023,N,
423392,PAUL WRIGHT & CO,"1,500.00",Guaranteed Rent Scheme,Misc Supplies & Services Costs,22-Jun-23,2324/03,SME,M1414,H3106,N,
423395,PAUL WRIGHT & CO,750,Guaranteed Rent Scheme,Misc Supplies & Services Costs,26-Jun-23,2324/03,SME,M1414,H3106,N,
369662,SUFFOLK DOORS & WINDOWS LTD,"8,650.00",Building Services,Repairs,19-Jun-23,2324/03,SME,M8199,H2010,N,
369459,PRIVATE LANDLORD,786.5,Guaranteed Rent Scheme,Rent Payable,12-Jun-23,2324/03,ST,M1414,H2023,N,
369190,COUNTRYSTYLE RECYCLING LTD,"4,962.79",Bring Sites,Contracted Services,31-May-23,2324/03,SME,M4504,H3042,N,
369523,BURGESS HOMES LTD,"13,781.13","Back Hills, Botesdale, S106",Prof & Consultancy Fees,11-Apr-23,2324/03,SME,M7670,H3041,N,
367532,DGL QUALITY MANAGEMENT LTD,478,Needham Market Middle School,Prof & Consultancy Fees,31-Mar-23,2324/03,SME,M7685,H3041,N,
369177,DGL QUALITY MANAGEMENT LTD,"1,092.00",Stowmarket Middle School,Prof & Consultancy Fees,31-May-23,2324/03,SME,M7696,H3041,N,
369790,PRIMADONNA FESTIVAL CIC,"5,000.00",MSM Town Centre Vision,Contributions & Donations,23-Jun-23,2324/03,SME,M3560,H3082,N,
368495,ARAN INSULATION LTD,"4,512.79",Insulation Imps,Repairs,09-May-23,2324/03,SME,M7616,H2010,N,
368496,ARAN INSULATION LTD,"6,132.63",Insulation Imps,Repairs,09-May-23,2324/03,SME,M7616,H2010,N,
368733,ARAN INSULATION LTD,"2,813.10",Insulation Imps,Improvements,17-May-23,2324/03,SME,M7616,H2051,N,
368774,ARAN INSULATION LTD,"6,574.62",Insulation Imps,Repairs,18-May-23,2324/03,SME,M7616,H2010,N,
368370,IAN BOOTH CONSULTANT ENGINEER LTD,680,Strategic Assets,Prof & Consultancy Fees,03-May-23,2324/03,SME,M7281,H3041,N,
369490,IAN BOOTH CONSULTANT ENGINEER LTD,960,Strategic Assets,Prof & Consultancy Fees,09-Jun-23,2324/03,SME,M7281,H3041,N,
369590,STORM ENVIRONMENTAL LTD,"15,665.00",Bins,Bins,12-Jun-23,2324/03,SME,M7051,H3072,Y,50%
369749,STORM ENVIRONMENTAL LTD,"7,932.50",Bins,Bins,21-Jun-23,2324/03,SME,M7051,H3072,N,
369634,DRISCOLL KINGSTON SOLICITORS,"2,192.24",Building Services,Payments to Tenants,16-Jun-23,2324/03,SME,M8199,H7021,N,
423389,DRISCOLL KINGSTON SOLICITORS,"7,100.00",Building Services,Payments to Tenants,16-Jun-23,2324/03,SME,M8199,H7021,N,
369268,MARCHDELL LTD,715,Guaranteed Rent Scheme,Rent Payable,05-Jun-23,2324/03,SME,M1414,H2023,N,
368963,URBA,"3,655.00",Devt Management - Apps,Viability,24-May-23,2324/03,SME,M3101,H3163,N,
369138,E.ON NEXT,470.87,Other HRA Temp Accommodation,Heating Charges,08-May-23,2324/03,LGE,M8499,H9206,N,
369624,E.ON NEXT,359.88,Tenancy Services,Electricity,06-Jun-23,2324/03,LGE,M8500,H2031,N,
369835,SSE,955.1,Other Temp Accommodation,Electricity,22-Jun-23,2324/03,LGE,M1410,H2031,N,
369645,PRIVATE LANDLORD,669,Guaranteed Rent Scheme,Rent Payable,19-Jun-23,2324/03,ST,M1414,H2023,N,
369272,PRIVATE LANDLORD,650,Guaranteed Rent Scheme,Rent Payable,05-Jun-23,2324/03,ST,M1414,H2023,N,
369672,MK AUTOS MOT CENTRE LIMITED,400,Taxi & Private Hire Licensing,Contracted Services,31-May-23,2324/03,SME,M4601,H3042,N,
369271,PRIVATE LANDLORD,555,Guaranteed Rent Scheme,Rent Payable,05-Jun-23,2324/03,ST,M1414,H2023,N,
369617,FOURWAYS VEHICLE SOLUTIONS LTD,726.6,Open Spaces,Plant & Vehicle - Other costs,29-Apr-23,2324/03,SME,M4404,H4015,N,
369620,FOURWAYS VEHICLE SOLUTIONS LTD,726.6,Open Spaces,"Equipment, Tools & Materials",25-May-23,2324/03,SME,M4404,H3031,N,
368415,METRIC GROUP LTD,299.79,C Parks General,Contracted Services,12-Apr-23,2324/03,SME,M4410,H3042,N,
368610,METRIC GROUP LTD,439.74,C Parks General,Contracted Services,12-May-23,2324/03,SME,M4410,H3042,N,
369298,WOLFSON COLLEGE CAMBRIDGE,"1,813.00",Heritage,Post-Entry Training,16-Aug-22,2324/03,SME,M3701,H1044,Y,45%
369135,DUDLEY SMITH PARTNERSHIP LTD,900,Cross Street Tech Hub,Prof & Consultancy Fees,31-May-23,2324/03,SME,M7295,H3041,N,
369688,FIFIELD TRAINING LTD,821.6,Cost of Democracy,Training,20-Jun-23,2324/03,SME,M5701,H1043,Y,50%
369810,SANCTUARY HOUSING ASSOCIATION,260.46,Tenancy Services,Other Service Charges,26-Jun-23,2324/03,SME,M8500,H3164,N,
369818,STOWMARKET CARNIVAL,"5,250.00",Grants & Contrbns,Contributions & Donations,27-Jun-23,2324/03,SME,M2107,H3082,N,
369630,RENDALL AND RITTNER LTD,274.24,Tenancy Services,Other Service Charges,31-Mar-23,2324/03,SME,M8500,H3164,N,
369174,HAMILTON SMITH LETTINGS,550,Guaranteed Rent Scheme,Rent Payable,02-Jun-23,2324/03,SME,M1414,H2023,N,
369267,HAMILTON SMITH LETTINGS,550,Guaranteed Rent Scheme,Rent Payable,05-Jun-23,2324/03,SME,M1414,H2023,N,
369478,HAMILTON SMITH LETTINGS,775,Guaranteed Rent Scheme,Rent Payable,13-Jun-23,2324/03,SME,M1414,H2023,N,
369653,HAMILTON SMITH LETTINGS,"2,000.00",Guaranteed Rent Scheme,Rent Payable,19-Jun-23,2324/03,SME,M1414,H2023,N,
423376,HAMILTON SMITH LETTINGS,550,Guaranteed Rent Scheme,Rent Payable,02-Jun-23,2324/03,SME,M1414,H2023,N,
423386,HAMILTON SMITH LETTINGS,512.41,Guaranteed Rent Scheme,Rent Payable,14-Jun-23,2324/03,SME,M1414,H2023,N,
368335,ADECCO UK LTD,"1,416.53",Organisational Devt,Agency Staff,02-May-23,2324/03,LGE,M5100,H1031,Y,50%
369428,PAY 360 LIMITED,"6,138.30",Bank Chgs,Bank Charges,08-Jun-23,2324/03,LGE,M6102,H3046,N,
369284,THE FOOD MUSEUM LTD,"20,000.00",Grants & Contrbns,Grants,05-Jun-23,2324/03,SME,M2107,H3081,N,
369320,TILE HILL INTERIM & EXECUTIVE LTD,"6,240.00",Financial Servs,Agency Staff,07-Jun-23,2324/03,SME,M6100,H1031,Y,50%
369323,TILE HILL INTERIM & EXECUTIVE LTD,"7,020.00",Financial Servs,Agency Staff,07-Jun-23,2324/03,SME,M6100,H1031,Y,50%
369329,TILE HILL INTERIM & EXECUTIVE LTD,"6,825.00",Financial Servs,Agency Staff,07-Jun-23,2324/03,SME,M6100,H1031,Y,50%
369330,TILE HILL INTERIM & EXECUTIVE LTD,"15,750.00",Organisational Devt,Agency Staff,07-Jun-23,2324/03,SME,M5100,H1031,Y,50%
369263,PRIVATE LANDLORD,900,Guaranteed Rent Scheme,Rent Payable,05-Jun-23,2324/03,ST,M1414,H2023,N,
369264,PRIVATE LANDLORD,875,Guaranteed Rent Scheme,Rent Payable,05-Jun-23,2324/03,ST,M1414,H2023,N,
369419,BENICIA PROPERTIES LTD,575,Guaranteed Rent Scheme,Rent Payable,12-Jun-23,2324/03,SME,M1414,H2023,N,
369808,BENICIA PROPERTIES LTD,650,Guaranteed Rent Scheme,Rent Payable,26-Jun-23,2324/03,SME,M1414,H2023,N,
369786,PRIVATE LANDLORD,800,Guaranteed Rent Scheme,Rent Payable,26-Jun-23,2324/03,ST,M1414,H2023,N,
369316,NEWSQUEST MEDIA GROUP,770.44,Devt Management - Apps,Advertising&mkting (non-staff),20-May-23,2324/03,LGE,M3101,H3049,N,
369531,NEWSQUEST MEDIA GROUP,700.4,Devt Management - Apps,Advertising&mkting (non-staff),08-Jun-23,2324/03,LGE,M3101,H3049,N,
369618,NEWSQUEST MEDIA GROUP,412,Devt Management - Apps,Advertising&mkting (non-staff),15-Jun-23,2324/03,LGE,M3101,H3049,N,
369745,NEWSQUEST MEDIA GROUP,988.8,Devt Management - Apps,Advertising&mkting (non-staff),22-Jun-23,2324/03,LGE,M3101,H3049,N,
369301,INSIGHT TECHNOLOGY (SUFFOLK) LTD,265,Sheltered Accommodation,Repairs,05-Jun-23,2324/03,SME,M8401,H2010,N,
369304,INSIGHT TECHNOLOGY (SUFFOLK) LTD,500,Tenancy Services,Repairs,05-Jun-23,2324/03,SME,M8500,H2010,N,
369520,BELL DECORATING GROUP LTD,"9,691.97",Planned Maint - Ext Painting,Major Contracts,31-May-23,2324/03,LGE,M8104,H6001,N,
369180,J COOK CARPENTRY LTD,260,Sheltered Accommodation,Fire Prevention,02-Jun-23,2324/03,SME,M8409,H2048,N,
423398,ORBIT HOUSING ASSOCIATION,"2,650.00",Homeless Prevention Fund,Misc Supplies & Services Costs,27-Jun-23,2324/03,LGE,M1404,H3106,N,
369420,PRIVATE LANDLORD,800,Guaranteed Rent Scheme,Rent Payable,12-Jun-23,2324/03,ST,M1414,H2023,N,
368229,GCS COMPLIANCE LTD,"1,645.62",Building Services,Prof & Consultancy Fees,30-May-23,2324/03,SME,M8199,H3041,N,
369282,GCS COMPLIANCE LTD,"1,473.38",Building Services,Prof & Consultancy Fees,31-May-23,2324/03,SME,M8199,H3041,N,
369768,CREATIVE VEHICLE WRAPPING LIMITED,"2,495.00",Rplcmt Ref Freighters-Jnt Schm,Plant & Vehicle - Purchase,23-Jun-23,2324/03,SME,M7050,H4016,N,
369652,THOMPSONS ESTATE OFFICES LTD,670,Guaranteed Rent Scheme,Rent Payable,19-Jun-23,2324/03,SME,M1414,H2023,N,
369460,PRIVATE LANDLORD,895,Guaranteed Rent Scheme,Rent Payable,12-Jun-23,2324/03,ST,M1414,H2023,N,
369543,LINKEDIN,"16,935.00",Organisational Devt,Recruitment,27-Jan-23,2324/03,LGE,M5100,H1052,Y,50%
423378,SEFE ENERGY LIMITED,218.67,Creeting Rd Depot,Gas,18-May-23,2324/03,LGE,M1103,H2032,Y,50%
423378,SEFE ENERGY LIMITED,29.9,Headquarters General,Gas,18-May-23,2324/03,LGE,M1102,H2032,N,
423378,SEFE ENERGY LIMITED,271.9,HRA Strategic Property,Gas,18-May-23,2324/03,LGE,M8001,H2032,N,
423378,SEFE ENERGY LIMITED,"27,796.50",Leisure Contract,Gas,18-May-23,2324/03,LGE,M2203,H2032,N,
423378,SEFE ENERGY LIMITED,13.14,Open Spaces,Gas,18-May-23,2324/03,LGE,M4404,H2032,N,
423378,SEFE ENERGY LIMITED,"5,893.10",Sheltered Accommodation,Gas,18-May-23,2324/03,LGE,M8402,H2032,N,
423378,SEFE ENERGY LIMITED,415.1,Temporary Accommodation,Gas,18-May-23,2324/03,LGE,M1409,H2032,N,
423378,SEFE ENERGY LIMITED,393.28,Tenancy Services,Gas,18-May-23,2324/03,LGE,M8500,H2032,N,
423391,SEFE ENERGY LIMITED,150.47,Creeting Rd Depot,Gas,16-Jun-23,2324/03,LGE,M1103,H2032,Y,50%
423391,SEFE ENERGY LIMITED,30.9,Headquarters General,Gas,16-Jun-23,2324/03,LGE,M1102,H2032,N,
423391,SEFE ENERGY LIMITED,82.32,HRA Strategic Property,Gas,16-Jun-23,2324/03,LGE,M8001,H2032,N,
423391,SEFE ENERGY LIMITED,"27,496.54",Leisure Contract,Gas,16-Jun-23,2324/03,LGE,M2203,H2032,N,
423391,SEFE ENERGY LIMITED,13.58,Open Spaces,Gas,16-Jun-23,2324/03,LGE,M4404,H2032,N,
423391,SEFE ENERGY LIMITED,"5,297.32",Sheltered Accommodation,Gas,16-Jun-23,2324/03,LGE,M8402,H2032,N,
423391,SEFE ENERGY LIMITED,582.45,Temporary Accommodation,Gas,16-Jun-23,2324/03,LGE,M1409,H2032,N,
423391,SEFE ENERGY LIMITED,340.85,Tenancy Services,Gas,16-Jun-23,2324/03,LGE,M8500,H2032,N,
368592,KICKS & TRICKS LTD,"1,140.00",Holiday Activity Fund,"Equipment, Tools & Materials",12-May-23,2324/03,SME,M2113,H3031,N,
369349,KICKS & TRICKS LTD,"1,140.00",Holiday Activity Fund,"Equipment, Tools & Materials",05-Jun-23,2324/03,SME,M2113,H3031,N,
369644,YELLOW HOMES LIMITED,"1,785.00",Guaranteed Rent Scheme,Rent Payable,19-Jun-23,2324/03,SME,M1414,H2023,N,
423375,YELLOW HOMES LIMITED,"1,500.00",Guaranteed Rent Scheme,Misc Supplies & Services Costs,07-Jun-23,2324/03,SME,M1414,H3106,N,
369418,PRIVATE LANDLORD,"1,050.00",Guaranteed Rent Scheme,Rent Payable,12-Jun-23,2324/03,SME,M1414,H2023,N,
369756,CULLIGAN (UK) LTD,852.23,Creeting Rd Depot,Contracted Services,21-Jun-23,2324/03,LGE,M1103,H3042,Y,50%
369273,PRIVATE LANDLORD,880,Guaranteed Rent Scheme,Rent Payable,05-Jun-23,2324/03,ST,M1414,H2023,N,
369039,THE GREAT WHITE HORSE HOTEL,"1,050.00",Homelessness Private Sector,B&B Costs,28-May-23,2324/03,SME,M1401,H3050,N,
369311,THE GREAT WHITE HORSE HOTEL,"1,050.00",Homelessness Private Sector,B&B Costs,04-Jun-23,2324/03,SME,M1401,H3050,N,
368822,BRAVEGOOSE LTD,500,Management Team,Conference Expenses,13-Apr-23,2324/03,SME,M0100,H3053,Y,50%
369746,COLNESETT LTD,"48,498.57",Cross Street Tech Hub,Prof & Consultancy Fees,02-Jun-23,2324/03,SME,M7295,H3041,N,
369767,CITIZENLAB NV,"7,500.00",PP&I,Contracted Services,01-May-23,2324/03,SME,M5200,H3042,Y,50%
369762,MEW ASSOCIATES LTD,"1,400.00",Financial Servs,Prof & Consultancy Fees,31-May-23,2324/03,SME,M6100,H3041,Y,50%
369006,AIR POWER EAST LTD,402.34,Open Spaces,"Equipment, Tools & Materials",22-May-23,2324/03,SME,M4404,H3031,N,
369547,ORWELLMOVES,710,Homeless Prevention Fund,Removal Expenses,08-Jun-23,2324/03,SME,M1404,H3108,N,
369488,MAP LETTINGS & PROPERTY MANAGEMENT,"1,050.00",Guaranteed Rent Scheme,Rent Payable,13-Jun-23,2324/03,SME,M1414,H2023,N,
369488,MAP LETTINGS & PROPERTY MANAGEMENT,200,Homeless Prevention Fund,Misc Supplies & Services Costs,13-Jun-23,2324/03,SME,M1404,H3106,N,
369533,NEXERE CONSULTING LTD,"3,600.00",Climate Change and Sustainabil,Contracted Services,05-Jun-23,2324/03,SME,M4306,H3042,Y,50%
369055,ESME B PODMORE,499.61,Town Centres,Prof & Consultancy Fees,25-May-23,2324/03,ST,M3565,H3041,N,
369677,BADWELL ASH VILLAGE HALL,"2,772.21",Community Fund Projects-Grants,Grants,20-Jun-23,2324/03,SME,M7115,H3081,N,
369663,HETHEL INNOVATION LTD,"4,997.16",MSM Skills & Innovation Centre,Prof & Consultancy Fees,19-Jun-23,2324/03,LGE,M3553,H3041,N,
369365,WPAC LTD,450,Town Centres,Prof & Consultancy Fees,25-May-23,2324/03,SME,M3565,H3041,N,
369565,DULUX DECORATOR CENTRE,"2,475.60",Needham Market Middle School,Annual Bldg Maint Contracts,14-Jun-23,2324/03,LGE,M7685,H2001,N,
369537,ACCESS & AUTOMATION LTD,"2,525.00",Mand Disabled Facilities Grant,Grants,13-Jun-23,2324/03,SME,M7001,H3081,N,
369573,ACCESS & AUTOMATION LTD,"2,560.00",Mand Disabled Facilities Grant,Grants,14-Jun-23,2324/03,SME,M7001,H3081,N,
369687,GOODMAN NASH LTD,"12,409.74",HRA Strategic Property,Prof & Consultancy Fees,11-May-23,2324/03,SME,M8001,H3041,N,
369778,BUTTERCUPS CHILDRENS NURSERY,"2,750.00",Grants & Contrbns,Contributions & Donations,23-Jun-23,2324/03,SME,M2107,H3082,N,
DDT0102127,ELMHURST ENERGY SYSTEMS LTD - DD,145.74,Current Assets,LLOYDS GENERAL PAYMENTS,15-May-23,2324/02,SME,B9002,ZH103,N,
369099,CIVICA UK LIMITED,-672,Lettings & Allocations,Contracted Services,31-May-23,2324/02,LGE,M8201,H3042,N,
368715,ERNEST DOE & SONS LTD,-88.44,Open Spaces,"Equipment, Tools & Materials",12-Jan-23,2324/02,LGE,M4404,H3031,N,
368441,A C LEIGH (NORWICH) LTD,-71.24,Building Services,"Equipment, Tools & Materials",28-Apr-23,2324/02,SME,M8199,H3031,N,
1026,EWS LIMITED,-126.04,Tenancy Services,Other Service Charges,12-May-23,2324/02,SME,M8500,H3164,N,
EBC0051635,EWS LIMITED,126.04,Current Assets,LLOYDS GENERAL PAYMENTS,15-May-23,2324/02,SME,M9002,ZH103,N,
368704,ADECCO UK LTD,-961.52,Organisational Devt,Agency Staff,21-Apr-23,2324/02,LGE,M5100,A1031,Y,50%
